Department Family,Entity,Date,Expense Type,Expense Area,Supplier,Transaction Number,Amount,Description
Ministry of Justice,LEGAL AID AGENCY,01/07/2015,221000-Property Rent and Rates,VA396-Property Costs,LONDON & SCOTTISH PROPERTY MANAGEMENT LTD,2001167,"3,525.00 ",Rent Leeds 24/06/2015-28/09/2015
Ministry of Justice,LEGAL AID AGENCY,01/07/2015,221000-Property Rent and Rates,VA396-Property Costs,LONDON & SCOTTISH PROPERTY MANAGEMENT LTD,2001167,"17,625.00 ",Rent Leeds 24/06/2015-28/09/2015
Ministry of Justice,LEGAL AID AGENCY,01/07/2015,222002-Other Property Costs,VA396-Property Costs,LONDON & SCOTTISH PROPERTY MANAGEMENT LTD,2001167,"2,026.90 ",Service charge Leeds 24/06/2015-28/09/2015
Ministry of Justice,LEGAL AID AGENCY,01/07/2015,222002-Other Property Costs,VA396-Property Costs,LONDON & SCOTTISH PROPERTY MANAGEMENT LTD,2001167,"10,134.51 ",Service charge Leeds 24/06/2015-28/09/2015
Ministry of Justice,LEGAL AID AGENCY,08/07/2015,265000-IT & Telecommunications,"VA393-Operations, Civil",NORTHGATE PUBLIC SERVICES (UK) LTD,2001303,"28,549.25 ","Managed Service per month, Network Connection per month & EDRM Software per month - April 15 to March 16 contract number CAT2055 COM-09-503"
Ministry of Justice,LEGAL AID AGENCY,15/07/2015,223000-Other Expenditure,VA395-National Courts Team,ROSSENDALES LTD,2001434,"68,360.00 ",Enforcement costs for CCMT covering April 2015 to March 2016
Ministry of Justice,LEGAL AID AGENCY,15/07/2015,223000-Other Expenditure,VA395-National Courts Team,ROSSENDALES LTD,2001434,"7,169.22 ",Collections (Service Delivery) costs for CCMT covering April 2015 to March 2016
Ministry of Justice,LEGAL AID AGENCY,15/07/2015,223000-Other Expenditure,VA395-National Courts Team,ROSSENDALES LTD,2001434,"91,092.00 ",Collections (Service Delivery) costs for CCMT covering April 2015 to March 2016
Ministry of Justice,LEGAL AID AGENCY,15/07/2015,223000-Other Expenditure,VA395-National Courts Team,ROSSENDALES LTD,2001434,"67,394.50 ",Enforcement costs for CCMT covering April 2015 to March 2016
Ministry of Justice,LEGAL AID AGENCY,27/07/2015,223000-Other Expenditure,VA094-Head of Legal,GOVERNMENT LEGAL DEPARTMENT,10011,"182,000.00 ",LAA Legal Advisory Services provided by Government Legal Department
Ministry of Justice,LEGAL AID AGENCY,22/07/2015,265000-IT & Telecommunications,VA403-IDP - Infrastructure,CAPGEMINI UK PLC,2001470,"17,291.40 ",CCMS Application Support  - April 15 to Sep 15
Ministry of Justice,LEGAL AID AGENCY,22/07/2015,265000-IT & Telecommunications,VA403-IDP - Infrastructure,CAPGEMINI UK PLC,2001470,"86,457.00 ",CCMS Application Support  - April 15 to Sep 15
Ministry of Justice,LEGAL AID AGENCY,01/07/2015,265000-IT & Telecommunications,VA403-IDP - Infrastructure,CAPGEMINI UK PLC,2001118,"17,291.40 ",CCMS Application Support  - Oct 14 to Mar 15
Ministry of Justice,LEGAL AID AGENCY,22/07/2015,265000-IT & Telecommunications,VA403-IDP - Infrastructure,CAPGEMINI UK PLC,2001470,"86,457.00 ",CCMS Application Support  - April 15 to Sep 15
Ministry of Justice,LEGAL AID AGENCY,22/07/2015,265000-IT & Telecommunications,VA403-IDP - Infrastructure,CAPGEMINI UK PLC,2001470,"86,457.00 ",CCMS Application Support  - April 15 to Sep 15
Ministry of Justice,LEGAL AID AGENCY,01/07/2015,265000-IT & Telecommunications,VA403-IDP - Infrastructure,CAPGEMINI UK PLC,2001118,"86,457.00 ",CCMS Application Support  - Oct 14 to Mar 15
Ministry of Justice,LEGAL AID AGENCY,22/07/2015,265000-IT & Telecommunications,VA403-IDP - Infrastructure,CAPGEMINI UK PLC,2001470,"17,291.40 ",CCMS Application Support  - April 15 to Sep 15
Ministry of Justice,LEGAL AID AGENCY,22/07/2015,265000-IT & Telecommunications,VA403-IDP - Infrastructure,CAPGEMINI UK PLC,2001470,"17,291.40 ",CCMS Application Support  - April 15 to Sep 15
Ministry of Justice,LEGAL AID AGENCY,29/07/2015,265000-IT & Telecommunications,VA403-IDP - Infrastructure,ORACLE CORPORATION U K LTD,2001673,"56,679.60 ",Application User Perpetual Software Update License & Support
Ministry of Justice,LEGAL AID AGENCY,29/07/2015,265000-IT & Telecommunications,VA403-IDP - Infrastructure,ORACLE CORPORATION U K LTD,2001673,"11,335.92 ",Application User Perpetual Software Update License & Support
Ministry of Justice,LEGAL AID AGENCY,15/07/2015,224000-Staff travel and other,VA293-Finance Directorate,REDFERN TRAVEL LTD,2001432,"179,287.89 ",LAA Blanket Travel Costs 1st March 2015 to 31st May 2015
Ministry of Justice,LEGAL AID AGENCY,16/07/2015,512000-Intangible GBV - Additions,VA403-IDP - Infrastructure,HOME OFFICE IT,10010,"71,230.04 ",HOIT Testing Services - LAA 2014/15
Ministry of Justice,LEGAL AID AGENCY,01/07/2015,512000-Intangible GBV - Additions,VA403-IDP - Infrastructure,CAPGEMINI UK PLC,2001118,"101,000.00 ",IDP CCMS ENHANCEMENTS - Operational Work Order 2 Part 1 Contract number OWO001
Ministry of Justice,LEGAL AID AGENCY,16/07/2015,512000-Intangible GBV - Additions,VA403-IDP - Infrastructure,HOME OFFICE IT,10010,"356,150.20 ",HOIT Testing Services - LAA 2014/15
Ministry of Justice,LEGAL AID AGENCY,01/07/2015,512000-Intangible GBV - Additions,VA403-IDP - Infrastructure,CAPGEMINI UK PLC,2001118,"20,200.00 ",IDP CCMS ENHANCEMENTS - Operational Work Order 2 Part 1 Contract number OWO001
Ministry of Justice,LEGAL AID AGENCY,01/07/2015,Higher Crime,LEGAL AID FUND,SIMON CSOKA,140566953,"46,839.05",Legal Aid Payment Higher Crime
Ministry of Justice,LEGAL AID AGENCY,01/07/2015,Higher Crime,LEGAL AID FUND,IRVINE THANVI NATAS SOLICITORS,140584252,"64,092.64",Legal Aid Payment Higher Crime
Ministry of Justice,LEGAL AID AGENCY,01/07/2015,Higher Crime,LEGAL AID FUND,J D SPICER ZEB,140584360,"71,783.41",Legal Aid Payment Higher Crime
Ministry of Justice,LEGAL AID AGENCY,01/07/2015,Higher Crime,LEGAL AID FUND,NIGEL RUMFITT QC,140584315,"30,648.77",Legal Aid Payment Higher Crime
Ministry of Justice,LEGAL AID AGENCY,01/07/2015,Higher Crime,LEGAL AID FUND,HSR SOLICITORS,140584325,"63,922.02",Legal Aid Payment Higher Crime
Ministry of Justice,LEGAL AID AGENCY,01/07/2015,Higher Crime,LEGAL AID FUND,JOHN J COFFEY QC,140583956,"37,718.48",Legal Aid Payment Higher Crime
Ministry of Justice,LEGAL AID AGENCY,01/07/2015,Civil Representation,LEGAL AID FUND,BURY & WALKERS LLP,140587017,"37,396.80",Legal Aid Payment Civil Representation
Ministry of Justice,LEGAL AID AGENCY,01/07/2015,Legal Help,LEGAL AID FUND,LAWRENCE LUPIN SOLICITORS LTD,140590498,"115,645.00",Legal Aid Payment Legal Help
Ministry of Justice,LEGAL AID AGENCY,01/07/2015,Civil Representation,LEGAL AID FUND,SHEPPERSONS,140573530,"60,255.85",Legal Aid Payment Civil Representation
Ministry of Justice,LEGAL AID AGENCY,01/07/2015,Legal Help,LEGAL AID FUND,BRIGHTON HOUSING TRUST,140591981,"27,269.00",Legal Aid Payment Legal Help
Ministry of Justice,LEGAL AID AGENCY,01/07/2015,Higher Crime,LEGAL AID FUND,ABBEY SOLICITORS,140605069,"26,829.81",Legal Aid Payment Higher Crime
Ministry of Justice,LEGAL AID AGENCY,01/07/2015,Legal Help,LEGAL AID FUND,DH LAW LTD,140600475,"42,305.00",Legal Aid Payment Legal Help
Ministry of Justice,LEGAL AID AGENCY,01/07/2015,Legal Help,LEGAL AID FUND,"APFEL, BELL & CO SOLICITORS",140600604,"25,390.00",Legal Aid Payment Legal Help
Ministry of Justice,LEGAL AID AGENCY,01/07/2015,Higher Crime,LEGAL AID FUND,SONN MACMILLAN WALKER LTD,140612786,"98,831.22",Legal Aid Payment Higher Crime
Ministry of Justice,LEGAL AID AGENCY,01/07/2015,Higher Crime,LEGAL AID FUND,PS LAW LLP,140612287,"46,074.00",Legal Aid Payment Higher Crime
Ministry of Justice,LEGAL AID AGENCY,01/07/2015,Higher Crime,LEGAL AID FUND,DUNCAN LEWIS,140612339,"44,045.83",Legal Aid Payment Higher Crime
Ministry of Justice,LEGAL AID AGENCY,01/07/2015,Higher Crime,LEGAL AID FUND,GERARD P DORAN,140611900,"28,078.08",Legal Aid Payment Higher Crime
Ministry of Justice,LEGAL AID AGENCY,01/07/2015,Higher Crime,LEGAL AID FUND,LINKS LEGAL,140612347,"116,008.49",Legal Aid Payment Higher Crime
Ministry of Justice,LEGAL AID AGENCY,01/07/2015,Higher Crime,LEGAL AID FUND,LAWTONS,140612549,"103,916.89",Legal Aid Payment Higher Crime
Ministry of Justice,LEGAL AID AGENCY,01/07/2015,Higher Crime,LEGAL AID FUND,B H MOHAMMED,140612557,"98,602.86",Legal Aid Payment Higher Crime
Ministry of Justice,LEGAL AID AGENCY,01/07/2015,Higher Crime,LEGAL AID FUND,RUSTEM GUARDIAN SOLICITORS,140612584,"95,623.07",Legal Aid Payment Higher Crime
Ministry of Justice,LEGAL AID AGENCY,01/07/2015,Higher Crime,LEGAL AID FUND,MARTYN PROWEL LTD,140612607,"89,975.11",Legal Aid Payment Higher Crime
Ministry of Justice,LEGAL AID AGENCY,01/07/2015,Higher Crime,LEGAL AID FUND,NOBLE SOLICITORS,140612690,"116,967.65",Legal Aid Payment Higher Crime
Ministry of Justice,LEGAL AID AGENCY,01/07/2015,Legal Help,LEGAL AID FUND,SWITALSKI'S LTD,140633187,"65,516.00",Legal Aid Payment Legal Help
Ministry of Justice,LEGAL AID AGENCY,01/07/2015,Lower Crime,LEGAL AID FUND,MCGRATH & CO SOLICITORS,140634112,"30,000.00",Legal Aid Payment Lower Crime
Ministry of Justice,LEGAL AID AGENCY,01/07/2015,Lower Crime,LEGAL AID FUND,TUCKERS SOLICITORS LLP,140634115,"26,900.00",Legal Aid Payment Lower Crime
Ministry of Justice,LEGAL AID AGENCY,01/07/2015,Lower Crime,LEGAL AID FUND,HOWARD & BYRNE SOLICITORS,140633839,"53,600.00",Legal Aid Payment Lower Crime
Ministry of Justice,LEGAL AID AGENCY,01/07/2015,Lower Crime,LEGAL AID FUND,HINE SOLICITORS,140634944,"72,528.00",Legal Aid Payment Lower Crime
Ministry of Justice,LEGAL AID AGENCY,01/07/2015,Lower Crime,LEGAL AID FUND,O'GARRA'S SOLICITORS,140633865,"28,000.00",Legal Aid Payment Lower Crime
Ministry of Justice,LEGAL AID AGENCY,01/07/2015,Legal Help,LEGAL AID FUND,GUILE NICHOLAS-INC DONALD GALBRAITH & CO,140632765,"45,000.00",Legal Aid Payment Legal Help
Ministry of Justice,LEGAL AID AGENCY,01/07/2015,Lower Crime,LEGAL AID FUND,WILSON DEVONALD GRIFFITHS JOHN,140633504,"55,000.00",Legal Aid Payment Lower Crime
Ministry of Justice,LEGAL AID AGENCY,01/07/2015,Lower Crime,LEGAL AID FUND,ACA LAW LTD,140634415,"33,884.00",Legal Aid Payment Lower Crime
Ministry of Justice,LEGAL AID AGENCY,01/07/2015,Lower Crime,LEGAL AID FUND,K LEGAL SOLICITORS,140635013,"33,179.00",Legal Aid Payment Lower Crime
Ministry of Justice,LEGAL AID AGENCY,01/07/2015,Lower Crime,LEGAL AID FUND,BLAVO & CO SOLICITORS LTD,140634847,"26,224.00",Legal Aid Payment Lower Crime
Ministry of Justice,LEGAL AID AGENCY,01/07/2015,Lower Crime,LEGAL AID FUND,HODGE JONES & ALLEN LLP,140634431,"85,114.00",Legal Aid Payment Lower Crime
Ministry of Justice,LEGAL AID AGENCY,01/07/2015,Lower Crime,LEGAL AID FUND,LESLIE FRANKS SOLICITORS,140634435,"110,529.00",Legal Aid Payment Lower Crime
Ministry of Justice,LEGAL AID AGENCY,01/07/2015,Lower Crime,LEGAL AID FUND,VHS FLETCHERS,140633551,"66,500.00",Legal Aid Payment Lower Crime
Ministry of Justice,LEGAL AID AGENCY,01/07/2015,Lower Crime,LEGAL AID FUND,WELLS BURCOMBE LLP,140634952,"62,862.00",Legal Aid Payment Lower Crime
Ministry of Justice,LEGAL AID AGENCY,01/07/2015,Lower Crime,LEGAL AID FUND,HEALEY COLBON,140633581,"30,000.00",Legal Aid Payment Lower Crime
Ministry of Justice,LEGAL AID AGENCY,01/07/2015,Lower Crime,LEGAL AID FUND,OBW PERERA LTD,140633607,"29,000.00",Legal Aid Payment Lower Crime
Ministry of Justice,LEGAL AID AGENCY,01/07/2015,Lower Crime,LEGAL AID FUND,H P GOWER SOLICITORS,140634990,"39,925.00",Legal Aid Payment Lower Crime
Ministry of Justice,LEGAL AID AGENCY,01/07/2015,Lower Crime,LEGAL AID FUND,BAXTER BROWN MCARTHUR SOLICITORS,140633656,"25,100.00",Legal Aid Payment Lower Crime
Ministry of Justice,LEGAL AID AGENCY,01/07/2015,Lower Crime,LEGAL AID FUND,ROBERT LIZAR,140633945,"40,100.00",Legal Aid Payment Lower Crime
Ministry of Justice,LEGAL AID AGENCY,01/07/2015,Lower Crime,LEGAL AID FUND,HENRY'S SOLICITORS LTD,140633949,"55,300.00",Legal Aid Payment Lower Crime
Ministry of Justice,LEGAL AID AGENCY,01/07/2015,Lower Crime,LEGAL AID FUND,MCMILLAN WILLIAMS SOLICITORS LTD,140633663,"29,400.00",Legal Aid Payment Lower Crime
Ministry of Justice,LEGAL AID AGENCY,01/07/2015,Lower Crime,LEGAL AID FUND,JOSEPH HILL & CO,140633677,"26,300.00",Legal Aid Payment Lower Crime
Ministry of Justice,LEGAL AID AGENCY,01/07/2015,Lower Crime,LEGAL AID FUND,THE CASTLE PARTNERSHIP,140633974,"33,200.00",Legal Aid Payment Lower Crime
Ministry of Justice,LEGAL AID AGENCY,01/07/2015,Lower Crime,LEGAL AID FUND,THE PURKISS PRACTICE,140633975,"25,000.00",Legal Aid Payment Lower Crime
Ministry of Justice,LEGAL AID AGENCY,01/07/2015,Lower Crime,LEGAL AID FUND,RICHARD HASWELL SOLICITORS LLP,140634515,"30,137.00",Legal Aid Payment Lower Crime
Ministry of Justice,LEGAL AID AGENCY,01/07/2015,Lower Crime,LEGAL AID FUND,ALLEN HOOLE SOLICITORS [0Q319P],140634064,"36,000.00",Legal Aid Payment Lower Crime
Ministry of Justice,LEGAL AID AGENCY,01/07/2015,Higher Crime,LEGAL AID FUND,ALEXANDER CAMERON QC,140637122,"61,351.88",Legal Aid Payment Higher Crime
Ministry of Justice,LEGAL AID AGENCY,01/07/2015,Lower Crime,LEGAL AID FUND,CARTWRIGHT KING SOLICITORS,140634198,"29,000.00",Legal Aid Payment Lower Crime
Ministry of Justice,LEGAL AID AGENCY,01/07/2015,Lower Crime,LEGAL AID FUND,HUNT & COOMBS LLP,140633610,"26,700.00",Legal Aid Payment Lower Crime
Ministry of Justice,LEGAL AID AGENCY,01/07/2015,Lower Crime,LEGAL AID FUND,POWELL SPENCER AND PARTNERS,140633640,"57,700.00",Legal Aid Payment Lower Crime
Ministry of Justice,LEGAL AID AGENCY,01/07/2015,Lower Crime,LEGAL AID FUND,CRIMINAL DEFENCE MILTON KEYNES LTD,140634002,"30,700.00",Legal Aid Payment Lower Crime
Ministry of Justice,LEGAL AID AGENCY,01/07/2015,Lower Crime,LEGAL AID FUND,KEANEY WHITEHEAD PARTNERSHIP,140634485,"34,479.00",Legal Aid Payment Lower Crime
Ministry of Justice,LEGAL AID AGENCY,01/07/2015,Lower Crime,LEGAL AID FUND,LEWIS NEDAS & CO,140633708,"31,200.00",Legal Aid Payment Lower Crime
Ministry of Justice,LEGAL AID AGENCY,01/07/2015,Lower Crime,LEGAL AID FUND,OLIVER D'SA SOLICITORS,140634275,"39,075.00",Legal Aid Payment Lower Crime
Ministry of Justice,LEGAL AID AGENCY,01/07/2015,Lower Crime,LEGAL AID FUND,WATSON WOODHOUSE SOLICITORS LLP,140633772,"35,000.00",Legal Aid Payment Lower Crime
Ministry of Justice,LEGAL AID AGENCY,01/07/2015,Lower Crime,LEGAL AID FUND,FDR LAW,140634588,"27,892.00",Legal Aid Payment Lower Crime
Ministry of Justice,LEGAL AID AGENCY,01/07/2015,Higher Crime,LEGAL AID FUND,ICAH D E PEART QC,140635737,"47,491.08",Legal Aid Payment Higher Crime
Ministry of Justice,LEGAL AID AGENCY,01/07/2015,Lower Crime,LEGAL AID FUND,VYMAN SOLICITORS LIMITED,140634679,"33,052.00",Legal Aid Payment Lower Crime
Ministry of Justice,LEGAL AID AGENCY,01/07/2015,Lower Crime,LEGAL AID FUND,GURNEY HARDEN,140634688,"38,066.00",Legal Aid Payment Lower Crime
Ministry of Justice,LEGAL AID AGENCY,01/07/2015,Lower Crime,LEGAL AID FUND,BOND JOSEPH,140634693,"34,925.00",Legal Aid Payment Lower Crime
Ministry of Justice,LEGAL AID AGENCY,01/07/2015,Higher Crime,LEGAL AID FUND,RICHARD TUTT,140635986,"27,072.26",Legal Aid Payment Higher Crime
Ministry of Justice,LEGAL AID AGENCY,01/07/2015,Higher Crime,LEGAL AID FUND,KAIM TODNER SOLICITORS LIMITED,140637319,"51,680.20",Legal Aid Payment Higher Crime
Ministry of Justice,LEGAL AID AGENCY,01/07/2015,Civil Representation,LEGAL AID FUND,THE WATSON RAMSBOTTOM LIMITED,140606878,"26,118.00",Legal Aid Payment Civil Representation
Ministry of Justice,LEGAL AID AGENCY,08/07/2015,Higher Crime,LEGAL AID FUND,FARLEYS SOLICITORS LLP,140653159,"42,602.65",Legal Aid Payment Higher Crime
Ministry of Justice,LEGAL AID AGENCY,08/07/2015,Higher Crime,LEGAL AID FUND,MPR SOLICITORS LLP,140652682,"29,428.99",Legal Aid Payment Higher Crime
Ministry of Justice,LEGAL AID AGENCY,08/07/2015,Higher Crime,LEGAL AID FUND,DAVID PHILLIPS & PARTNERS,140652817,"54,497.60",Legal Aid Payment Higher Crime
Ministry of Justice,LEGAL AID AGENCY,08/07/2015,Higher Crime,LEGAL AID FUND,EMMA GOODALL,140668269,"26,100.70",Legal Aid Payment Higher Crime
Ministry of Justice,LEGAL AID AGENCY,08/07/2015,Higher Crime,LEGAL AID FUND,RAHMAN RAVELLI SOLICTORS LTD,140683132,"65,397.12",Legal Aid Payment Higher Crime
Ministry of Justice,LEGAL AID AGENCY,08/07/2015,Higher Crime,LEGAL AID FUND,HELEN M G KHAN,140683162,"31,374.34",Legal Aid Payment Higher Crime
Ministry of Justice,LEGAL AID AGENCY,08/07/2015,Higher Crime,LEGAL AID FUND,CHARLES A KAYNE,140683482,"40,573.20",Legal Aid Payment Higher Crime
Ministry of Justice,LEGAL AID AGENCY,08/07/2015,Higher Crime,LEGAL AID FUND,SIMON R LAWS,140694714,"28,691.06",Legal Aid Payment Higher Crime
Ministry of Justice,LEGAL AID AGENCY,08/07/2015,Higher Crime,LEGAL AID FUND,GULAM M AHMED,140695784,"41,667.24",Legal Aid Payment Higher Crime
Ministry of Justice,LEGAL AID AGENCY,08/07/2015,Higher Crime,LEGAL AID FUND,G T STEWART SOLICITORS,140695785,"38,188.99",Legal Aid Payment Higher Crime
Ministry of Justice,LEGAL AID AGENCY,08/07/2015,Higher Crime,LEGAL AID FUND,YASMIN & SHAID SOLICITORS LTD,140695411,"48,014.51",Legal Aid Payment Higher Crime
Ministry of Justice,LEGAL AID AGENCY,08/07/2015,Lower Crime,LEGAL AID FUND,SWITALSKI'S LTD,140712592,"27,488.48",Legal Aid Payment Lower Crime
Ministry of Justice,LEGAL AID AGENCY,08/07/2015,Higher Crime,LEGAL AID FUND,S A LAW CHAMBERS SOLICITORS,140723713,"39,126.30",Legal Aid Payment Higher Crime
Ministry of Justice,LEGAL AID AGENCY,08/07/2015,Higher Crime,LEGAL AID FUND,MARTYN HEWETT,140724533,"75,691.13",Legal Aid Payment Higher Crime
Ministry of Justice,LEGAL AID AGENCY,08/07/2015,Higher Crime,LEGAL AID FUND,COSTLEY & PARTNERS,140723162,"65,397.12",Legal Aid Payment Higher Crime
Ministry of Justice,LEGAL AID AGENCY,08/07/2015,Higher Crime,LEGAL AID FUND,DDE LAW LTD,140723636,"42,102.48",Legal Aid Payment Higher Crime
Ministry of Justice,LEGAL AID AGENCY,08/07/2015,Civil Representation,LEGAL AID FUND,POWELL & CO,140731201,"28,312.15",Legal Aid Payment Civil Representation
Ministry of Justice,LEGAL AID AGENCY,08/07/2015,Civil Representation,LEGAL AID FUND,FISHER MEREDITH LLP,140730456,"69,081.18",Legal Aid Payment Civil Representation
Ministry of Justice,LEGAL AID AGENCY,10/07/2015,Civil Representation,LEGAL AID FUND,SIMPSON MILLAR LLP,Ledger Transfer Adjustment 818,"91,697.34",Legal Aid Payment Civil Representation
Ministry of Justice,LEGAL AID AGENCY,10/07/2015,Civil Representation,LEGAL AID FUND,TOZERS LLP,Ledger Transfer Adjustment 824,"141,878.03",Legal Aid Payment Civil Representation
Ministry of Justice,LEGAL AID AGENCY,15/07/2015,Civil Representation,LEGAL AID FUND,KUNDERT SOLICITORS LLP,140760694,"32,273.22",Legal Aid Payment Civil Representation
Ministry of Justice,LEGAL AID AGENCY,15/07/2015,Higher Crime,LEGAL AID FUND,BYRNE & PARTNERS LLP,140768355,"32,646.70",Legal Aid Payment Higher Crime
Ministry of Justice,LEGAL AID AGENCY,15/07/2015,Higher Crime,LEGAL AID FUND,FEDON P KAZANTZIS,140782478,"31,607.64",Legal Aid Payment Higher Crime
Ministry of Justice,LEGAL AID AGENCY,15/07/2015,Higher Crime,LEGAL AID FUND,GRECH GOODEN SOLICITORS LTD,140782805,"33,856.88",Legal Aid Payment Higher Crime
Ministry of Justice,LEGAL AID AGENCY,15/07/2015,Higher Crime,LEGAL AID FUND,SHUFQAT M KHAN,140783078,"36,313.56",Legal Aid Payment Higher Crime
Ministry of Justice,LEGAL AID AGENCY,15/07/2015,Civil Representation,LEGAL AID FUND,BAKERS SOLICITORS.,140797335,"57,548.81",Legal Aid Payment Civil Representation
Ministry of Justice,LEGAL AID AGENCY,15/07/2015,Higher Crime,LEGAL AID FUND,DAVID T FISH QC,140806545,"68,186.52",Legal Aid Payment Higher Crime
Ministry of Justice,LEGAL AID AGENCY,15/07/2015,Higher Crime,LEGAL AID FUND,CHIVERS SOLICITORS,140805592,"64,875.84",Legal Aid Payment Higher Crime
Ministry of Justice,LEGAL AID AGENCY,15/07/2015,Higher Crime,LEGAL AID FUND,CGLAW SOLICITORS,140806091,"89,975.11",Legal Aid Payment Higher Crime
Ministry of Justice,LEGAL AID AGENCY,15/07/2015,Higher Crime,LEGAL AID FUND,RANJIT S LALLIE,140806296,"29,668.19",Legal Aid Payment Higher Crime
Ministry of Justice,LEGAL AID AGENCY,15/07/2015,Civil Representation,LEGAL AID FUND,CHRISTOPHER S HOUGH,140810216,"26,337.82",Legal Aid Payment Civil Representation
Ministry of Justice,LEGAL AID AGENCY,22/07/2015,Higher Crime,LEGAL AID FUND,GARSTANGS BURROWS BUSSIN LLP,140822652,"78,406.47",Legal Aid Payment Higher Crime
Ministry of Justice,LEGAL AID AGENCY,22/07/2015,Higher Crime,LEGAL AID FUND,JAMES WALKER,140822509,"29,899.88",Legal Aid Payment Higher Crime
Ministry of Justice,LEGAL AID AGENCY,22/07/2015,Higher Crime,LEGAL AID FUND,JOHN LUCAS,140822569,"29,668.19",Legal Aid Payment Higher Crime
Ministry of Justice,LEGAL AID AGENCY,22/07/2015,Civil Representation,LEGAL AID FUND,ANDREW J C COMAISH,140795493,"40,843.20",Legal Aid Payment Civil Representation
Ministry of Justice,LEGAL AID AGENCY,22/07/2015,Higher Crime,LEGAL AID FUND,K LEGAL SOLICITORS,140836532,"40,897.84",Legal Aid Payment Higher Crime
Ministry of Justice,LEGAL AID AGENCY,22/07/2015,Higher Crime,LEGAL AID FUND,THOMAS BOYD WHYTE,140873777,"53,318.24",Legal Aid Payment Higher Crime
Ministry of Justice,LEGAL AID AGENCY,22/07/2015,Civil Representation,LEGAL AID FUND,VENTERS SOLICITORS,140879543,"31,163.19",Legal Aid Payment Civil Representation
Ministry of Justice,LEGAL AID AGENCY,22/07/2015,Higher Crime,LEGAL AID FUND,LAWSON & THOMPSON,140886442,"43,028.80",Legal Aid Payment Higher Crime
Ministry of Justice,LEGAL AID AGENCY,22/07/2015,Higher Crime,LEGAL AID FUND,RUSSELL & RUSSELL SOLICITORS,140887142,"94,087.77",Legal Aid Payment Higher Crime
Ministry of Justice,LEGAL AID AGENCY,22/07/2015,Higher Crime,LEGAL AID FUND,FORBES SOLICITORS,140887146,"61,000.84",Legal Aid Payment Higher Crime
Ministry of Justice,LEGAL AID AGENCY,22/07/2015,Higher Crime,LEGAL AID FUND,GALBRAITH BRANLEY SOLICITORS,140886972,"98,602.86",Legal Aid Payment Higher Crime
Ministry of Justice,LEGAL AID AGENCY,22/07/2015,Higher Crime,LEGAL AID FUND,CARTER MOORE SOLICITORS LTD,140887363,"77,325.07",Legal Aid Payment Higher Crime
Ministry of Justice,LEGAL AID AGENCY,22/07/2015,Higher Crime,LEGAL AID FUND,DASS SOLICITORS,140903798,"31,586.29",Legal Aid Payment Higher Crime
Ministry of Justice,LEGAL AID AGENCY,22/07/2015,Higher Crime,LEGAL AID FUND,CARTWRIGHT KING SOLICITORS,140911516,"26,066.28",Legal Aid Payment Higher Crime
Ministry of Justice,LEGAL AID AGENCY,22/07/2015,Higher Crime,LEGAL AID FUND,PATRICK CASSIDY,140911253,"29,203.68",Legal Aid Payment Higher Crime
Ministry of Justice,LEGAL AID AGENCY,29/07/2015,Civil Representation,LEGAL AID FUND,GREGORY C ROGERS,140915990,"27,075.60",Legal Aid Payment Civil Representation
Ministry of Justice,LEGAL AID AGENCY,29/07/2015,Civil Representation,LEGAL AID FUND,AMPHLETT LISSIMORE BAGSHAWS LLP,140932326,"46,163.39",Legal Aid Payment Civil Representation
Ministry of Justice,LEGAL AID AGENCY,29/07/2015,Higher Crime,LEGAL AID FUND,SHAUN M SMITH QC,140927396,"34,020.52",Legal Aid Payment Higher Crime
Ministry of Justice,LEGAL AID AGENCY,29/07/2015,Higher Crime,LEGAL AID FUND,HASKELL & CO,140941758,"40,564.53",Legal Aid Payment Higher Crime
Ministry of Justice,LEGAL AID AGENCY,29/07/2015,Higher Crime,LEGAL AID FUND,NEEDHAM POULIER LTD,140941788,"29,664.55",Legal Aid Payment Higher Crime
Ministry of Justice,LEGAL AID AGENCY,29/07/2015,Higher Crime,LEGAL AID FUND,MARION SMULLEN,140942034,"37,200.00",Legal Aid Payment Higher Crime
Ministry of Justice,LEGAL AID AGENCY,29/07/2015,Higher Crime,LEGAL AID FUND,IAN MCMEEKIN,140942325,"25,779.97",Legal Aid Payment Higher Crime
Ministry of Justice,LEGAL AID AGENCY,29/07/2015,Lower Crime,LEGAL AID FUND,QS JACKSON CANTER LTD,140991119,"75,733.00",Legal Aid Payment Lower Crime
Ministry of Justice,LEGAL AID AGENCY,29/07/2015,Lower Crime,LEGAL AID FUND,HINE SOLICITORS,140990996,"57,238.00",Legal Aid Payment Lower Crime
Ministry of Justice,LEGAL AID AGENCY,29/07/2015,Legal Help,LEGAL AID FUND,GLEDHILL SOLICITORS,140989073,"65,386.00",Legal Aid Payment Legal Help
Ministry of Justice,LEGAL AID AGENCY,29/07/2015,Lower Crime,LEGAL AID FUND,CARTWRIGHT KING SOLICITORS,140990357,"28,301.00",Legal Aid Payment Lower Crime
Ministry of Justice,LEGAL AID AGENCY,29/07/2015,Lower Crime,LEGAL AID FUND,PHILIP HANBY LTD T/A ANDREW JAY & CO,140990363,"27,235.00",Legal Aid Payment Lower Crime
Ministry of Justice,LEGAL AID AGENCY,29/07/2015,Lower Crime,LEGAL AID FUND,FISHER COWE,140990389,"34,888.00",Legal Aid Payment Lower Crime
Ministry of Justice,LEGAL AID AGENCY,29/07/2015,Lower Crime,LEGAL AID FUND,MARTIN MURRAY & ASSOCIATES,140989729,"77,800.00",Legal Aid Payment Lower Crime
Ministry of Justice,LEGAL AID AGENCY,29/07/2015,Lower Crime,LEGAL AID FUND,MCLARTYS SOLICITORS,140989753,"27,500.00",Legal Aid Payment Lower Crime
Ministry of Justice,LEGAL AID AGENCY,29/07/2015,Legal Help,LEGAL AID FUND,ELLIOTT BRIDGMAN LTD,140989017,"35,924.00",Legal Aid Payment Legal Help
Ministry of Justice,LEGAL AID AGENCY,29/07/2015,Lower Crime,LEGAL AID FUND,ABV SOLICITORS,140989736,"80,800.00",Legal Aid Payment Lower Crime
Ministry of Justice,LEGAL AID AGENCY,29/07/2015,Lower Crime,LEGAL AID FUND,GRAYSON WILLIS BENNETT,140990602,"41,366.00",Legal Aid Payment Lower Crime
Ministry of Justice,LEGAL AID AGENCY,29/07/2015,Legal Help,LEGAL AID FUND,ISON HARRISON LTD,140989252,"55,001.00",Legal Aid Payment Legal Help
Ministry of Justice,LEGAL AID AGENCY,29/07/2015,Legal Help,LEGAL AID FUND,LUQMANI THOMPSON & PARTNERS,140989280,"47,636.00",Legal Aid Payment Legal Help
Ministry of Justice,LEGAL AID AGENCY,29/07/2015,Legal Help,LEGAL AID FUND,BARNES HARRILD & DYER,140989298,"44,941.00",Legal Aid Payment Legal Help
Ministry of Justice,LEGAL AID AGENCY,29/07/2015,Lower Crime,LEGAL AID FUND,BAXENDALE VANZIE SOLICITORS LTD,140989878,"25,600.00",Legal Aid Payment Lower Crime
Ministry of Justice,LEGAL AID AGENCY,29/07/2015,Lower Crime,LEGAL AID FUND,ERIC ROBINSON SOLICITORS,140990048,"26,800.00",Legal Aid Payment Lower Crime
Ministry of Justice,LEGAL AID AGENCY,29/07/2015,Lower Crime,LEGAL AID FUND,CHIVERS SOLICITORS,140990618,"30,860.00",Legal Aid Payment Lower Crime
Ministry of Justice,LEGAL AID AGENCY,29/07/2015,Lower Crime,LEGAL AID FUND,COUSINS TYRER SOLICITORS,140990631,"27,211.00",Legal Aid Payment Lower Crime
Ministry of Justice,LEGAL AID AGENCY,29/07/2015,Legal Help,LEGAL AID FUND,BINDMANS LLP,140988972,"25,000.00",Legal Aid Payment Legal Help
Ministry of Justice,LEGAL AID AGENCY,29/07/2015,Lower Crime,LEGAL AID FUND,WATSON WOODHOUSE SOLICITORS LLP,140989833,"35,000.00",Legal Aid Payment Lower Crime
Ministry of Justice,LEGAL AID AGENCY,29/07/2015,Legal Help,LEGAL AID FUND,QUALITY SOLICITORS CMHT,140989037,"66,629.00",Legal Aid Payment Legal Help
Ministry of Justice,LEGAL AID AGENCY,29/07/2015,Lower Crime,LEGAL AID FUND,KAIM TODNER SOLICITORS LIMITED,140990438,"42,905.00",Legal Aid Payment Lower Crime
Ministry of Justice,LEGAL AID AGENCY,29/07/2015,Lower Crime,LEGAL AID FUND,STEVENS SOLICITORS,140990156,"57,000.00",Legal Aid Payment Lower Crime
Ministry of Justice,LEGAL AID AGENCY,29/07/2015,Lower Crime,LEGAL AID FUND,MCGRATH & CO SOLICITORS,140990167,"30,000.00",Legal Aid Payment Lower Crime
Ministry of Justice,LEGAL AID AGENCY,29/07/2015,Lower Crime,LEGAL AID FUND,PURCELL PARKER LTD,140990169,"85,000.00",Legal Aid Payment Lower Crime
Ministry of Justice,LEGAL AID AGENCY,29/07/2015,Lower Crime,LEGAL AID FUND,CARTWRIGHT KING SOLICITORS,140990248,"47,000.00",Legal Aid Payment Lower Crime
Ministry of Justice,LEGAL AID AGENCY,29/07/2015,Lower Crime,LEGAL AID FUND,SEDGWICK CHUDLEIGH MCKENN SOLICITORS,140990257,"37,500.00",Legal Aid Payment Lower Crime
Ministry of Justice,LEGAL AID AGENCY,29/07/2015,Lower Crime,LEGAL AID FUND,MARTIN MURRAY & ASSOCIATES,140990066,"47,300.00",Legal Aid Payment Lower Crime
Ministry of Justice,LEGAL AID AGENCY,29/07/2015,Lower Crime,LEGAL AID FUND,HENNESSY & HAMMUDI,140990077,"50,000.00",Legal Aid Payment Lower Crime
Ministry of Justice,LEGAL AID AGENCY,29/07/2015,Lower Crime,LEGAL AID FUND,BDH SOLICITORS,140989986,"34,200.00",Legal Aid Payment Lower Crime
Ministry of Justice,LEGAL AID AGENCY,29/07/2015,Lower Crime,LEGAL AID FUND,KEMPS,140990662,"27,797.00",Legal Aid Payment Lower Crime
Ministry of Justice,LEGAL AID AGENCY,29/07/2015,Lower Crime,LEGAL AID FUND,WILSON DEVONALD GRIFFITHS JOHN,140989569,"55,000.00",Legal Aid Payment Lower Crime
Ministry of Justice,LEGAL AID AGENCY,29/07/2015,Lower Crime,LEGAL AID FUND,LLOYD & ROWE,140989572,"40,000.00",Legal Aid Payment Lower Crime
Ministry of Justice,LEGAL AID AGENCY,29/07/2015,Lower Crime,LEGAL AID FUND,GHP LEGAL,140989580,"34,300.00",Legal Aid Payment Lower Crime
Ministry of Justice,LEGAL AID AGENCY,29/07/2015,Lower Crime,LEGAL AID FUND,BHATIA BEST LTD,140989594,"44,000.00",Legal Aid Payment Lower Crime
Ministry of Justice,LEGAL AID AGENCY,29/07/2015,Lower Crime,LEGAL AID FUND,T S LAW LTD,140990232,"27,000.00",Legal Aid Payment Lower Crime
Ministry of Justice,LEGAL AID AGENCY,29/07/2015,Lower Crime,LEGAL AID FUND,ALEXANDER BENNETT,140990244,"27,000.00",Legal Aid Payment Lower Crime
Ministry of Justice,LEGAL AID AGENCY,29/07/2015,Lower Crime,LEGAL AID FUND,METCALFE COPEMAN & PETTEFAR,140989674,"38,800.00",Legal Aid Payment Lower Crime
Ministry of Justice,LEGAL AID AGENCY,29/07/2015,Lower Crime,LEGAL AID FUND,BAILEY NICHOLSON GRAYSON,140989691,"35,000.00",Legal Aid Payment Lower Crime
Ministry of Justice,LEGAL AID AGENCY,29/07/2015,Lower Crime,LEGAL AID FUND,S A LAW CHAMBERS SOLICITORS,140989692,"52,200.00",Legal Aid Payment Lower Crime
Ministry of Justice,LEGAL AID AGENCY,29/07/2015,Legal Help,LEGAL AID FUND,IRIS LAW FIRM LLP T/A ( 'IRIS LAW FIRM' ),140988414,"28,547.00",Legal Aid Payment Legal Help
Ministry of Justice,LEGAL AID AGENCY,29/07/2015,Civil Representation,LEGAL AID FUND,JENNIFER BARKER,140959490,"76,095.00",Legal Aid Payment Civil Representation
Ministry of Justice,LEGAL AID AGENCY,22/07/2015,Civil Representation,LEGAL AID FUND,GEMMA CHAPMAN,140825250,"25,660.80",Legal Aid Payment Civil Representation
Ministry of Justice,LEGAL AID AGENCY,01/07/2015,Legal Help,LEGAL AID FUND,DEIGHTON PIERCE GLYNN LTD,140601627,"30,394.00",Legal Aid Payment Legal Help
Ministry of Justice,LEGAL AID AGENCY,01/07/2015,Civil Representation,LEGAL AID FUND,JI SOLICITORS LTD,140590723,"25,135.06",Legal Aid Payment Civil Representation
Ministry of Justice,LEGAL AID AGENCY,15/07/2015,Higher Crime,LEGAL AID FUND,ANDREW J ROBERTSON QC,140806040,"35,867.05",Legal Aid Payment Higher Crime
Ministry of Justice,LEGAL AID AGENCY,01/07/2015,Higher Crime,LEGAL AID FUND,RUSSELL-COOKE LLP,140625681,"59,793.89",Legal Aid Payment Higher Crime
Ministry of Justice,LEGAL AID AGENCY,01/07/2015,Higher Crime,LEGAL AID FUND,TUCKERS SOLICITORS LLP,140598508,"48,575.38",Legal Aid Payment Higher Crime
Ministry of Justice,LEGAL AID AGENCY,22/07/2015,Civil Representation,LEGAL AID FUND,TRACEY MCLEVY,140829147,"32,595.76",Legal Aid Payment Civil Representation
Ministry of Justice,LEGAL AID AGENCY,29/07/2015,Lower Crime,LEGAL AID FUND,HARRINGTONS LEGAL LLP,140990187,"25,000.00",Legal Aid Payment Lower Crime
Ministry of Justice,LEGAL AID AGENCY,01/07/2015,Lower Crime,LEGAL AID FUND,KESAR & CO SOLICITORS,140635015,"39,304.00",Legal Aid Payment Lower Crime
Ministry of Justice,LEGAL AID AGENCY,29/07/2015,Lower Crime,LEGAL AID FUND,MCGANNS LAW LTD,140989612,"60,300.00",Legal Aid Payment Lower Crime
Ministry of Justice,LEGAL AID AGENCY,29/07/2015,Lower Crime,LEGAL AID FUND,T V EDWARDS LLP,140989760,"100,000.00",Legal Aid Payment Lower Crime
Ministry of Justice,LEGAL AID AGENCY,08/07/2015,Civil Representation,LEGAL AID FUND,BURGES SALMON,140686702,"171,104.09",Legal Aid Payment Civil Representation
Ministry of Justice,LEGAL AID AGENCY,01/07/2015,Legal Help,LEGAL AID FUND,ELDER RAHIMI LIMITED,140633297,"32,225.00",Legal Aid Payment Legal Help
Ministry of Justice,LEGAL AID AGENCY,01/07/2015,Legal Help,LEGAL AID FUND,LAWANA & CO,140632745,"61,800.00",Legal Aid Payment Legal Help
Ministry of Justice,LEGAL AID AGENCY,29/07/2015,Lower Crime,LEGAL AID FUND,KIRWANS,140990532,"80,366.00",Legal Aid Payment Lower Crime
Ministry of Justice,LEGAL AID AGENCY,01/07/2015,Lower Crime,LEGAL AID FUND,SHELLEY & CO,140634355,"27,061.00",Legal Aid Payment Lower Crime
Ministry of Justice,LEGAL AID AGENCY,01/07/2015,Lower Crime,LEGAL AID FUND,DAVID AKE & CO,140634575,"29,906.00",Legal Aid Payment Lower Crime
Ministry of Justice,LEGAL AID AGENCY,01/07/2015,Lower Crime,LEGAL AID FUND,ASHLEY SMITH & CO,140633709,"28,000.00",Legal Aid Payment Lower Crime
Ministry of Justice,LEGAL AID AGENCY,29/07/2015,Civil Representation,LEGAL AID FUND,ALISTAIR W O MACDONALD QC,140898962,"36,676.80",Legal Aid Payment Civil Representation
Ministry of Justice,LEGAL AID AGENCY,01/07/2015,Lower Crime,LEGAL AID FUND,WALLACE MCNALLY,140634154,"30,300.00",Legal Aid Payment Lower Crime
Ministry of Justice,LEGAL AID AGENCY,29/07/2015,Lower Crime,LEGAL AID FUND,TOSSWILL & CO,140990520,"26,477.00",Legal Aid Payment Lower Crime
Ministry of Justice,LEGAL AID AGENCY,01/07/2015,Lower Crime,LEGAL AID FUND,GOLDSTONES SOLICITORS LTD,140633501,"32,400.00",Legal Aid Payment Lower Crime
Ministry of Justice,LEGAL AID AGENCY,01/07/2015,Lower Crime,LEGAL AID FUND,CARTWRIGHT KING SOLICITORS,140634294,"44,656.00",Legal Aid Payment Lower Crime
Ministry of Justice,LEGAL AID AGENCY,29/07/2015,Lower Crime,LEGAL AID FUND,OLLIERS,140990688,"46,029.00",Legal Aid Payment Lower Crime
Ministry of Justice,LEGAL AID AGENCY,01/07/2015,Higher Crime,LEGAL AID FUND,DEIRDRE J CONNOLLY,140612443,"26,539.82",Legal Aid Payment Higher Crime
Ministry of Justice,LEGAL AID AGENCY,29/07/2015,Lower Crime,LEGAL AID FUND,THE JOHNSON PARTNERSHIP,140990219,"40,000.00",Legal Aid Payment Lower Crime
Ministry of Justice,LEGAL AID AGENCY,29/07/2015,Legal Help,LEGAL AID FUND,DUNCAN LEWIS,140984801,"100,000.00",Legal Aid Payment Legal Help
Ministry of Justice,LEGAL AID AGENCY,01/07/2015,Lower Crime,LEGAL AID FUND,DARRYL INGRAM & CO,140633686,"41,400.00",Legal Aid Payment Lower Crime
Ministry of Justice,LEGAL AID AGENCY,29/07/2015,Legal Help,LEGAL AID FUND,PARAGON LAW LTD,140988754,"40,000.00",Legal Aid Payment Legal Help
Ministry of Justice,LEGAL AID AGENCY,01/07/2015,Higher Crime,LEGAL AID FUND,JACOBS & TRICKS,140612775,"116,008.49",Legal Aid Payment Higher Crime
Ministry of Justice,LEGAL AID AGENCY,01/07/2015,Higher Crime,LEGAL AID FUND,CHARLES A BOTT QC,140573655,"37,800.00",Legal Aid Payment Higher Crime
Ministry of Justice,LEGAL AID AGENCY,08/07/2015,Civil Representation,LEGAL AID FUND,MCCOOL PATTERSON HEMSI & CO,140729229,"34,515.28",Legal Aid Payment Civil Representation
Ministry of Justice,LEGAL AID AGENCY,01/07/2015,Lower Crime,LEGAL AID FUND,DAVID PHILLIPS & PARTNERS,140633671,"35,500.00",Legal Aid Payment Lower Crime
Ministry of Justice,LEGAL AID AGENCY,01/07/2015,Lower Crime,LEGAL AID FUND,KELLYS,140634699,"45,278.00",Legal Aid Payment Lower Crime
Ministry of Justice,LEGAL AID AGENCY,29/07/2015,Lower Crime,LEGAL AID FUND,T S LAW LTD,140989763,"27,000.00",Legal Aid Payment Lower Crime
Ministry of Justice,LEGAL AID AGENCY,01/07/2015,Lower Crime,LEGAL AID FUND,TUCKERS SOLICITORS LLP,140633724,"33,000.00",Legal Aid Payment Lower Crime
Ministry of Justice,LEGAL AID AGENCY,01/07/2015,Lower Crime,LEGAL AID FUND,SMITH PARTNERSHIP,140634119,"28,700.00",Legal Aid Payment Lower Crime
Ministry of Justice,LEGAL AID AGENCY,29/07/2015,Lower Crime,LEGAL AID FUND,BAXTER BROWN MCARTHUR SOLICITORS,140989719,"25,100.00",Legal Aid Payment Lower Crime
Ministry of Justice,LEGAL AID AGENCY,01/07/2015,Higher Crime,LEGAL AID FUND,BENN MAGUIRE,140627985,"46,355.63",Legal Aid Payment Higher Crime
Ministry of Justice,LEGAL AID AGENCY,01/07/2015,Lower Crime,LEGAL AID FUND,TILLY BAILEY & IRVINE LLP,140633798,"39,700.00",Legal Aid Payment Lower Crime
Ministry of Justice,LEGAL AID AGENCY,01/07/2015,Civil Representation,LEGAL AID FUND,ERIC R T WALEY,140575744,"39,600.00",Legal Aid Payment Civil Representation
Ministry of Justice,LEGAL AID AGENCY,15/07/2015,Civil Representation,LEGAL AID FUND,ERIC ROBINSON SOLICITORS,140774551,"51,471.45",Legal Aid Payment Civil Representation
Ministry of Justice,LEGAL AID AGENCY,29/07/2015,Lower Crime,LEGAL AID FUND,GUNEY CLARK & RYAN LTD CO,140990478,"31,493.00",Legal Aid Payment Lower Crime
Ministry of Justice,LEGAL AID AGENCY,08/07/2015,Higher Crime,LEGAL AID FUND,POWELL SPENCER AND PARTNERS,140683633,"46,283.38",Legal Aid Payment Higher Crime
Ministry of Justice,LEGAL AID AGENCY,01/07/2015,Lower Crime,LEGAL AID FUND,SHARMA LAW SOLICITORS,140635016,"30,212.00",Legal Aid Payment Lower Crime
Ministry of Justice,LEGAL AID AGENCY,29/07/2015,Lower Crime,LEGAL AID FUND,CONNOR ROSS-BROWN SOLICITORS,140990235,"53,000.00",Legal Aid Payment Lower Crime
Ministry of Justice,LEGAL AID AGENCY,15/07/2015,Civil Representation,LEGAL AID FUND,MACHINS SOLICITORS LLP,140713823,"100,348.32",Legal Aid Payment Civil Representation
Ministry of Justice,LEGAL AID AGENCY,01/07/2015,Lower Crime,LEGAL AID FUND,KIRWANS,140634474,"58,826.00",Legal Aid Payment Lower Crime
Ministry of Justice,LEGAL AID AGENCY,22/07/2015,Civil Representation,LEGAL AID FUND,PEPPERELLS SOLICITORS,140795448,"32,409.25",Legal Aid Payment Civil Representation
Ministry of Justice,LEGAL AID AGENCY,29/07/2015,Lower Crime,LEGAL AID FUND,HASKELL & CO,140990740,"41,515.00",Legal Aid Payment Lower Crime
Ministry of Justice,LEGAL AID AGENCY,29/07/2015,Higher Crime,LEGAL AID FUND,ALPHEGE BELL,140926289,"30,828.77",Legal Aid Payment Higher Crime
Ministry of Justice,LEGAL AID AGENCY,01/07/2015,Legal Help,LEGAL AID FUND,COVENTRY LAW CENTRE LTD,140633015,"25,514.00",Legal Aid Payment Legal Help
Ministry of Justice,LEGAL AID AGENCY,01/07/2015,Legal Help,LEGAL AID FUND,QUALITY SOLICITORS CMHT,140633006,"81,983.00",Legal Aid Payment Legal Help
Ministry of Justice,LEGAL AID AGENCY,29/07/2015,Lower Crime,LEGAL AID FUND,STUART MILLER SOLICITORS LTD,140990490,"120,684.00",Legal Aid Payment Lower Crime
Ministry of Justice,LEGAL AID AGENCY,29/07/2015,Civil Representation,LEGAL AID FUND,JANET C BAZLEY QC,140602234,"47,496.02",Legal Aid Payment Civil Representation
Ministry of Justice,LEGAL AID AGENCY,15/07/2015,Higher Crime,LEGAL AID FUND,COBLEYS LLP,140806575,"98,602.86",Legal Aid Payment Higher Crime
Ministry of Justice,LEGAL AID AGENCY,01/07/2015,Higher Crime,LEGAL AID FUND,DAFYDD H ENOCH QC,140612397,"35,347.97",Legal Aid Payment Higher Crime
Ministry of Justice,LEGAL AID AGENCY,15/07/2015,Higher Crime,LEGAL AID FUND,STOKOE PARTNERSHIP,140805305,"28,755.10",Legal Aid Payment Higher Crime
Ministry of Justice,LEGAL AID AGENCY,29/07/2015,Lower Crime,LEGAL AID FUND,WELLS BURCOMBE LLP,140990373,"37,188.00",Legal Aid Payment Lower Crime
Ministry of Justice,LEGAL AID AGENCY,29/07/2015,Lower Crime,LEGAL AID FUND,VEJA & CO LTD,140989730,"26,300.00",Legal Aid Payment Lower Crime
Ministry of Justice,LEGAL AID AGENCY,01/07/2015,Lower Crime,LEGAL AID FUND,ROBERTSON'S SOLICITORS,140633837,"44,000.00",Legal Aid Payment Lower Crime
Ministry of Justice,LEGAL AID AGENCY,29/07/2015,Legal Help,LEGAL AID FUND,HOWE & CO ***,140989349,"63,910.00",Legal Aid Payment Legal Help
Ministry of Justice,LEGAL AID AGENCY,01/07/2015,Higher Crime,LEGAL AID FUND,JONATHAN J ANDERS,140612711,"30,455.96",Legal Aid Payment Higher Crime
Ministry of Justice,LEGAL AID AGENCY,29/07/2015,Lower Crime,LEGAL AID FUND,BLACKFORDS LLP,140990442,"60,873.00",Legal Aid Payment Lower Crime
Ministry of Justice,LEGAL AID AGENCY,15/07/2015,Civil Representation,LEGAL AID FUND,WEST LONDON LAW SOLICITORS,140762690,"100,000.00",Legal Aid Payment Civil Representation
Ministry of Justice,LEGAL AID AGENCY,29/07/2015,Lower Crime,LEGAL AID FUND,TILLY BAILEY & IRVINE LLP,140989859,"39,700.00",Legal Aid Payment Lower Crime
Ministry of Justice,LEGAL AID AGENCY,01/07/2015,Lower Crime,LEGAL AID FUND,NOBLE SOLICITORS,140633580,"92,000.00",Legal Aid Payment Lower Crime
Ministry of Justice,LEGAL AID AGENCY,08/07/2015,Civil Representation,LEGAL AID FUND,IRWIN MITCHELL LLP,Ledger Transfer Adjustment 812,"798,664.92",Legal Aid Payment Civil Representation
Ministry of Justice,LEGAL AID AGENCY,01/07/2015,Legal Help,LEGAL AID FUND,CAMPBELL JERVIER SOLICITORS LTD,140605667,"34,147.00",Legal Aid Payment Legal Help
Ministry of Justice,LEGAL AID AGENCY,22/07/2015,Higher Crime,LEGAL AID FUND,IMRAN KHAN & PARTNERS,140886983,"89,975.11",Legal Aid Payment Higher Crime
Ministry of Justice,LEGAL AID AGENCY,01/07/2015,Lower Crime,LEGAL AID FUND,ROSS SOLICITORS LTD,140634068,"41,700.00",Legal Aid Payment Lower Crime
Ministry of Justice,LEGAL AID AGENCY,01/07/2015,Lower Crime,LEGAL AID FUND,SILLS & BETTERIDGE LLP,140634300,"25,042.00",Legal Aid Payment Lower Crime
Ministry of Justice,LEGAL AID AGENCY,29/07/2015,Lower Crime,LEGAL AID FUND,BOWDEN JONES SOLICITORS,140990301,"29,118.00",Legal Aid Payment Lower Crime
Ministry of Justice,LEGAL AID AGENCY,29/07/2015,Higher Crime,LEGAL AID FUND,ELITE SOLICITORS,140991626,"27,940.09",Legal Aid Payment Higher Crime
Ministry of Justice,LEGAL AID AGENCY,01/07/2015,Higher Crime,LEGAL AID FUND,SALLIE A BENNETT JENKINS QC,140567323,"31,784.35",Legal Aid Payment Higher Crime
Ministry of Justice,LEGAL AID AGENCY,29/07/2015,Civil Representation,LEGAL AID FUND,ALISTAIR W O MACDONALD QC,140947400,"30,942.00",Legal Aid Payment Civil Representation
Ministry of Justice,LEGAL AID AGENCY,22/07/2015,Legal Help,LEGAL AID FUND,THE COMMUNITY LAW PARTNERSHIP LTD,140900019,"25,500.42",Legal Aid Payment Legal Help
Ministry of Justice,LEGAL AID AGENCY,01/07/2015,Civil Representation,LEGAL AID FUND,HELEN M WRENN,140619975,"44,472.00",Legal Aid Payment Civil Representation
Ministry of Justice,LEGAL AID AGENCY,29/07/2015,Lower Crime,LEGAL AID FUND,HARRIS SOLICITORS,140991017,"26,729.00",Legal Aid Payment Lower Crime
Ministry of Justice,LEGAL AID AGENCY,29/07/2015,Legal Help,LEGAL AID FUND,LAWANA & CO,140988861,"61,800.00",Legal Aid Payment Legal Help
Ministry of Justice,LEGAL AID AGENCY,29/07/2015,Legal Help,LEGAL AID FUND,COLIN JONES CLARKE & HARTLAND SOLICITORS,140984265,"33,848.00",Legal Aid Payment Legal Help
Ministry of Justice,LEGAL AID AGENCY,01/07/2015,Lower Crime,LEGAL AID FUND,GEOFF WHITE & CO,140634698,"47,442.00",Legal Aid Payment Lower Crime
Ministry of Justice,LEGAL AID AGENCY,01/07/2015,Lower Crime,LEGAL AID FUND,ALBIN & CO LTD,140634018,"46,800.00",Legal Aid Payment Lower Crime
Ministry of Justice,LEGAL AID AGENCY,29/07/2015,Lower Crime,LEGAL AID FUND,SUSSEX DEFENCE SOLICITORS,140990044,"40,000.00",Legal Aid Payment Lower Crime
Ministry of Justice,LEGAL AID AGENCY,01/07/2015,Legal Help,LEGAL AID FUND,CROWN HOUSE SOLICITORS,140605638,"26,178.00",Legal Aid Payment Legal Help
Ministry of Justice,LEGAL AID AGENCY,01/07/2015,Higher Crime,LEGAL AID FUND,CARTWRIGHT KING SOLICITORS,140591120,"37,062.37",Legal Aid Payment Higher Crime
Ministry of Justice,LEGAL AID AGENCY,01/07/2015,Lower Crime,LEGAL AID FUND,BELMORES SOLICITORS LTD,140633596,"45,000.00",Legal Aid Payment Lower Crime
Ministry of Justice,LEGAL AID AGENCY,29/07/2015,Legal Help,LEGAL AID FUND,BURKE NIAZI  LTD,140988705,"75,000.00",Legal Aid Payment Legal Help
Ministry of Justice,LEGAL AID AGENCY,08/07/2015,Civil Representation,LEGAL AID FUND,RAMSDENS SOLICITORS LLP,140686698,"60,966.53",Legal Aid Payment Civil Representation
Ministry of Justice,LEGAL AID AGENCY,22/07/2015,Higher Crime,LEGAL AID FUND,A.A MIRSONS SOLICITORS LTD,140911676,"55,787.93",Legal Aid Payment Higher Crime
Ministry of Justice,LEGAL AID AGENCY,01/07/2015,Lower Crime,LEGAL AID FUND,T S LAW LTD,140634180,"27,000.00",Legal Aid Payment Lower Crime
Ministry of Justice,LEGAL AID AGENCY,22/07/2015,Higher Crime,LEGAL AID FUND,DAVID PHILLIPS & PARTNERS,140887171,"59,026.22",Legal Aid Payment Higher Crime
Ministry of Justice,LEGAL AID AGENCY,01/07/2015,Legal Help,LEGAL AID FUND,BANKFIELD HEATH SOLICITORS,140603366,"26,269.00",Legal Aid Payment Legal Help
Ministry of Justice,LEGAL AID AGENCY,01/07/2015,Higher Crime,LEGAL AID FUND,SALLIE A BENNETT JENKINS QC,140568580,"68,127.94",Legal Aid Payment Higher Crime
Ministry of Justice,LEGAL AID AGENCY,01/07/2015,Lower Crime,LEGAL AID FUND,DOBSONS,140633659,"40,500.00",Legal Aid Payment Lower Crime
Ministry of Justice,LEGAL AID AGENCY,29/07/2015,Lower Crime,LEGAL AID FUND,LUMB & MACGILL,140989905,"44,900.00",Legal Aid Payment Lower Crime
Ministry of Justice,LEGAL AID AGENCY,22/07/2015,Civil Representation,LEGAL AID FUND,AVERY NAYLOR LTD,140827068,"29,031.92",Legal Aid Payment Civil Representation
Ministry of Justice,LEGAL AID AGENCY,01/07/2015,Lower Crime,LEGAL AID FUND,BULLIVANT LAW LTD,140633631,"49,000.00",Legal Aid Payment Lower Crime
Ministry of Justice,LEGAL AID AGENCY,01/07/2015,Legal Help,LEGAL AID FUND,BINDMANS LLP,140632775,"25,000.00",Legal Aid Payment Legal Help
Ministry of Justice,LEGAL AID AGENCY,22/07/2015,Higher Crime,LEGAL AID FUND,GARCHA & CO,140873929,"98,602.86",Legal Aid Payment Higher Crime
Ministry of Justice,LEGAL AID AGENCY,29/07/2015,Higher Crime,LEGAL AID FUND,GALBRAITH BRANLEY SOLICITORS,140991623,"58,750.31",Legal Aid Payment Higher Crime
Ministry of Justice,LEGAL AID AGENCY,08/07/2015,Higher Crime,LEGAL AID FUND,STEPHEN MOSES,140667589,"36,332.42",Legal Aid Payment Higher Crime
Ministry of Justice,LEGAL AID AGENCY,01/07/2015,Legal Help,LEGAL AID FUND,ALBANY SOLICITORS,140633123,"27,982.00",Legal Aid Payment Legal Help
Ministry of Justice,LEGAL AID AGENCY,01/07/2015,Lower Crime,LEGAL AID FUND,VHS FLETCHERS,140633553,"28,500.00",Legal Aid Payment Lower Crime
Ministry of Justice,LEGAL AID AGENCY,01/07/2015,Higher Crime,LEGAL AID FUND,KHAN SOLICITORS LTD,140612286,"78,056.93",Legal Aid Payment Higher Crime
Ministry of Justice,LEGAL AID AGENCY,01/07/2015,Higher Crime,LEGAL AID FUND,HUSSAIN SOLICITORS LTD,140612546,"98,602.86",Legal Aid Payment Higher Crime
Ministry of Justice,LEGAL AID AGENCY,01/07/2015,Lower Crime,LEGAL AID FUND,G T STEWART SOLICITORS,140634936,"49,373.00",Legal Aid Payment Lower Crime
Ministry of Justice,LEGAL AID AGENCY,01/07/2015,Lower Crime,LEGAL AID FUND,DAVID GRAY LLP,140633794,"27,000.00",Legal Aid Payment Lower Crime
Ministry of Justice,LEGAL AID AGENCY,29/07/2015,Lower Crime,LEGAL AID FUND,BROOMHEAD & SAUL,140990101,"28,900.00",Legal Aid Payment Lower Crime
Ministry of Justice,LEGAL AID AGENCY,29/07/2015,Lower Crime,LEGAL AID FUND,SAKHI LEGAL SERVICES LTD,140990337,"41,825.00",Legal Aid Payment Lower Crime
Ministry of Justice,LEGAL AID AGENCY,29/07/2015,Higher Crime,LEGAL AID FUND,ESN SOLICITORS,140943292,"73,655.92",Legal Aid Payment Higher Crime
Ministry of Justice,LEGAL AID AGENCY,29/07/2015,Higher Crime,LEGAL AID FUND,KAMRANS SOLICITORS,140991630,"116,008.49",Legal Aid Payment Higher Crime
Ministry of Justice,LEGAL AID AGENCY,08/07/2015,Higher Crime,LEGAL AID FUND,SANSBURY DOUGLAS,140723812,"57,908.89",Legal Aid Payment Higher Crime
Ministry of Justice,LEGAL AID AGENCY,15/07/2015,Civil Representation,LEGAL AID FUND,ISON HARRISON LTD,140787144,"28,515.89",Legal Aid Payment Civil Representation
Ministry of Justice,LEGAL AID AGENCY,01/07/2015,Lower Crime,LEGAL AID FUND,BAILEY NICHOLSON GRAYSON,140633629,"33,500.00",Legal Aid Payment Lower Crime
Ministry of Justice,LEGAL AID AGENCY,01/07/2015,Lower Crime,LEGAL AID FUND,YATES ARDERN,140634601,"28,045.00",Legal Aid Payment Lower Crime
Ministry of Justice,LEGAL AID AGENCY,22/07/2015,Higher Crime,LEGAL AID FUND,PAUL R GREANEY,140911860,"34,020.52",Legal Aid Payment Higher Crime
Ministry of Justice,LEGAL AID AGENCY,01/07/2015,Higher Crime,LEGAL AID FUND,DAVID W LYONS,140568480,"47,286.24",Legal Aid Payment Higher Crime
Ministry of Justice,LEGAL AID AGENCY,29/07/2015,Lower Crime,LEGAL AID FUND,OWEN NASH & CO,140990183,"35,000.00",Legal Aid Payment Lower Crime
Ministry of Justice,LEGAL AID AGENCY,01/07/2015,Lower Crime,LEGAL AID FUND,YARWOOD & STUBLEY,140633773,"47,000.00",Legal Aid Payment Lower Crime
Ministry of Justice,LEGAL AID AGENCY,22/07/2015,Higher Crime,LEGAL AID FUND,HASAN SOLICITORS [ADVOCATE],140910819,"29,668.19",Legal Aid Payment Higher Crime
Ministry of Justice,LEGAL AID AGENCY,29/07/2015,Lower Crime,LEGAL AID FUND,ACHOM & PARTNERS,140991043,"29,068.00",Legal Aid Payment Lower Crime
Ministry of Justice,LEGAL AID AGENCY,01/07/2015,Lower Crime,LEGAL AID FUND,OWEN NASH & CO,140634128,"35,000.00",Legal Aid Payment Lower Crime
Ministry of Justice,LEGAL AID AGENCY,01/07/2015,Legal Help,LEGAL AID FUND,CARTWRIGHT KING SOLICITORS,140633389,"61,578.00",Legal Aid Payment Legal Help
Ministry of Justice,LEGAL AID AGENCY,01/07/2015,Lower Crime,LEGAL AID FUND,REEDS SOLICITORS LTD,140635071,"31,827.00",Legal Aid Payment Lower Crime
Ministry of Justice,LEGAL AID AGENCY,08/07/2015,Higher Crime,LEGAL AID FUND,GQS SOLICITORS,140682560,"29,718.32",Legal Aid Payment Higher Crime
Ministry of Justice,LEGAL AID AGENCY,01/07/2015,Lower Crime,LEGAL AID FUND,ROEBUCKS SOLICITORS,140634641,"30,724.00",Legal Aid Payment Lower Crime
Ministry of Justice,LEGAL AID AGENCY,01/07/2015,Civil Representation,LEGAL AID FUND,MAKIN DIXON SOLICITORS LTD,140626338,"25,740.85",Legal Aid Payment Civil Representation
Ministry of Justice,LEGAL AID AGENCY,29/07/2015,Legal Help,LEGAL AID FUND,MIGRANT LEGAL PROJECT,140981015,"26,498.00",Legal Aid Payment Legal Help
Ministry of Justice,LEGAL AID AGENCY,29/07/2015,Higher Crime,LEGAL AID FUND,NUMBER ONE LAW LLP,140926479,"60,709.84",Legal Aid Payment Higher Crime
Ministry of Justice,LEGAL AID AGENCY,22/07/2015,Higher Crime,LEGAL AID FUND,SAMUEL & CO,140822837,"35,077.32",Legal Aid Payment Higher Crime
Ministry of Justice,LEGAL AID AGENCY,15/07/2015,Higher Crime,LEGAL AID FUND,SIMON CSOKA,140814601,"69,080.06",Legal Aid Payment Higher Crime
Ministry of Justice,LEGAL AID AGENCY,29/07/2015,Legal Help,LEGAL AID FUND,DUNCAN LEWIS,140984630,"83,000.00",Legal Aid Payment Legal Help
Ministry of Justice,LEGAL AID AGENCY,08/07/2015,Higher Crime,LEGAL AID FUND,PURCELL PARKER LTD,140723413,"46,194.13",Legal Aid Payment Higher Crime
Ministry of Justice,LEGAL AID AGENCY,15/07/2015,Higher Crime,LEGAL AID FUND,MICHAEL C DUCK QC,140806974,"67,666.36",Legal Aid Payment Higher Crime
Ministry of Justice,LEGAL AID AGENCY,22/07/2015,Higher Crime,LEGAL AID FUND,FRANCIS J LAIRD,140886907,"63,191.24",Legal Aid Payment Higher Crime
Ministry of Justice,LEGAL AID AGENCY,01/07/2015,Lower Crime,LEGAL AID FUND,WAINWRIGHT & CUMMINS LLP,140633738,"32,000.00",Legal Aid Payment Lower Crime
Ministry of Justice,LEGAL AID AGENCY,29/07/2015,Lower Crime,LEGAL AID FUND,G T STEWART SOLICITORS,140990992,"48,316.00",Legal Aid Payment Lower Crime
Ministry of Justice,LEGAL AID AGENCY,01/07/2015,Higher Crime,LEGAL AID FUND,O'KEEFFE SOLICITORS,140598492,"89,975.11",Legal Aid Payment Higher Crime
Ministry of Justice,LEGAL AID AGENCY,01/07/2015,Higher Crime,LEGAL AID FUND,CUNNINGHAMS LYTHGOE CAPLIN LTD,140637346,"65,592.23",Legal Aid Payment Higher Crime
Ministry of Justice,LEGAL AID AGENCY,01/07/2015,Lower Crime,LEGAL AID FUND,KAIM TODNER SOLICITORS LIMITED,140634383,"45,745.00",Legal Aid Payment Lower Crime
Ministry of Justice,LEGAL AID AGENCY,08/07/2015,Civil Representation,LEGAL AID FUND,PUBLIC INTEREST LAWYERS,140674116,"230,474.21",Legal Aid Payment Civil Representation
Ministry of Justice,LEGAL AID AGENCY,29/07/2015,Legal Help,LEGAL AID FUND,DUNCAN LEWIS,140984637,"100,000.00",Legal Aid Payment Legal Help
Ministry of Justice,LEGAL AID AGENCY,15/07/2015,Higher Crime,LEGAL AID FUND,SOUTHERNS,140737898,"73,820.37",Legal Aid Payment Higher Crime
Ministry of Justice,LEGAL AID AGENCY,29/07/2015,Lower Crime,LEGAL AID FUND,ALLEN HOOLE SOLICITORS ,140990120,"36,000.00",Legal Aid Payment Lower Crime
Ministry of Justice,LEGAL AID AGENCY,01/07/2015,Higher Crime,LEGAL AID FUND,SHAIKH AYUB SOLICITORS,140612784,"78,147.65",Legal Aid Payment Higher Crime
Ministry of Justice,LEGAL AID AGENCY,22/07/2015,Higher Crime,LEGAL AID FUND,HARRIS SOLICITORS,140887033,"89,975.11",Legal Aid Payment Higher Crime
Ministry of Justice,LEGAL AID AGENCY,29/07/2015,Lower Crime,LEGAL AID FUND,SMITH PARTNERSHIP,140990174,"28,700.00",Legal Aid Payment Lower Crime
Ministry of Justice,LEGAL AID AGENCY,01/07/2015,Higher Crime,LEGAL AID FUND,I B B SOLICITORS,140583337,"36,120.91",Legal Aid Payment Higher Crime
Ministry of Justice,LEGAL AID AGENCY,29/07/2015,Lower Crime,LEGAL AID FUND,ASHLEY SMITH & CO,140989774,"28,000.00",Legal Aid Payment Lower Crime
Ministry of Justice,LEGAL AID AGENCY,01/07/2015,Lower Crime,LEGAL AID FUND,JERMAN SAMUELS & PEARSON LLP,140633589,"30,700.00",Legal Aid Payment Lower Crime
Ministry of Justice,LEGAL AID AGENCY,01/07/2015,Lower Crime,LEGAL AID FUND,PURCELL PARKER LTD,140634114,"85,000.00",Legal Aid Payment Lower Crime
Ministry of Justice,LEGAL AID AGENCY,29/07/2015,Lower Crime,LEGAL AID FUND,CRIMINAL DEFENCE SOLICITORS,140989787,"43,200.00",Legal Aid Payment Lower Crime
Ministry of Justice,LEGAL AID AGENCY,22/07/2015,Higher Crime,LEGAL AID FUND,ABR SOLICITORS,140911197,"82,120.11",Legal Aid Payment Higher Crime
Ministry of Justice,LEGAL AID AGENCY,29/07/2015,Legal Help,LEGAL AID FUND,LAWRENCE LUPIN SOLICITORS LTD,140985432,"100,000.00",Legal Aid Payment Legal Help
Ministry of Justice,LEGAL AID AGENCY,01/07/2015,Civil Representation,LEGAL AID FUND,GOODMAN RAY,140546934,"25,506.00",Legal Aid Payment Civil Representation
Ministry of Justice,LEGAL AID AGENCY,01/07/2015,Higher Crime,LEGAL AID FUND,BRUNSKILL LTD,140602839,"35,708.01",Legal Aid Payment Higher Crime
Ministry of Justice,LEGAL AID AGENCY,15/07/2015,Higher Crime,LEGAL AID FUND,HAYLEY A BRICKEL,140805662,"32,497.75",Legal Aid Payment Higher Crime
Ministry of Justice,LEGAL AID AGENCY,08/07/2015,Civil Representation,LEGAL AID FUND,P DOUGLAS EDWARDS,140698223,"27,102.00",Legal Aid Payment Civil Representation
Ministry of Justice,LEGAL AID AGENCY,01/07/2015,Lower Crime,LEGAL AID FUND,REEDS SOLICITORS LTD,140634738,"51,250.00",Legal Aid Payment Lower Crime
Ministry of Justice,LEGAL AID AGENCY,29/07/2015,Lower Crime,LEGAL AID FUND,STEPHENSONS SOLICITORS LLP,140990666,"69,673.00",Legal Aid Payment Lower Crime
Ministry of Justice,LEGAL AID AGENCY,29/07/2015,Higher Crime,LEGAL AID FUND,LEONARD SMITH QC,140949716,"95,800.48",Legal Aid Payment Higher Crime
Ministry of Justice,LEGAL AID AGENCY,29/07/2015,Lower Crime,LEGAL AID FUND,ROBERTSON'S SOLICITORS,140989898,"44,000.00",Legal Aid Payment Lower Crime
Ministry of Justice,LEGAL AID AGENCY,01/07/2015,Legal Help,LEGAL AID FUND,GLEDHILL SOLICITORS,140633033,"54,446.00",Legal Aid Payment Legal Help
Ministry of Justice,LEGAL AID AGENCY,01/07/2015,Lower Crime,LEGAL AID FUND,M B LAW LTD,140634395,"32,501.00",Legal Aid Payment Lower Crime
Ministry of Justice,LEGAL AID AGENCY,08/07/2015,Civil Representation,LEGAL AID FUND,WILLIAM J TYLER,140714250,"42,832.80",Legal Aid Payment Civil Representation
Ministry of Justice,LEGAL AID AGENCY,29/07/2015,Legal Help,LEGAL AID FUND,FAIRWEATHER SOLICITORS LLP,140988930,"26,400.00",Legal Aid Payment Legal Help
Ministry of Justice,LEGAL AID AGENCY,29/07/2015,Lower Crime,LEGAL AID FUND,HARRIS CUFFARO & NICHOLS,140989646,"37,400.00",Legal Aid Payment Lower Crime
Ministry of Justice,LEGAL AID AGENCY,01/07/2015,Lower Crime,LEGAL AID FUND,ALLEN HOOLE SOLICITORS,140634052,"43,600.00",Legal Aid Payment Lower Crime
Ministry of Justice,LEGAL AID AGENCY,29/07/2015,Legal Help,LEGAL AID FUND,BISON SOLICITORS LTD,140984149,"50,654.00",Legal Aid Payment Legal Help
Ministry of Justice,LEGAL AID AGENCY,01/07/2015,Higher Crime,LEGAL AID FUND,RAHMAN RAVELLI SOLICTORS LTD,140612303,"98,602.86",Legal Aid Payment Higher Crime
Ministry of Justice,LEGAL AID AGENCY,15/07/2015,Higher Crime,LEGAL AID FUND,RUSSELL-COOKE LLP,140806150,"25,153.84",Legal Aid Payment Higher Crime
Ministry of Justice,LEGAL AID AGENCY,01/07/2015,Civil Representation,LEGAL AID FUND,LEIGH DAY & CO,140555561,"25,739.64",Legal Aid Payment Civil Representation
Ministry of Justice,LEGAL AID AGENCY,15/07/2015,Civil Representation,LEGAL AID FUND,DAVID BARNEY & CO,140132159,"84,306.90",Legal Aid Payment Civil Representation
Ministry of Justice,LEGAL AID AGENCY,29/07/2015,Lower Crime,LEGAL AID FUND,THE JOHNSON PARTNERSHIP,140989609,"230,000.00",Legal Aid Payment Lower Crime
Ministry of Justice,LEGAL AID AGENCY,08/07/2015,Higher Crime,LEGAL AID FUND,NICHOLAS S CLARKE QC,140724358,"76,720.67",Legal Aid Payment Higher Crime
Ministry of Justice,LEGAL AID AGENCY,10/07/2015,Civil Representation,LEGAL AID FUND,MOORE BLATCH RESOLVE LLP,Ledger Transfer Adjustment 823,"199,056.30",Legal Aid Payment Civil Representation
Ministry of Justice,LEGAL AID AGENCY,29/07/2015,Lower Crime,LEGAL AID FUND,DALTON HOLMES GRAY,140990499,"27,944.00",Legal Aid Payment Lower Crime
Ministry of Justice,LEGAL AID AGENCY,01/07/2015,Lower Crime,LEGAL AID FUND,HAMER CHILDS,140634121,"25,000.00",Legal Aid Payment Lower Crime
Ministry of Justice,LEGAL AID AGENCY,29/07/2015,Lower Crime,LEGAL AID FUND,BIRDS SOLICITORS LTD,140989716,"52,700.00",Legal Aid Payment Lower Crime
Ministry of Justice,LEGAL AID AGENCY,01/07/2015,Lower Crime,LEGAL AID FUND,SMITH & DAWSON,140634079,"32,900.00",Legal Aid Payment Lower Crime
Ministry of Justice,LEGAL AID AGENCY,29/07/2015,Civil Representation,LEGAL AID FUND,BELL LAMB & JOYNSON,140946238,"33,093.88",Legal Aid Payment Civil Representation
Ministry of Justice,LEGAL AID AGENCY,29/07/2015,Higher Crime,LEGAL AID FUND,JANES SOLICITORS,140963483,"50,118.88",Legal Aid Payment Higher Crime
Ministry of Justice,LEGAL AID AGENCY,29/07/2015,Lower Crime,LEGAL AID FUND,MURRAY BRANKIN,140990233,"25,600.00",Legal Aid Payment Lower Crime
Ministry of Justice,LEGAL AID AGENCY,01/07/2015,Lower Crime,LEGAL AID FUND,CARTWRIGHT CLARK LTD,140634727,"45,026.00",Legal Aid Payment Lower Crime
Ministry of Justice,LEGAL AID AGENCY,08/07/2015,Civil Representation,LEGAL AID FUND,IRWIN MITCHELL LLP,Ledger Transfer Adjustment 808,"118,417.80",Legal Aid Payment Civil Representation
Ministry of Justice,LEGAL AID AGENCY,08/07/2015,Higher Crime,LEGAL AID FUND,HASAN SOLICITORS,140654034,"57,298.43",Legal Aid Payment Higher Crime
Ministry of Justice,LEGAL AID AGENCY,08/07/2015,Civil Representation,LEGAL AID FUND,IRWIN MITCHELL LLP,Ledger Transfer Adjustment 806,"82,525.75",Legal Aid Payment Civil Representation
Ministry of Justice,LEGAL AID AGENCY,01/07/2015,Higher Crime,LEGAL AID FUND,BUXTON RYAN & CO,140612321,"98,602.86",Legal Aid Payment Higher Crime
Ministry of Justice,LEGAL AID AGENCY,29/07/2015,Civil Representation,LEGAL AID FUND,FMW LAW LTD,140978238,"25,749.17",Legal Aid Payment Civil Representation
Ministry of Justice,LEGAL AID AGENCY,29/07/2015,Legal Help,LEGAL AID FUND,GUILE NICHOLAS-INC DONALD GALBRAITH & CO,140988811,"45,000.00",Legal Aid Payment Legal Help
Ministry of Justice,LEGAL AID AGENCY,29/07/2015,Higher Crime,LEGAL AID FUND,ABBEY SOLICITORS,140955706,"50,514.19",Legal Aid Payment Higher Crime
Ministry of Justice,LEGAL AID AGENCY,29/07/2015,Lower Crime,LEGAL AID FUND,BHATIA BEST LTD,140989590,"100,000.00",Legal Aid Payment Lower Crime
Ministry of Justice,LEGAL AID AGENCY,01/07/2015,Lower Crime,LEGAL AID FUND,DRISCOLL YOUNG SOLICITORS LIMITED,140634222,"30,524.00",Legal Aid Payment Lower Crime
Ministry of Justice,LEGAL AID AGENCY,01/07/2015,Lower Crime,LEGAL AID FUND,PALMERS CRIMINAL DEFENCE SOLICITORS,140633968,"38,000.00",Legal Aid Payment Lower Crime
Ministry of Justice,LEGAL AID AGENCY,15/07/2015,Higher Crime,LEGAL AID FUND,ZMS LEGAL LTD TA ZMS SOLICITORS,140806945,"32,720.92",Legal Aid Payment Higher Crime
Ministry of Justice,LEGAL AID AGENCY,29/07/2015,Lower Crime,LEGAL AID FUND,SHEPHERD REYNOLDS SOLICITORS LTD,140990727,"52,122.00",Legal Aid Payment Lower Crime
Ministry of Justice,LEGAL AID AGENCY,15/07/2015,Higher Crime,LEGAL AID FUND,PHILIP A HOLDEN,140805954,"31,443.89",Legal Aid Payment Higher Crime
Ministry of Justice,LEGAL AID AGENCY,22/07/2015,Civil Representation,LEGAL AID FUND,ELPHA M LECOINTE,140796077,"55,404.00",Legal Aid Payment Civil Representation
Ministry of Justice,LEGAL AID AGENCY,15/07/2015,Higher Crime,LEGAL AID FUND,PAUL R HYNES QC,140806457,"74,521.90",Legal Aid Payment Higher Crime
Ministry of Justice,LEGAL AID AGENCY,01/07/2015,Lower Crime,LEGAL AID FUND,GHP LEGAL,140633515,"34,300.00",Legal Aid Payment Lower Crime
Ministry of Justice,LEGAL AID AGENCY,01/07/2015,Higher Crime,LEGAL AID FUND,ADAM D DAVIS QC,140584574,"80,695.07",Legal Aid Payment Higher Crime
Ministry of Justice,LEGAL AID AGENCY,29/07/2015,Lower Crime,LEGAL AID FUND,BRADY EASTWOOD PIERCE & STEWART,140990484,"35,505.00",Legal Aid Payment Lower Crime
Ministry of Justice,LEGAL AID AGENCY,01/07/2015,Legal Help,LEGAL AID FUND,FISHER JONES GREENWOOD LLP,140604496,"29,795.00",Legal Aid Payment Legal Help
Ministry of Justice,LEGAL AID AGENCY,01/07/2015,Lower Crime,LEGAL AID FUND,QUALITYSOLICITORS HPJV,140634221,"29,199.00",Legal Aid Payment Lower Crime
Ministry of Justice,LEGAL AID AGENCY,01/07/2015,Lower Crime,LEGAL AID FUND,STERNBERG REED SOLICITORS,140633697,"55,000.00",Legal Aid Payment Lower Crime
Ministry of Justice,LEGAL AID AGENCY,29/07/2015,Lower Crime,LEGAL AID FUND,THE JOHNSON PARTNERSHIP,140990240,"41,600.00",Legal Aid Payment Lower Crime
Ministry of Justice,LEGAL AID AGENCY,29/07/2015,Lower Crime,LEGAL AID FUND,BURTON COPELAND LLP,140990726,"55,874.00",Legal Aid Payment Lower Crime
Ministry of Justice,LEGAL AID AGENCY,01/07/2015,Lower Crime,LEGAL AID FUND,WATSON WOODHOUSE SOLICITORS LLP,140633777,"28,300.00",Legal Aid Payment Lower Crime
Ministry of Justice,LEGAL AID AGENCY,22/07/2015,Higher Crime,LEGAL AID FUND,RUTH JONES,140873953,"26,909.64",Legal Aid Payment Higher Crime
Ministry of Justice,LEGAL AID AGENCY,01/07/2015,Civil Representation,LEGAL AID FUND,NANDINI DUTTA,140446222,"32,529.60",Legal Aid Payment Civil Representation
Ministry of Justice,LEGAL AID AGENCY,29/07/2015,Legal Help,LEGAL AID FUND,DUNCAN LEWIS,140984651,"68,400.00",Legal Aid Payment Legal Help
Ministry of Justice,LEGAL AID AGENCY,29/07/2015,Lower Crime,LEGAL AID FUND,CJH GREENHILL COOPER SOLICITORS,140989623,"33,500.00",Legal Aid Payment Lower Crime
Ministry of Justice,LEGAL AID AGENCY,29/07/2015,Lower Crime,LEGAL AID FUND,NEEDHAM POULIER LTD,140990521,"35,817.00",Legal Aid Payment Lower Crime
Ministry of Justice,LEGAL AID AGENCY,01/07/2015,Legal Help,LEGAL AID FUND,PARAGON LAW LTD,140632933,"40,000.00",Legal Aid Payment Legal Help
Ministry of Justice,LEGAL AID AGENCY,01/07/2015,Civil Representation,LEGAL AID FUND,PEARSONS,140615163,"41,421.25",Legal Aid Payment Civil Representation
Ministry of Justice,LEGAL AID AGENCY,29/07/2015,Higher Crime,LEGAL AID FUND,RICHARD P ATKINS,140993298,"58,862.48",Legal Aid Payment Higher Crime
Ministry of Justice,LEGAL AID AGENCY,01/07/2015,Lower Crime,LEGAL AID FUND,WOOLLCOMBE & YONGE,140634754,"28,512.00",Legal Aid Payment Lower Crime
Ministry of Justice,LEGAL AID AGENCY,29/07/2015,Legal Help,LEGAL AID FUND,TRP SOLICITORS LTD,140988780,"26,600.00",Legal Aid Payment Legal Help
Ministry of Justice,LEGAL AID AGENCY,29/07/2015,Lower Crime,LEGAL AID FUND,BULLIVANT LAW LTD,140989693,"49,000.00",Legal Aid Payment Lower Crime
Ministry of Justice,LEGAL AID AGENCY,01/07/2015,Lower Crime,LEGAL AID FUND,DALTON HOLMES GRAY,140634440,"41,188.00",Legal Aid Payment Lower Crime
Ministry of Justice,LEGAL AID AGENCY,29/07/2015,Lower Crime,LEGAL AID FUND,HARTHILLS,140989881,"36,600.00",Legal Aid Payment Lower Crime
Ministry of Justice,LEGAL AID AGENCY,01/07/2015,Lower Crime,LEGAL AID FUND,NELSON LEGAL LLP,140635012,"31,363.00",Legal Aid Payment Lower Crime
Ministry of Justice,LEGAL AID AGENCY,29/07/2015,Lower Crime,LEGAL AID FUND,"GAMMON,PIERCY & GAIGER",140990772,"29,577.00",Legal Aid Payment Lower Crime
Ministry of Justice,LEGAL AID AGENCY,29/07/2015,Civil Representation,LEGAL AID FUND,HOGANS,140814595,"26,446.10",Legal Aid Payment Civil Representation
Ministry of Justice,LEGAL AID AGENCY,29/07/2015,Lower Crime,LEGAL AID FUND,DAVID GRAY LLP,140989855,"27,000.00",Legal Aid Payment Lower Crime
Ministry of Justice,LEGAL AID AGENCY,01/07/2015,Lower Crime,LEGAL AID FUND,NEEDHAM POULIER LTD,140634463,"36,187.00",Legal Aid Payment Lower Crime
Ministry of Justice,LEGAL AID AGENCY,29/07/2015,Lower Crime,LEGAL AID FUND,DAVIES & JONES SOLICITORS,140989574,"33,600.00",Legal Aid Payment Lower Crime
Ministry of Justice,LEGAL AID AGENCY,01/07/2015,Lower Crime,LEGAL AID FUND,WILFORD SMITH & CO LTD,140634545,"29,456.00",Legal Aid Payment Lower Crime
Ministry of Justice,LEGAL AID AGENCY,01/07/2015,Higher Crime,LEGAL AID FUND,STEPHEN C MEADOWCROFT QC,140583654,"80,198.27",Legal Aid Payment Higher Crime
Ministry of Justice,LEGAL AID AGENCY,01/07/2015,Lower Crime,LEGAL AID FUND,HARRINGTONS LEGAL LLP,140634132,"25,000.00",Legal Aid Payment Lower Crime
Ministry of Justice,LEGAL AID AGENCY,01/07/2015,Lower Crime,LEGAL AID FUND,SANSBURY DOUGLAS,140634162,"54,000.00",Legal Aid Payment Lower Crime
Ministry of Justice,LEGAL AID AGENCY,29/07/2015,Civil Representation,LEGAL AID FUND,FRANK T FEEHAN QC,140825249,"29,062.80",Legal Aid Payment Civil Representation
Ministry of Justice,LEGAL AID AGENCY,01/07/2015,Higher Crime,LEGAL AID FUND,SANJEEV M SHARMA,140636010,"41,348.04",Legal Aid Payment Higher Crime
Ministry of Justice,LEGAL AID AGENCY,01/07/2015,Higher Crime,LEGAL AID FUND,IMRAN KHAN & PARTNERS,140611771,"41,021.35",Legal Aid Payment Higher Crime
Ministry of Justice,LEGAL AID AGENCY,01/07/2015,Lower Crime,LEGAL AID FUND,SWAIN & CO SOLICITORS LLP,140633991,"34,500.00",Legal Aid Payment Lower Crime
Ministry of Justice,LEGAL AID AGENCY,01/07/2015,Higher Crime,LEGAL AID FUND,MORGAN CULLEN BALL LTD,140612569,"107,574.07",Legal Aid Payment Higher Crime
Ministry of Justice,LEGAL AID AGENCY,29/07/2015,Lower Crime,LEGAL AID FUND,MURRAYS PARTNERSHIP,140990505,"28,411.00",Legal Aid Payment Lower Crime
Ministry of Justice,LEGAL AID AGENCY,22/07/2015,Higher Crime,LEGAL AID FUND,BERNARD CHILL & AXTELL,140873924,"34,467.40",Legal Aid Payment Higher Crime
Ministry of Justice,LEGAL AID AGENCY,29/07/2015,Lower Crime,LEGAL AID FUND,MICHAEL PURDON,140990572,"40,291.00",Legal Aid Payment Lower Crime
Ministry of Justice,LEGAL AID AGENCY,29/07/2015,Legal Help,LEGAL AID FUND,WIMBLEDON SOLICITORS,140988405,"34,090.00",Legal Aid Payment Legal Help
Ministry of Justice,LEGAL AID AGENCY,01/07/2015,Civil Representation,LEGAL AID FUND,CHADWICK LAWRENCE LLP,140606946,"77,968.87",Legal Aid Payment Civil Representation
Ministry of Justice,LEGAL AID AGENCY,01/07/2015,Legal Help,LEGAL AID FUND,ROEBUCKS SOLICITORS,140633319,"25,771.00",Legal Aid Payment Legal Help
Ministry of Justice,LEGAL AID AGENCY,01/07/2015,Lower Crime,LEGAL AID FUND,SUNDIP MURRIA SOLICITORS,140634138,"29,100.00",Legal Aid Payment Lower Crime
Ministry of Justice,LEGAL AID AGENCY,08/07/2015,Higher Crime,LEGAL AID FUND,J D SPICER ZEB,140723525,"35,268.76",Legal Aid Payment Higher Crime
Ministry of Justice,LEGAL AID AGENCY,08/07/2015,Civil Representation,LEGAL AID FUND,IRWIN MITCHELL LLP,Ledger Transfer Adjustment 813,"2,230,582.37",Legal Aid Payment Civil Representation
Ministry of Justice,LEGAL AID AGENCY,01/07/2015,Lower Crime,LEGAL AID FUND,DUNCAN LEWIS,140634417,"36,687.00",Legal Aid Payment Lower Crime
Ministry of Justice,LEGAL AID AGENCY,22/07/2015,Higher Crime,LEGAL AID FUND,FORBES SOLICITORS,140911559,"65,871.26",Legal Aid Payment Higher Crime
Ministry of Justice,LEGAL AID AGENCY,08/07/2015,Civil Representation,LEGAL AID FUND,SORREL H DIXON,140661299,"28,254.63",Legal Aid Payment Civil Representation
Ministry of Justice,LEGAL AID AGENCY,01/07/2015,Higher Crime,LEGAL AID FUND,JBR MORGAN LTD,140637100,"85,133.38",Legal Aid Payment Higher Crime
Ministry of Justice,LEGAL AID AGENCY,01/07/2015,Lower Crime,LEGAL AID FUND,GRAYSON WILLIS BENNETT,140634547,"36,557.00",Legal Aid Payment Lower Crime
Ministry of Justice,LEGAL AID AGENCY,08/07/2015,Civil Representation,LEGAL AID FUND,ROMA F WHELAN,140658648,"27,075.60",Legal Aid Payment Civil Representation
Ministry of Justice,LEGAL AID AGENCY,01/07/2015,Higher Crime,LEGAL AID FUND,SARAH-KATE MCINTYRE,140635798,"34,570.44",Legal Aid Payment Higher Crime
Ministry of Justice,LEGAL AID AGENCY,01/07/2015,Lower Crime,LEGAL AID FUND,COLIN JONES CLARKE & HARTLAND SOLICITORS,140634202,"27,284.00",Legal Aid Payment Lower Crime
Ministry of Justice,LEGAL AID AGENCY,15/07/2015,Higher Crime,LEGAL AID FUND,CATHERINE RABAIOTTI,140755730,"26,909.64",Legal Aid Payment Higher Crime
Ministry of Justice,LEGAL AID AGENCY,15/07/2015,Civil Representation,LEGAL AID FUND,PATON & CARPENTER,140587408,"27,713.90",Legal Aid Payment Civil Representation
Ministry of Justice,LEGAL AID AGENCY,01/07/2015,Higher Crime,LEGAL AID FUND,COBLEYS LLP-ADVOCATE,140636677,"39,929.86",Legal Aid Payment Higher Crime
Ministry of Justice,LEGAL AID AGENCY,01/07/2015,Lower Crime,LEGAL AID FUND,RILEY HAYES & CO,140634148,"52,800.00",Legal Aid Payment Lower Crime
Ministry of Justice,LEGAL AID AGENCY,29/07/2015,Lower Crime,LEGAL AID FUND,JAMES MURRAY SOLICITORS,140990536,"30,913.00",Legal Aid Payment Lower Crime
Ministry of Justice,LEGAL AID AGENCY,29/07/2015,Higher Crime,LEGAL AID FUND,SHAUN M SMITH QC,140991655,"36,650.65",Legal Aid Payment Higher Crime
Ministry of Justice,LEGAL AID AGENCY,29/07/2015,Lower Crime,LEGAL AID FUND,DUNCAN LEWIS,140990472,"27,081.00",Legal Aid Payment Lower Crime
Ministry of Justice,LEGAL AID AGENCY,01/07/2015,Lower Crime,LEGAL AID FUND,SMITH PARTNERSHIP,140633559,"27,000.00",Legal Aid Payment Lower Crime
Ministry of Justice,LEGAL AID AGENCY,08/07/2015,Higher Crime,LEGAL AID FUND,GUDRUN YOUNG,140682318,"25,962.12",Legal Aid Payment Higher Crime
Ministry of Justice,LEGAL AID AGENCY,29/07/2015,Higher Crime,LEGAL AID FUND,LLOYDS PR SOLICITORS,140992396,"36,751.64",Legal Aid Payment Higher Crime
Ministry of Justice,LEGAL AID AGENCY,01/07/2015,Lower Crime,LEGAL AID FUND,IRVINE THANVI NATAS SOLICITORS,140633638,"58,000.00",Legal Aid Payment Lower Crime
Ministry of Justice,LEGAL AID AGENCY,22/07/2015,Higher Crime,LEGAL AID FUND,DJMS SOLICITORS LTD,140911401,"29,664.55",Legal Aid Payment Higher Crime
Ministry of Justice,LEGAL AID AGENCY,10/07/2015,Civil Representation,LEGAL AID FUND,SIMPSON MILLAR LLP,Ledger Transfer Adjustment 819,"57,424.48",Legal Aid Payment Civil Representation
Ministry of Justice,LEGAL AID AGENCY,29/07/2015,Legal Help,LEGAL AID FUND,JOHN FOWLERS LLP,140988831,"45,400.00",Legal Aid Payment Legal Help
Ministry of Justice,LEGAL AID AGENCY,01/07/2015,Lower Crime,LEGAL AID FUND,HEALEY COLBON,140633579,"26,100.00",Legal Aid Payment Lower Crime
Ministry of Justice,LEGAL AID AGENCY,22/07/2015,Higher Crime,LEGAL AID FUND,CONNOR ROSS-BROWN SOLICITORS,140887009,"89,975.11",Legal Aid Payment Higher Crime
Ministry of Justice,LEGAL AID AGENCY,01/07/2015,Lower Crime,LEGAL AID FUND,BHATIA BEST LTD,140633529,"44,000.00",Legal Aid Payment Lower Crime
Ministry of Justice,LEGAL AID AGENCY,15/07/2015,Higher Crime,LEGAL AID FUND,FARLEYS SOLICITORS LLP,140806775,"58,787.62",Legal Aid Payment Higher Crime
Ministry of Justice,LEGAL AID AGENCY,01/07/2015,Lower Crime,LEGAL AID FUND,BROOMHEAD & SAUL,140634044,"28,900.00",Legal Aid Payment Lower Crime
Ministry of Justice,LEGAL AID AGENCY,29/07/2015,Lower Crime,LEGAL AID FUND,THE JOHNSON PARTNERSHIP,140989613,"64,000.00",Legal Aid Payment Lower Crime
Ministry of Justice,LEGAL AID AGENCY,01/07/2015,Lower Crime,LEGAL AID FUND,HILL TWINE,140635095,"26,198.00",Legal Aid Payment Lower Crime
Ministry of Justice,LEGAL AID AGENCY,08/07/2015,Legal Help,LEGAL AID FUND,BLAVO & CO SOLICITORS LTD,140732822,"95,000.00",Legal Aid Payment Legal Help
Ministry of Justice,LEGAL AID AGENCY,22/07/2015,Civil Representation,LEGAL AID FUND,LEIGH DAY & CO,140810207,"75,000.00",Legal Aid Payment Civil Representation
Ministry of Justice,LEGAL AID AGENCY,29/07/2015,Lower Crime,LEGAL AID FUND,HDH LAW,140990220,"30,000.00",Legal Aid Payment Lower Crime
Ministry of Justice,LEGAL AID AGENCY,01/07/2015,Lower Crime,LEGAL AID FUND,ERIC ROBINSON SOLICITORS,140633990,"26,800.00",Legal Aid Payment Lower Crime
Ministry of Justice,LEGAL AID AGENCY,01/07/2015,Civil Representation,LEGAL AID FUND,KATE MATHER,140573193,"42,305.90",Legal Aid Payment Civil Representation
Ministry of Justice,LEGAL AID AGENCY,29/07/2015,Lower Crime,LEGAL AID FUND,CRIMINAL DEFENCE MILTON KEYNES LTD,140990059,"30,700.00",Legal Aid Payment Lower Crime
Ministry of Justice,LEGAL AID AGENCY,08/07/2015,Higher Crime,LEGAL AID FUND,KANGS SOLICITORS,140712205,"26,104.47",Legal Aid Payment Higher Crime
Ministry of Justice,LEGAL AID AGENCY,01/07/2015,Higher Crime,LEGAL AID FUND,MURRAYS SOLICITORS,140612610,"116,008.49",Legal Aid Payment Higher Crime
Ministry of Justice,LEGAL AID AGENCY,29/07/2015,Legal Help,LEGAL AID FUND,DUNCAN LEWIS,140984790,"100,000.00",Legal Aid Payment Legal Help
Ministry of Justice,LEGAL AID AGENCY,01/07/2015,Lower Crime,LEGAL AID FUND,G T STEWART SOLICITORS,140634450,"52,664.00",Legal Aid Payment Lower Crime
Ministry of Justice,LEGAL AID AGENCY,01/07/2015,Lower Crime,LEGAL AID FUND,MICHAEL PURDON,140634517,"47,968.00",Legal Aid Payment Lower Crime
Ministry of Justice,LEGAL AID AGENCY,08/07/2015,Higher Crime,LEGAL AID FUND,J DEXTER DIAS,140668490,"36,522.77",Legal Aid Payment Higher Crime
Ministry of Justice,LEGAL AID AGENCY,01/07/2015,Lower Crime,LEGAL AID FUND,HENRY HYAMS,140633857,"63,800.00",Legal Aid Payment Lower Crime
Ministry of Justice,LEGAL AID AGENCY,29/07/2015,Lower Crime,LEGAL AID FUND,JOHN ONIONS SOLICITORS,140990849,"57,695.00",Legal Aid Payment Lower Crime
Ministry of Justice,LEGAL AID AGENCY,01/07/2015,Lower Crime,LEGAL AID FUND,KEMPS,140634603,"28,282.00",Legal Aid Payment Lower Crime
Ministry of Justice,LEGAL AID AGENCY,01/07/2015,Higher Crime,LEGAL AID FUND,RAHMAN RAVELLI SOLICTORS LTD,140597616,"52,704.13",Legal Aid Payment Higher Crime
Ministry of Justice,LEGAL AID AGENCY,22/07/2015,Higher Crime,LEGAL AID FUND,THE JOHNSON PARTNERSHIP,140873004,"43,494.22",Legal Aid Payment Higher Crime
Ministry of Justice,LEGAL AID AGENCY,15/07/2015,Higher Crime,LEGAL AID FUND,MCMILLAN WILLIAMS SOLICITORS LTD,140768562,"50,612.98",Legal Aid Payment Higher Crime
Ministry of Justice,LEGAL AID AGENCY,01/07/2015,Legal Help,LEGAL AID FUND,DAVID GRAY LLP,140633360,"33,274.00",Legal Aid Payment Legal Help
Ministry of Justice,LEGAL AID AGENCY,22/07/2015,Higher Crime,LEGAL AID FUND,ABV SOLICITORS,140886973,"116,008.49",Legal Aid Payment Higher Crime
Ministry of Justice,LEGAL AID AGENCY,01/07/2015,Lower Crime,LEGAL AID FUND,MARTIN MURRAY & ASSOCIATES,140634009,"64,200.00",Legal Aid Payment Lower Crime
Ministry of Justice,LEGAL AID AGENCY,29/07/2015,Lower Crime,LEGAL AID FUND,OLIVER D'SA SOLICITORS,140990330,"50,410.00",Legal Aid Payment Lower Crime
Ministry of Justice,LEGAL AID AGENCY,29/07/2015,Lower Crime,LEGAL AID FUND,JORDANS LLP,140990594,"27,385.00",Legal Aid Payment Lower Crime
Ministry of Justice,LEGAL AID AGENCY,01/07/2015,Lower Crime,LEGAL AID FUND,G T STEWART SOLICITORS,140634931,"25,600.00",Legal Aid Payment Lower Crime
Ministry of Justice,LEGAL AID AGENCY,01/07/2015,Legal Help,LEGAL AID FUND,BLAVO & CO SOLICITORS LTD,140605390,"38,782.00",Legal Aid Payment Legal Help
Ministry of Justice,LEGAL AID AGENCY,29/07/2015,Lower Crime,LEGAL AID FUND,JOHN DELANEY & CO SOLICITORS,140989923,"38,000.00",Legal Aid Payment Lower Crime
Ministry of Justice,LEGAL AID AGENCY,01/07/2015,Higher Crime,LEGAL AID FUND,ABV SOLICITORS,140612588,"89,528.74",Legal Aid Payment Higher Crime
Ministry of Justice,LEGAL AID AGENCY,29/07/2015,Lower Crime,LEGAL AID FUND,GEPP & SONS SOLICITORS,140989666,"30,000.00",Legal Aid Payment Lower Crime
Ministry of Justice,LEGAL AID AGENCY,01/07/2015,Lower Crime,LEGAL AID FUND,LLOYD & ROWE,140633507,"40,000.00",Legal Aid Payment Lower Crime
Ministry of Justice,LEGAL AID AGENCY,29/07/2015,Legal Help,LEGAL AID FUND,KESAR & CO SOLICITORS,140985878,"31,355.00",Legal Aid Payment Legal Help
Ministry of Justice,LEGAL AID AGENCY,29/07/2015,Lower Crime,LEGAL AID FUND,HENRY HYAMS,140989919,"33,300.00",Legal Aid Payment Lower Crime
Ministry of Justice,LEGAL AID AGENCY,22/07/2015,Higher Crime,LEGAL AID FUND,QUALITYSOLICITORS JOHN DONKIN,140812352,"44,775.12",Legal Aid Payment Higher Crime
Ministry of Justice,LEGAL AID AGENCY,08/07/2015,Civil Representation,LEGAL AID FUND,ATKINS HOPE SOLICITORS LIMITED,140672065,"30,190.21",Legal Aid Payment Civil Representation
Ministry of Justice,LEGAL AID AGENCY,01/07/2015,Lower Crime,LEGAL AID FUND,STUART MILLER SOLICITORS LTD,140602970,"43,167.00",Legal Aid Payment Lower Crime
Ministry of Justice,LEGAL AID AGENCY,22/07/2015,Higher Crime,LEGAL AID FUND,SMITH & GRAHAM,140887703,"29,664.55",Legal Aid Payment Higher Crime
Ministry of Justice,LEGAL AID AGENCY,29/07/2015,Lower Crime,LEGAL AID FUND,PEARSON CAULFIELD,140990574,"31,435.00",Legal Aid Payment Lower Crime
Ministry of Justice,LEGAL AID AGENCY,29/07/2015,Higher Crime,LEGAL AID FUND,G T STEWART SOLICITORS,140956349,"25,428.58",Legal Aid Payment Higher Crime
Ministry of Justice,LEGAL AID AGENCY,22/07/2015,Higher Crime,LEGAL AID FUND,PATRICK HARRINGTON QC,140887325,"26,437.91",Legal Aid Payment Higher Crime
Ministry of Justice,LEGAL AID AGENCY,29/07/2015,Legal Help,LEGAL AID FUND,OBINNA BARANTA & CO SOLICITORS,140984141,"35,184.00",Legal Aid Payment Legal Help
Ministry of Justice,LEGAL AID AGENCY,01/07/2015,Legal Help,LEGAL AID FUND,STEEL & SHAMASH,140632785,"30,000.00",Legal Aid Payment Legal Help
Ministry of Justice,LEGAL AID AGENCY,08/07/2015,Higher Crime,LEGAL AID FUND,HEALEY KENYON MCATEER SOLICITORS,140652835,"51,439.68",Legal Aid Payment Higher Crime
Ministry of Justice,LEGAL AID AGENCY,22/07/2015,Higher Crime,LEGAL AID FUND,THE JOHNSON PARTNERSHIP,140822694,"129,088.88",Legal Aid Payment Higher Crime
Ministry of Justice,LEGAL AID AGENCY,29/07/2015,Lower Crime,LEGAL AID FUND,TUCKERS SOLICITORS LLP,140989788,"33,000.00",Legal Aid Payment Lower Crime
Ministry of Justice,LEGAL AID AGENCY,01/07/2015,Lower Crime,LEGAL AID FUND,J D SPICER ZEB,140634400,"130,832.00",Legal Aid Payment Lower Crime
Ministry of Justice,LEGAL AID AGENCY,01/07/2015,Higher Crime,LEGAL AID FUND,LAM & MEERABUX SOLICITORS,140598466,"102,675.53",Legal Aid Payment Higher Crime
Ministry of Justice,LEGAL AID AGENCY,01/07/2015,Lower Crime,LEGAL AID FUND,INGRAMS SOLICITORS,140633869,"31,400.00",Legal Aid Payment Lower Crime
Ministry of Justice,LEGAL AID AGENCY,29/07/2015,Legal Help,LEGAL AID FUND,ROEBUCKS SOLICITORS,140989385,"28,856.00",Legal Aid Payment Legal Help
Ministry of Justice,LEGAL AID AGENCY,01/07/2015,Higher Crime,LEGAL AID FUND,WILLIAM N EMLYN JONES,140637114,"31,205.69",Legal Aid Payment Higher Crime
Ministry of Justice,LEGAL AID AGENCY,22/07/2015,Higher Crime,LEGAL AID FUND,HOWARD BERNSTEIN SOLICITORS,140823023,"29,664.55",Legal Aid Payment Higher Crime
Ministry of Justice,LEGAL AID AGENCY,29/07/2015,Higher Crime,LEGAL AID FUND,JANES SOLICITORS,140963488,"121,825.04",Legal Aid Payment Higher Crime
Ministry of Justice,LEGAL AID AGENCY,29/07/2015,Legal Help,LEGAL AID FUND,RMNJ SOLICITORS,140989265,"45,267.00",Legal Aid Payment Legal Help
Ministry of Justice,LEGAL AID AGENCY,01/07/2015,Lower Crime,LEGAL AID FUND,ALAN HARRIS SOLICITORS LTD,140634040,"30,500.00",Legal Aid Payment Lower Crime
Ministry of Justice,LEGAL AID AGENCY,22/07/2015,Higher Crime,LEGAL AID FUND,FEDON P KAZANTZIS,140880402,"27,852.38",Legal Aid Payment Higher Crime
Ministry of Justice,LEGAL AID AGENCY,22/07/2015,Higher Crime,LEGAL AID FUND,OLIVER M JARVIS,140886400,"36,131.28",Legal Aid Payment Higher Crime
Ministry of Justice,LEGAL AID AGENCY,29/07/2015,Lower Crime,LEGAL AID FUND,LLOYDS PR SOLICITORS,140990374,"33,837.00",Legal Aid Payment Lower Crime
Ministry of Justice,LEGAL AID AGENCY,29/07/2015,Lower Crime,LEGAL AID FUND,DRISCOLL YOUNG SOLICITORS LIMITED,140990273,"28,643.00",Legal Aid Payment Lower Crime
Ministry of Justice,LEGAL AID AGENCY,01/07/2015,Higher Crime,LEGAL AID FUND,AB MACKENZIE SOLICITORS,140584389,"38,008.33",Legal Aid Payment Higher Crime
Ministry of Justice,LEGAL AID AGENCY,01/07/2015,Lower Crime,LEGAL AID FUND,BARRETT & NELLIGAN SOLICITORS LTD,140633932,"46,300.00",Legal Aid Payment Lower Crime
Ministry of Justice,LEGAL AID AGENCY,29/07/2015,Legal Help,LEGAL AID FUND,EDWARDS DUTHIE,140989286,"28,780.00",Legal Aid Payment Legal Help
Ministry of Justice,LEGAL AID AGENCY,08/07/2015,Lower Crime,LEGAL AID FUND,O'GARRA'S SOLICITORS,140712602,"42,159.00",Legal Aid Payment Lower Crime
Ministry of Justice,LEGAL AID AGENCY,01/07/2015,Civil Representation,LEGAL AID FUND,LESTER MORRILL INC DAVIES GORE LOMAX,140507131,"25,540.81",Legal Aid Payment Civil Representation
Ministry of Justice,LEGAL AID AGENCY,01/07/2015,Lower Crime,LEGAL AID FUND,LAWTONS,140633577,"35,300.00",Legal Aid Payment Lower Crime
Ministry of Justice,LEGAL AID AGENCY,29/07/2015,Civil Representation,LEGAL AID FUND,YOUNG & CO SOLICITORS LTD,140947366,"40,698.32",Legal Aid Payment Civil Representation
Ministry of Justice,LEGAL AID AGENCY,29/07/2015,Lower Crime,LEGAL AID FUND,TUCKERS SOLICITORS LLP,140990001,"80,900.00",Legal Aid Payment Lower Crime
Ministry of Justice,LEGAL AID AGENCY,29/07/2015,Lower Crime,LEGAL AID FUND,VHS FLETCHERS,140989614,"66,500.00",Legal Aid Payment Lower Crime
Ministry of Justice,LEGAL AID AGENCY,01/07/2015,Lower Crime,LEGAL AID FUND,JSP LAW LTD,140634987,"68,496.00",Legal Aid Payment Lower Crime
Ministry of Justice,LEGAL AID AGENCY,22/07/2015,Civil Representation,LEGAL AID FUND,WTB SOLICITORS LLP,140877867,"27,119.91",Legal Aid Payment Civil Representation
Ministry of Justice,LEGAL AID AGENCY,29/07/2015,Higher Crime,LEGAL AID FUND,MATTHEW S BUCKLAND,140961415,"44,762.40",Legal Aid Payment Higher Crime
Ministry of Justice,LEGAL AID AGENCY,01/07/2015,Lower Crime,LEGAL AID FUND,LHD SOLICITORS LTD,140633885,"60,000.00",Legal Aid Payment Lower Crime
Ministry of Justice,LEGAL AID AGENCY,01/07/2015,Lower Crime,LEGAL AID FUND,MURRAY BRANKIN,140634181,"32,600.00",Legal Aid Payment Lower Crime
Ministry of Justice,LEGAL AID AGENCY,29/07/2015,Civil Representation,LEGAL AID FUND,JONATHAN R B ADLER,140978301,"39,138.00",Legal Aid Payment Civil Representation
Ministry of Justice,LEGAL AID AGENCY,01/07/2015,Lower Crime,LEGAL AID FUND,THE JOHNSON PARTNERSHIP,140633549,"64,000.00",Legal Aid Payment Lower Crime
Ministry of Justice,LEGAL AID AGENCY,29/07/2015,Lower Crime,LEGAL AID FUND,JOSEPH HILL & CO,140989741,"26,300.00",Legal Aid Payment Lower Crime
Ministry of Justice,LEGAL AID AGENCY,01/07/2015,Higher Crime,LEGAL AID FUND,HARDING EVANS LLP,140635334,"43,028.80",Legal Aid Payment Higher Crime
Ministry of Justice,LEGAL AID AGENCY,01/07/2015,Lower Crime,LEGAL AID FUND,VEJA & CO LTD,140633666,"36,300.00",Legal Aid Payment Lower Crime
Ministry of Justice,LEGAL AID AGENCY,29/07/2015,Lower Crime,LEGAL AID FUND,KYLE LEGAL PRACTICE,140990913,"31,822.00",Legal Aid Payment Lower Crime
Ministry of Justice,LEGAL AID AGENCY,29/07/2015,Higher Crime,LEGAL AID FUND,M & M SOLICITORS ,140991632,"35,052.83",Legal Aid Payment Higher Crime
Ministry of Justice,LEGAL AID AGENCY,01/07/2015,Higher Crime,LEGAL AID FUND,PARRY DAVIES CLWYD JONES & LLOYD LLP,140612299,"107,970.13",Legal Aid Payment Higher Crime
Ministry of Justice,LEGAL AID AGENCY,22/07/2015,Higher Crime,LEGAL AID FUND,ASHMANS SOLICITORS,140822636,"67,105.79",Legal Aid Payment Higher Crime
Ministry of Justice,LEGAL AID AGENCY,01/07/2015,Higher Crime,LEGAL AID FUND,DUNCAN LEWIS,140612562,"115,566.73",Legal Aid Payment Higher Crime
Ministry of Justice,LEGAL AID AGENCY,01/07/2015,Lower Crime,LEGAL AID FUND,MCSORLEY LEWIS LAW LTD,140633506,"25,000.00",Legal Aid Payment Lower Crime
Ministry of Justice,LEGAL AID AGENCY,08/07/2015,Civil Representation,LEGAL AID FUND,RICHARD BUXTON,140698221,"26,059.81",Legal Aid Payment Civil Representation
Ministry of Justice,LEGAL AID AGENCY,01/07/2015,Lower Crime,LEGAL AID FUND,HINE SOLICITORS,140634943,"39,563.00",Legal Aid Payment Lower Crime
Ministry of Justice,LEGAL AID AGENCY,08/07/2015,Higher Crime,LEGAL AID FUND,MOHAMMED & CO,140667729,"50,670.20",Legal Aid Payment Higher Crime
Ministry of Justice,LEGAL AID AGENCY,01/07/2015,Lower Crime,LEGAL AID FUND,STUART MILLER SOLICITORS LTD,140602969,"49,000.00",Legal Aid Payment Lower Crime
Ministry of Justice,LEGAL AID AGENCY,29/07/2015,Lower Crime,LEGAL AID FUND,SMITH & DAWSON,140990136,"32,900.00",Legal Aid Payment Lower Crime
Ministry of Justice,LEGAL AID AGENCY,01/07/2015,Lower Crime,LEGAL AID FUND,ROY FOREMAN & CO SOLICITORS,140633855,"34,000.00",Legal Aid Payment Lower Crime
Ministry of Justice,LEGAL AID AGENCY,01/07/2015,Civil Representation,LEGAL AID FUND,REEDS SOLICITORS LTD,140623950,"44,541.84",Legal Aid Payment Civil Representation
Ministry of Justice,LEGAL AID AGENCY,01/07/2015,Legal Help,LEGAL AID FUND,HALLIDAY REEVES LAW FIRM,140590730,"27,989.00",Legal Aid Payment Legal Help
Ministry of Justice,LEGAL AID AGENCY,08/07/2015,Higher Crime,LEGAL AID FUND,ELAINE STAPLETON,140723753,"34,878.31",Legal Aid Payment Higher Crime
Ministry of Justice,LEGAL AID AGENCY,29/07/2015,Lower Crime,LEGAL AID FUND,HAMER CHILDS,140990176,"25,000.00",Legal Aid Payment Lower Crime
Ministry of Justice,LEGAL AID AGENCY,29/07/2015,Lower Crime,LEGAL AID FUND,WATSON WOODHOUSE SOLICITORS LLP,140989838,"28,300.00",Legal Aid Payment Lower Crime
Ministry of Justice,LEGAL AID AGENCY,01/07/2015,Lower Crime,LEGAL AID FUND,JORDANS LLP,140634540,"27,934.00",Legal Aid Payment Lower Crime
Ministry of Justice,LEGAL AID AGENCY,01/07/2015,Lower Crime,LEGAL AID FUND,HASKELL & CO,140634686,"33,032.00",Legal Aid Payment Lower Crime
Ministry of Justice,LEGAL AID AGENCY,15/07/2015,Higher Crime,LEGAL AID FUND,KIRWANS,140782928,"87,699.91",Legal Aid Payment Higher Crime
Ministry of Justice,LEGAL AID AGENCY,01/07/2015,Legal Help,LEGAL AID FUND,APPLEMAN LEGAL,140605676,"39,594.00",Legal Aid Payment Legal Help
Ministry of Justice,LEGAL AID AGENCY,22/07/2015,Civil Representation,LEGAL AID FUND,PEARSONS,140827442,"37,016.23",Legal Aid Payment Civil Representation
Ministry of Justice,LEGAL AID AGENCY,01/07/2015,Lower Crime,LEGAL AID FUND,CROWE HUMBLE WESENCRAFT,140633796,"61,700.00",Legal Aid Payment Lower Crime
Ministry of Justice,LEGAL AID AGENCY,22/07/2015,Higher Crime,LEGAL AID FUND,WALTERS SOLICITORS,140887159,"44,581.83",Legal Aid Payment Higher Crime
Ministry of Justice,LEGAL AID AGENCY,29/07/2015,Legal Help,LEGAL AID FUND,FOUNTAIN SOLICITORS LTD,140988839,"42,000.00",Legal Aid Payment Legal Help
Ministry of Justice,LEGAL AID AGENCY,29/07/2015,Lower Crime,LEGAL AID FUND,OSLERS SOLICITORS,140989665,"50,200.00",Legal Aid Payment Lower Crime
Ministry of Justice,LEGAL AID AGENCY,01/07/2015,Higher Crime,LEGAL AID FUND,ALAN P KENT QC,140567665,"58,689.76",Legal Aid Payment Higher Crime
Ministry of Justice,LEGAL AID AGENCY,01/07/2015,Legal Help,LEGAL AID FUND,BLAVO & CO SOLICITORS LTD,140590478,"234,798.00",Legal Aid Payment Legal Help
Ministry of Justice,LEGAL AID AGENCY,01/07/2015,Lower Crime,LEGAL AID FUND,GUNEY CLARK & RYAN LTD CO,140634421,"30,886.00",Legal Aid Payment Lower Crime
Ministry of Justice,LEGAL AID AGENCY,08/07/2015,Legal Help,LEGAL AID FUND,BLAVO & CO SOLICITORS LTD,140732823,"55,000.00",Legal Aid Payment Legal Help
Ministry of Justice,LEGAL AID AGENCY,22/07/2015,Civil Representation,LEGAL AID FUND,BOYS & MAUGHAN,140831242,"29,117.18",Legal Aid Payment Civil Representation
Ministry of Justice,LEGAL AID AGENCY,01/07/2015,Higher Crime,LEGAL AID FUND,CORKER BINNING,140574488,"35,657.82",Legal Aid Payment Higher Crime
Ministry of Justice,LEGAL AID AGENCY,15/07/2015,Higher Crime,LEGAL AID FUND,CHARLES LANGLEY,140754891,"25,502.98",Legal Aid Payment Higher Crime
Ministry of Justice,LEGAL AID AGENCY,08/07/2015,Civil Representation,LEGAL AID FUND,STEEL & SHAMASH,140675353,"26,061.15",Legal Aid Payment Civil Representation
Ministry of Justice,LEGAL AID AGENCY,29/07/2015,Legal Help,LEGAL AID FUND,STEEL & SHAMASH,140988919,"30,000.00",Legal Aid Payment Legal Help
Ministry of Justice,LEGAL AID AGENCY,22/07/2015,Higher Crime,LEGAL AID FUND,THE JOHNSON PARTNERSHIP,140836504,"116,008.49",Legal Aid Payment Higher Crime
Ministry of Justice,LEGAL AID AGENCY,01/07/2015,Lower Crime,LEGAL AID FUND,ROWE SPARKES SOLICITORS LTD,140633996,"40,000.00",Legal Aid Payment Lower Crime
Ministry of Justice,LEGAL AID AGENCY,22/07/2015,Civil Representation,LEGAL AID FUND,MACKINTOSH LAW,140826974,"47,338.24",Legal Aid Payment Civil Representation
Ministry of Justice,LEGAL AID AGENCY,29/07/2015,Lower Crime,LEGAL AID FUND,T V EDWARDS LLP,140991113,"29,494.00",Legal Aid Payment Lower Crime
Ministry of Justice,LEGAL AID AGENCY,08/07/2015,Higher Crime,LEGAL AID FUND,JOSEPH HILL & CO-ADVOCATE,140683111,"37,616.95",Legal Aid Payment Higher Crime
Ministry of Justice,LEGAL AID AGENCY,01/07/2015,Lower Crime,LEGAL AID FUND,MURRAYS PARTNERSHIP,140634447,"29,175.00",Legal Aid Payment Lower Crime
Ministry of Justice,LEGAL AID AGENCY,29/07/2015,Legal Help,LEGAL AID FUND,STEPHENSONS SOLICITORS LLP,140946681,"30,745.94",Legal Aid Payment Legal Help
Ministry of Justice,LEGAL AID AGENCY,01/07/2015,Lower Crime,LEGAL AID FUND,SEDGWICK CHUDLEIGH MCKENN SOLICITORS,140634205,"29,756.00",Legal Aid Payment Lower Crime
Ministry of Justice,LEGAL AID AGENCY,01/07/2015,Lower Crime,LEGAL AID FUND,COBLEYS LLP,140634484,"31,252.00",Legal Aid Payment Lower Crime
Ministry of Justice,LEGAL AID AGENCY,15/07/2015,Higher Crime,LEGAL AID FUND,SWITALSKI'S LTD,140806100,"65,378.40",Legal Aid Payment Higher Crime
Ministry of Justice,LEGAL AID AGENCY,29/07/2015,Lower Crime,LEGAL AID FUND,ROSS SOLICITORS LTD,140990124,"41,700.00",Legal Aid Payment Lower Crime
Ministry of Justice,LEGAL AID AGENCY,01/07/2015,Lower Crime,LEGAL AID FUND,TRANTERS CRIMINAL LAW PRACTICE,140633941,"32,500.00",Legal Aid Payment Lower Crime
Ministry of Justice,LEGAL AID AGENCY,29/07/2015,Legal Help,LEGAL AID FUND,TY ARIAN LTD,140925902,"53,554.50",Legal Aid Payment Legal Help
Ministry of Justice,LEGAL AID AGENCY,01/07/2015,Lower Crime,LEGAL AID FUND,JERMAN SAMUELS & PEARSON LLP,140633590,"25,500.00",Legal Aid Payment Lower Crime
Ministry of Justice,LEGAL AID AGENCY,29/07/2015,Higher Crime,LEGAL AID FUND,FITZGERALD SOLICITORS,140991615,"57,712.69",Legal Aid Payment Higher Crime
Ministry of Justice,LEGAL AID AGENCY,30/07/2015,Civil Representation,LEGAL AID FUND,M JAYNE PYE,140554686,"61,569.60",Legal Aid Payment Civil Representation
Ministry of Justice,LEGAL AID AGENCY,31/07/2015,Higher Crime,LEGAL AID FUND,COBLEYS LLP,140806089,"39,795.08",Legal Aid Payment Higher Crime
Ministry of Justice,LEGAL AID AGENCY,29/07/2015,Higher Crime,LEGAL AID FUND,FREEMANS SOLICITORS.,140942686,"35,825.27",Legal Aid Payment Higher Crime
Ministry of Justice,LEGAL AID AGENCY,29/07/2015,Higher Crime,LEGAL AID FUND,STEPHENSONS SOLICITORS LLP,140992807,"27,744.00",Legal Aid Payment Higher Crime
Ministry of Justice,LEGAL AID AGENCY,16/07/2015,Higher Crime,LEGAL AID FUND,ROBERT LIZAR,140783141,"74,592.87",Legal Aid Payment Higher Crime
Ministry of Justice,LEGAL AID AGENCY,29/07/2015,Legal Help,LEGAL AID FUND,PETER EDWARDS LAW LTD,140988812,"59,200.00",Legal Aid Payment Legal Help
Ministry of Justice,LEGAL AID AGENCY,29/07/2015,Lower Crime,LEGAL AID FUND,QUALITYSOLICITORS HPJV,140990272,"25,050.00",Legal Aid Payment Lower Crime
Ministry of Justice,LEGAL AID AGENCY,22/07/2015,Higher Crime,LEGAL AID FUND,ROWE SPARKES SOLICITORS LTD,140822622,"107,970.13",Legal Aid Payment Higher Crime
Ministry of Justice,LEGAL AID AGENCY,01/07/2015,Lower Crime,LEGAL AID FUND,SAUNDERS SOLICITORS LTD,140633716," 25,700.00 ",Legal Aid Payment Lower Crime
Ministry of Justice,LEGAL AID AGENCY,22/07/2015,Higher Crime,LEGAL AID FUND,GRACELAND SOLICITORS,140911189," 34,311.85 ",Legal Aid Payment Higher Crime
Ministry of Justice,LEGAL AID AGENCY,01/07/2015,Lower Crime,LEGAL AID FUND,QS JACKSON CANTER LTD,140635072," 85,343.00 ",Legal Aid Payment Lower Crime
Ministry of Justice,LEGAL AID AGENCY,01/07/2015,Lower Crime,LEGAL AID FUND,SJ LAW SOLICITORS,140634407," 43,146.00 ",Legal Aid Payment Lower Crime
Ministry of Justice,LEGAL AID AGENCY,08/07/2015,Higher Crime,LEGAL AID FUND,NIGEL SANGSTER QC,140728717," 57,358.80 ",Legal Aid Payment Higher Crime
Ministry of Justice,LEGAL AID AGENCY,15/07/2015,Higher Crime,LEGAL AID FUND,JASON M BARTFELD,140756261," 40,228.67 ",Legal Aid Payment Higher Crime
Ministry of Justice,LEGAL AID AGENCY,01/07/2015,Lower Crime,LEGAL AID FUND,BLACKFORDS LLP,140634387," 71,369.00 ",Legal Aid Payment Lower Crime
Ministry of Justice,LEGAL AID AGENCY,29/07/2015,Lower Crime,LEGAL AID FUND,SJ LAW SOLICITORS,140990461," 46,767.00 ",Legal Aid Payment Lower Crime
Ministry of Justice,LEGAL AID AGENCY,01/07/2015,Higher Crime,LEGAL AID FUND,OLLIERS,140612602," 29,543.16 ",Legal Aid Payment Higher Crime
Ministry of Justice,LEGAL AID AGENCY,29/07/2015,Civil Representation,LEGAL AID FUND,EDWARD HAYES LLP,140900860," 25,512.84 ",Legal Aid Payment Civil Representation
Ministry of Justice,LEGAL AID AGENCY,29/07/2015,Legal Help,LEGAL AID FUND,ELDER RAHIMI LIMITED,140988483," 25,762.00 ",Legal Aid Payment Legal Help
Ministry of Justice,LEGAL AID AGENCY,29/07/2015,Lower Crime,LEGAL AID FUND,BSB SOLICITORS,140989706," 25,300.00 ",Legal Aid Payment Lower Crime
Ministry of Justice,LEGAL AID AGENCY,29/07/2015,Lower Crime,LEGAL AID FUND,RICHARDSON SOLICITORS,140990040," 27,700.00 ",Legal Aid Payment Lower Crime
Ministry of Justice,LEGAL AID AGENCY,01/07/2015,Lower Crime,LEGAL AID FUND,THE JOHNSON PARTNERSHIP,140633545," 230,000.00 ",Legal Aid Payment Lower Crime
Ministry of Justice,LEGAL AID AGENCY,01/07/2015,Lower Crime,LEGAL AID FUND,JOHN ONIONS SOLICITORS,140634795," 59,448.00 ",Legal Aid Payment Lower Crime
Ministry of Justice,LEGAL AID AGENCY,29/07/2015,Legal Help,LEGAL AID FUND,SWAIN & CO SOLICITORS LLP,140988837," 41,300.00 ",Legal Aid Payment Legal Help
Ministry of Justice,LEGAL AID AGENCY,08/07/2015,Higher Crime,LEGAL AID FUND,J D SPICER ZEB,140724023," 47,567.11 ",Legal Aid Payment Higher Crime
Ministry of Justice,LEGAL AID AGENCY,07/07/2015,Civil Representation,LEGAL AID FUND,POTTER REES LTD,Ledger Transfer Adjustment 816," 62,012.51 ",Legal Aid Payment Civil Representation
Ministry of Justice,LEGAL AID AGENCY,01/07/2015,Lower Crime,LEGAL AID FUND,J D SOLICITORS,140634908," 38,011.00 ",Legal Aid Payment Lower Crime
Ministry of Justice,LEGAL AID AGENCY,01/07/2015,Lower Crime,LEGAL AID FUND,NUMBER ONE LAW LLP,140634846," 41,163.00 ",Legal Aid Payment Lower Crime
Ministry of Justice,LEGAL AID AGENCY,08/07/2015,Higher Crime,LEGAL AID FUND,O'KEEFFE SOLICITORS,140683365," 89,851.01 ",Legal Aid Payment Higher Crime
Ministry of Justice,LEGAL AID AGENCY,01/07/2015,Lower Crime,LEGAL AID FUND,RODNEY WARREN & CO LTD,140633960," 31,000.00 ",Legal Aid Payment Lower Crime
Ministry of Justice,LEGAL AID AGENCY,01/07/2015,Civil Representation,LEGAL AID FUND,PHOENIX LEGAL GROUP,140575571," 44,035.43 ",Legal Aid Payment Civil Representation
Ministry of Justice,LEGAL AID AGENCY,22/07/2015,Higher Crime,LEGAL AID FUND,YASMIN & SHAID SOLICITORS LTD,140836486," 89,975.11 ",Legal Aid Payment Higher Crime
Ministry of Justice,LEGAL AID AGENCY,29/07/2015,Lower Crime,LEGAL AID FUND,HEALEY COLBON,140989644," 30,000.00 ",Legal Aid Payment Lower Crime
Ministry of Justice,LEGAL AID AGENCY,08/07/2015,Higher Crime,LEGAL AID FUND,DRAYCOTT BROWNE LTD,140683029," 35,597.46 ",Legal Aid Payment Higher Crime
Ministry of Justice,LEGAL AID AGENCY,29/07/2015,Lower Crime,LEGAL AID FUND,MPR SOLICITORS LLP,140989796," 26,000.00 ",Legal Aid Payment Lower Crime
Ministry of Justice,LEGAL AID AGENCY,01/07/2015,Higher Crime,LEGAL AID FUND,QS JACKSON CANTER LTD-ADVOCATE,140568505," 30,800.09 ",Legal Aid Payment Higher Crime
Ministry of Justice,LEGAL AID AGENCY,15/07/2015,Civil Representation,LEGAL AID FUND,WANNOPS LLP,140746196," 26,174.89 ",Legal Aid Payment Civil Representation
Ministry of Justice,LEGAL AID AGENCY,15/07/2015,Higher Crime,LEGAL AID FUND,SAILESH MEHTA,140782776," 34,218.26 ",Legal Aid Payment Higher Crime
Ministry of Justice,LEGAL AID AGENCY,29/07/2015,Lower Crime,LEGAL AID FUND,NUMBER ONE LAW LLP,140990903," 38,051.00 ",Legal Aid Payment Lower Crime
Ministry of Justice,LEGAL AID AGENCY,29/07/2015,Lower Crime,LEGAL AID FUND,CARTWRIGHT KING SOLICITORS,140990353," 31,475.00 ",Legal Aid Payment Lower Crime
Ministry of Justice,LEGAL AID AGENCY,22/07/2015,Higher Crime,LEGAL AID FUND,GULAM M AHMED,140872632,"29,594.11",Legal Aid Payment Higher Crime
Ministry of Justice,LEGAL AID AGENCY,08/07/2015,Higher Crime,LEGAL AID FUND,LLOYDS PR SOLICITORS,140667405,"51,984.26",Legal Aid Payment Higher Crime
Ministry of Justice,LEGAL AID AGENCY,29/07/2015,Lower Crime,LEGAL AID FUND,BESWICKS SOLICITORS LLP,140990865,"25,051.00",Legal Aid Payment Lower Crime
Ministry of Justice,LEGAL AID AGENCY,29/07/2015,Legal Help,LEGAL AID FUND,THOMPSON & CO,140988860,"30,400.00",Legal Aid Payment Legal Help
Ministry of Justice,LEGAL AID AGENCY,22/07/2015,Higher Crime,LEGAL AID FUND,SHAIKH AYUB SOLICITORS,140822752,"89,975.11",Legal Aid Payment Higher Crime
Ministry of Justice,LEGAL AID AGENCY,22/07/2015,Higher Crime,LEGAL AID FUND,MURRAYS SOLICITORS,140886987,"116,008.49",Legal Aid Payment Higher Crime
Ministry of Justice,LEGAL AID AGENCY,29/07/2015,Lower Crime,LEGAL AID FUND,WELLS BURCOMBE LLP,140991007,"56,050.00",Legal Aid Payment Lower Crime
Ministry of Justice,LEGAL AID AGENCY,29/07/2015,Civil Representation,LEGAL AID FUND,SANDRA FISHER,140840711,"47,161.55",Legal Aid Payment Civil Representation
Ministry of Justice,LEGAL AID AGENCY,29/07/2015,Lower Crime,LEGAL AID FUND,WESSEX SOLICITORS CHAMBERS,140990212," 60,000.00 ",Legal Aid Payment Lower Crime
Ministry of Justice,LEGAL AID AGENCY,29/07/2015,Lower Crime,LEGAL AID FUND,JOHN FULLER & PARTNERS,140990372,"32,055.00",Legal Aid Payment Lower Crime
Ministry of Justice,LEGAL AID AGENCY,01/07/2015,Higher Crime,LEGAL AID FUND,STEWART PATTERSON,140584644,"29,057.06",Legal Aid Payment Higher Crime
Ministry of Justice,LEGAL AID AGENCY,22/07/2015,Higher Crime,LEGAL AID FUND,SBG SOLICITORS,140887002,"107,574.07",Legal Aid Payment Higher Crime
Ministry of Justice,LEGAL AID AGENCY,15/07/2015,Higher Crime,LEGAL AID FUND,YASIN A PATEL,140806345,"37,549.03",Legal Aid Payment Higher Crime
Ministry of Justice,LEGAL AID AGENCY,29/07/2015,Higher Crime,LEGAL AID FUND,TUCKERS SOLICITORS LLP,140993352,"85,165.56",Legal Aid Payment Higher Crime
Ministry of Justice,LEGAL AID AGENCY,29/07/2015,Higher Crime,LEGAL AID FUND,ANNETTE P HENRY,140955615,"55,360.28",Legal Aid Payment Higher Crime
Ministry of Justice,LEGAL AID AGENCY,22/07/2015,Higher Crime,LEGAL AID FUND,QUALITYSOLICITORS KNIGHT POLSON,140822600,"36,120.91",Legal Aid Payment Higher Crime
Ministry of Justice,LEGAL AID AGENCY,29/07/2015,Higher Crime,LEGAL AID FUND,STEPHEN FIDLER & CO-ADVOCATE,140992281,"31,617.84",Legal Aid Payment Higher Crime
Ministry of Justice,LEGAL AID AGENCY,01/07/2015,Higher Crime,LEGAL AID FUND,HARVEYS,140612782,"85,855.08",Legal Aid Payment Higher Crime
Ministry of Justice,LEGAL AID AGENCY,01/07/2015,Legal Help,LEGAL AID FUND,M H LEGAL,140632911,"25,700.00",Legal Aid Payment Legal Help
Ministry of Justice,LEGAL AID AGENCY,15/07/2015,Higher Crime,LEGAL AID FUND,HENRY HYAMS,140806922,"29,297.41",Legal Aid Payment Higher Crime
Ministry of Justice,LEGAL AID AGENCY,01/07/2015,Legal Help,LEGAL AID FUND,BISON SOLICITORS LTD,140605639,"41,235.00",Legal Aid Payment Legal Help
Ministry of Justice,LEGAL AID AGENCY,15/07/2015,Higher Crime,LEGAL AID FUND,BIVONAS LLP,140762831,"27,992.78",Legal Aid Payment Higher Crime
Ministry of Justice,LEGAL AID AGENCY,08/07/2015,Civil Representation,LEGAL AID FUND,LAWSON LEWIS BLAKERS,140687051,"44,381.04",Legal Aid Payment Civil Representation
Ministry of Justice,LEGAL AID AGENCY,29/07/2015,Lower Crime,LEGAL AID FUND,INGRAMS SOLICITORS,140989931,"31,400.00",Legal Aid Payment Lower Crime
Ministry of Justice,LEGAL AID AGENCY,01/07/2015,Lower Crime,LEGAL AID FUND,AMOSU ROBINSHAW,140634466,"44,722.00",Legal Aid Payment Lower Crime
Ministry of Justice,LEGAL AID AGENCY,22/07/2015,Higher Crime,LEGAL AID FUND,JOSEPH HILL & CO,140872528,"27,355.60",Legal Aid Payment Higher Crime
Ministry of Justice,LEGAL AID AGENCY,01/07/2015,Lower Crime,LEGAL AID FUND,TUCKERS SOLICITORS LLP,140633719,"120,000.00",Legal Aid Payment Lower Crime
Ministry of Justice,LEGAL AID AGENCY,29/07/2015,Lower Crime,LEGAL AID FUND,HARRINGTONS SOLICITORS LTD,140990042,"26,800.00",Legal Aid Payment Lower Crime
Ministry of Justice,LEGAL AID AGENCY,01/07/2015,Higher Crime,LEGAL AID FUND,FRITCHLEY GOLDSMITH LLP,140612575,"107,574.07",Legal Aid Payment Higher Crime
Ministry of Justice,LEGAL AID AGENCY,01/07/2015,Lower Crime,LEGAL AID FUND,KAIM TODNER SOLICITORS LIMITED,140634382,"37,808.00",Legal Aid Payment Lower Crime
Ministry of Justice,LEGAL AID AGENCY,01/07/2015,Lower Crime,LEGAL AID FUND,DUNCAN LEWIS,140633695,"120,900.00",Legal Aid Payment Lower Crime
Ministry of Justice,LEGAL AID AGENCY,22/07/2015,Higher Crime,LEGAL AID FUND,HOLLIS & CO,140911175,"51,155.20",Legal Aid Payment Higher Crime
Ministry of Justice,LEGAL AID AGENCY,29/07/2015,Lower Crime,LEGAL AID FUND,HEALEY COLBON,140989642,"26,100.00",Legal Aid Payment Lower Crime
Ministry of Justice,LEGAL AID AGENCY,29/07/2015,Lower Crime,LEGAL AID FUND,LLM SOLICITORS (LONDON) LTD,140991053,"38,769.00",Legal Aid Payment Lower Crime
Ministry of Justice,LEGAL AID AGENCY,15/07/2015,Higher Crime,LEGAL AID FUND,STEPHEN FIDLER & CO,140805597,"46,469.34",Legal Aid Payment Higher Crime
Ministry of Justice,LEGAL AID AGENCY,01/07/2015,Higher Crime,LEGAL AID FUND,LEWIS NEDAS & CO,140612333,"107,579.14",Legal Aid Payment Higher Crime
Ministry of Justice,LEGAL AID AGENCY,15/07/2015,Civil Representation,LEGAL AID FUND,LICHFIELD REYNOLDS LLP,140732497,"39,594.75",Legal Aid Payment Civil Representation
Ministry of Justice,LEGAL AID AGENCY,29/07/2015,Lower Crime,LEGAL AID FUND,HINE SOLICITORS,140990997,"62,213.00",Legal Aid Payment Lower Crime
Ministry of Justice,LEGAL AID AGENCY,01/07/2015,Lower Crime,LEGAL AID FUND,MARTIN MURRAY & ASSOCIATES,140633665,"77,800.00",Legal Aid Payment Lower Crime
Ministry of Justice,LEGAL AID AGENCY,01/07/2015,Lower Crime,LEGAL AID FUND,LAWRENCE & CO,140633721,"63,000.00",Legal Aid Payment Lower Crime
Ministry of Justice,LEGAL AID AGENCY,29/07/2015,Lower Crime,LEGAL AID FUND,TATES,140989920,"31,000.00",Legal Aid Payment Lower Crime
Ministry of Justice,LEGAL AID AGENCY,01/07/2015,Civil Representation,LEGAL AID FUND,ANTHONY COLLINS LLP,6236166,"83,575.12",Legal Aid Payment Civil Representation
Ministry of Justice,LEGAL AID AGENCY,01/07/2015,Civil Representation,LEGAL AID FUND,WILKINSON WOODWARD.,140554684,"56,372.66",Legal Aid Payment Civil Representation
Ministry of Justice,LEGAL AID AGENCY,01/07/2015,Higher Crime,LEGAL AID FUND,A.A MIRSONS SOLICITORS LTD,140611305,"71,326.22",Legal Aid Payment Higher Crime
Ministry of Justice,LEGAL AID AGENCY,01/07/2015,Lower Crime,LEGAL AID FUND,MCMILLAN WILLIAMS SOLICITORS LTD,140633661,"36,600.00",Legal Aid Payment Lower Crime
Ministry of Justice,LEGAL AID AGENCY,22/07/2015,Higher Crime,LEGAL AID FUND,DENNINGS SOLICITORS LTD,140822673,"78,406.47",Legal Aid Payment Higher Crime
Ministry of Justice,LEGAL AID AGENCY,29/07/2015,Lower Crime,LEGAL AID FUND,COLIN JONES CLARKE & HARTLAND SOLICITORS,140990254,"25,714.00",Legal Aid Payment Lower Crime
Ministry of Justice,LEGAL AID AGENCY,29/07/2015,Lower Crime,LEGAL AID FUND,SONN MACMILLAN WALKER LTD,140989687,"45,000.00",Legal Aid Payment Lower Crime
Ministry of Justice,LEGAL AID AGENCY,22/07/2015,Higher Crime,LEGAL AID FUND,NIGEL J POWER QC,140910665,"52,247.38",Legal Aid Payment Higher Crime
Ministry of Justice,LEGAL AID AGENCY,15/07/2015,Higher Crime,LEGAL AID FUND,TAHIR KHAN,140755732,"31,234.61",Legal Aid Payment Higher Crime
Ministry of Justice,LEGAL AID AGENCY,15/07/2015,Civil Representation,LEGAL AID FUND,STEFANO NUVOLONI,140713484,"27,279.62",Legal Aid Payment Civil Representation
Ministry of Justice,LEGAL AID AGENCY,08/07/2015,Higher Crime,LEGAL AID FUND,I B B SOLICITORS,140723422,"30,048.41",Legal Aid Payment Higher Crime
Ministry of Justice,LEGAL AID AGENCY,01/07/2015,Lower Crime,LEGAL AID FUND,LUMB & MACGILL,140633843,"44,900.00",Legal Aid Payment Lower Crime
Ministry of Justice,LEGAL AID AGENCY,15/07/2015,Higher Crime,LEGAL AID FUND,ANTHONY M CROSS QC,140805712,"37,108.61",Legal Aid Payment Higher Crime
Ministry of Justice,LEGAL AID AGENCY,29/07/2015,Lower Crime,LEGAL AID FUND,KENT DEFENCE,140990209,"33,500.00",Legal Aid Payment Lower Crime
Ministry of Justice,LEGAL AID AGENCY,01/07/2015,Civil Representation,LEGAL AID FUND,KHF SOLICITORS LTD,140602345,"31,126.33",Legal Aid Payment Civil Representation
Ministry of Justice,LEGAL AID AGENCY,01/07/2015,Lower Crime,LEGAL AID FUND,MOWBRAY WOODWARDS LTD,140634057,"41,500.00",Legal Aid Payment Lower Crime
Ministry of Justice,LEGAL AID AGENCY,22/07/2015,Higher Crime,LEGAL AID FUND,PURCELL PARKER LTD,140887154,"57,956.39",Legal Aid Payment Higher Crime
Ministry of Justice,LEGAL AID AGENCY,01/07/2015,Lower Crime,LEGAL AID FUND,WILLIAMSONS SOLICITORS LTD,140633867,"50,000.00",Legal Aid Payment Lower Crime
Ministry of Justice,LEGAL AID AGENCY,29/07/2015,Lower Crime,LEGAL AID FUND,J D SOLICITORS,140990891,"39,951.00",Legal Aid Payment Lower Crime
Ministry of Justice,LEGAL AID AGENCY,22/07/2015,Higher Crime,LEGAL AID FUND,BARK & CO,140877941,"25,584.63",Legal Aid Payment Higher Crime
Ministry of Justice,LEGAL AID AGENCY,29/07/2015,Lower Crime,LEGAL AID FUND,GURNEY HARDEN,140990742,"37,761.00",Legal Aid Payment Lower Crime
Ministry of Justice,LEGAL AID AGENCY,29/07/2015,Higher Crime,LEGAL AID FUND,JANES SOLICITORS,140963492,"100,569.57",Legal Aid Payment Higher Crime
Ministry of Justice,LEGAL AID AGENCY,08/07/2015,Civil Representation,LEGAL AID FUND,NKUMBE EKANEY QC,140689975,"45,161.10",Legal Aid Payment Civil Representation
Ministry of Justice,LEGAL AID AGENCY,29/07/2015,Lower Crime,LEGAL AID FUND,KIRWANS,140990958,"30,119.00",Legal Aid Payment Lower Crime
Ministry of Justice,LEGAL AID AGENCY,01/07/2015,Legal Help,LEGAL AID FUND,BLAVO & CO SOLICITORS LTD,140590495,"309,248.00",Legal Aid Payment Legal Help
Ministry of Justice,LEGAL AID AGENCY,22/07/2015,Higher Crime,LEGAL AID FUND,HARRIS SOLICITORS,140873880,"89,975.11",Legal Aid Payment Higher Crime
Ministry of Justice,LEGAL AID AGENCY,22/07/2015,Civil Representation,LEGAL AID FUND,TEERTHA GUPTA QC,139792075,"88,704.00",Legal Aid Payment Civil Representation
Ministry of Justice,LEGAL AID AGENCY,01/07/2015,Lower Crime,LEGAL AID FUND,CARTWRIGHT KING SOLICITORS,140634297,"28,302.00",Legal Aid Payment Lower Crime
Ministry of Justice,LEGAL AID AGENCY,29/07/2015,Lower Crime,LEGAL AID FUND,STEVENS SOLICITORS,140990162,"48,600.00",Legal Aid Payment Lower Crime
Ministry of Justice,LEGAL AID AGENCY,08/07/2015,Higher Crime,LEGAL AID FUND,FORBES SOLICITORS,140667527,"71,338.31",Legal Aid Payment Higher Crime
Ministry of Justice,LEGAL AID AGENCY,01/07/2015,Civil Representation,LEGAL AID FUND,JOHN MYERS,140424405,"49,650.00",Legal Aid Payment Civil Representation
Ministry of Justice,LEGAL AID AGENCY,29/07/2015,Higher Crime,LEGAL AID FUND,GULAM M AHMED,140942047,"25,800.00",Legal Aid Payment Higher Crime
Ministry of Justice,LEGAL AID AGENCY,29/07/2015,Lower Crime,LEGAL AID FUND,SAUNDERS SOLICITORS LTD,140989780,"25,700.00",Legal Aid Payment Lower Crime
Ministry of Justice,LEGAL AID AGENCY,01/07/2015,Legal Help,LEGAL AID FUND,JOHN FOWLERS LLP,140632666,"47,700.00",Legal Aid Payment Legal Help
Ministry of Justice,LEGAL AID AGENCY,01/07/2015,Lower Crime,LEGAL AID FUND,KEMPS,140634607,"26,376.00",Legal Aid Payment Lower Crime
Ministry of Justice,LEGAL AID AGENCY,29/07/2015,Lower Crime,LEGAL AID FUND,TUCKERS SOLICITORS LLP,140990170,"26,900.00",Legal Aid Payment Lower Crime
Ministry of Justice,LEGAL AID AGENCY,29/07/2015,Lower Crime,LEGAL AID FUND,PENFOLD & MCPHERSON,140990786,"27,080.00",Legal Aid Payment Lower Crime
Ministry of Justice,LEGAL AID AGENCY,29/07/2015,Lower Crime,LEGAL AID FUND,ACA LAW LTD,140990470,"28,001.00",Legal Aid Payment Lower Crime
Ministry of Justice,LEGAL AID AGENCY,29/07/2015,Lower Crime,LEGAL AID FUND,LAWRENCE & CO,140989785,"63,000.00",Legal Aid Payment Lower Crime
Ministry of Justice,LEGAL AID AGENCY,29/07/2015,Lower Crime,LEGAL AID FUND,RICHARD BODY & CO,140990025,"27,000.00",Legal Aid Payment Lower Crime
Ministry of Justice,LEGAL AID AGENCY,22/07/2015,Higher Crime,LEGAL AID FUND,GRECH GOODEN SOLICITORS LTD,140822821,"125,070.90",Legal Aid Payment Higher Crime
Ministry of Justice,LEGAL AID AGENCY,08/07/2015,Higher Crime,LEGAL AID FUND,ANDREW JEFFERIES QC,140667406,"28,691.06",Legal Aid Payment Higher Crime
Ministry of Justice,LEGAL AID AGENCY,01/07/2015,Legal Help,LEGAL AID FUND,HOWE & CO ,140633292,"84,934.00",Legal Aid Payment Legal Help
Ministry of Justice,LEGAL AID AGENCY,29/07/2015,Lower Crime,LEGAL AID FUND,DAVID RUBIE MITCHELL & CO,140989702,"26,500.00",Legal Aid Payment Lower Crime
Ministry of Justice,LEGAL AID AGENCY,01/07/2015,Higher Crime,LEGAL AID FUND,BURTON COPELAND LLP,140636534,"28,738.43",Legal Aid Payment Higher Crime
Ministry of Justice,LEGAL AID AGENCY,22/07/2015,Higher Crime,LEGAL AID FUND,VINCENT W COUGHLIN QC,140873650,"56,512.88",Legal Aid Payment Higher Crime
Ministry of Justice,LEGAL AID AGENCY,29/07/2015,Higher Crime,LEGAL AID FUND,CARTWRIGHT KING SOLICITORS,140961590,"50,131.20",Legal Aid Payment Higher Crime
Ministry of Justice,LEGAL AID AGENCY,01/07/2015,Civil Representation,LEGAL AID FUND,TYRER ROXBURGH SOLICITORS LLP,140626339,"28,239.92",Legal Aid Payment Civil Representation
Ministry of Justice,LEGAL AID AGENCY,29/07/2015,Legal Help,LEGAL AID FUND,IRVING & CO,140989327,"39,049.00",Legal Aid Payment Legal Help
Ministry of Justice,LEGAL AID AGENCY,29/07/2015,Higher Crime,LEGAL AID FUND,CORKER BINNING,140935014,"32,286.88",Legal Aid Payment Higher Crime
Ministry of Justice,LEGAL AID AGENCY,29/07/2015,Lower Crime,LEGAL AID FUND,HUNT & COOMBS LLP,140989673,"26,700.00",Legal Aid Payment Lower Crime
Ministry of Justice,LEGAL AID AGENCY,29/07/2015,Lower Crime,LEGAL AID FUND,KRISTINA HARRISON SOLICITORS,140990722,"30,278.00",Legal Aid Payment Lower Crime
Ministry of Justice,LEGAL AID AGENCY,01/07/2015,Lower Crime,LEGAL AID FUND,ABV SOLICITORS,140633672,"80,800.00",Legal Aid Payment Lower Crime
Ministry of Justice,LEGAL AID AGENCY,01/07/2015,Lower Crime,LEGAL AID FUND,LIONEL BLACKMAN SOLICITORS,140633969,"26,400.00",Legal Aid Payment Lower Crime
Ministry of Justice,LEGAL AID AGENCY,22/07/2015,Higher Crime,LEGAL AID FUND,MICHAEL J MAHER,140911492,"29,203.68",Legal Aid Payment Higher Crime
Ministry of Justice,LEGAL AID AGENCY,01/07/2015,Lower Crime,LEGAL AID FUND,PENFOLD & MCPHERSON,140634732,"26,241.00",Legal Aid Payment Lower Crime
Ministry of Justice,LEGAL AID AGENCY,22/07/2015,Civil Representation,LEGAL AID FUND,SWITALSKI'S LTD,140800348,"37,724.40",Legal Aid Payment Civil Representation
Ministry of Justice,LEGAL AID AGENCY,29/07/2015,Civil Representation,LEGAL AID FUND,JANET C BAZLEY QC,140573186,"55,374.72",Legal Aid Payment Civil Representation
Ministry of Justice,LEGAL AID AGENCY,22/07/2015,Higher Crime,LEGAL AID FUND,MORDI & CO,140836290,"78,160.96",Legal Aid Payment Higher Crime
Ministry of Justice,LEGAL AID AGENCY,08/07/2015,Higher Crime,LEGAL AID FUND,MUSTOE SHORTER SOLICITORS & ADVOCATES LLP,140652850,"56,488.09",Legal Aid Payment Higher Crime
Ministry of Justice,LEGAL AID AGENCY,15/07/2015,Civil Representation,LEGAL AID FUND,BARRATT GOFF & TOMLINSON,140674860,"27,210.63",Legal Aid Payment Civil Representation
Ministry of Justice,LEGAL AID AGENCY,01/07/2015,Lower Crime,LEGAL AID FUND,FORBES SOLICITORS,140633912,"31,200.00",Legal Aid Payment Lower Crime
Ministry of Justice,LEGAL AID AGENCY,22/07/2015,Civil Representation,LEGAL AID FUND,LANGLEYS LLP,140685794,"31,131.14",Legal Aid Payment Civil Representation
Ministry of Justice,LEGAL AID AGENCY,29/07/2015,Lower Crime,LEGAL AID FUND,BOOTS STARKE GOACHER SOLICITORS,140990762,"40,839.00",Legal Aid Payment Lower Crime
Ministry of Justice,LEGAL AID AGENCY,15/07/2015,Higher Crime,LEGAL AID FUND,SHAW GRAHAM KERSH,140806254,"64,168.68",Legal Aid Payment Higher Crime
Ministry of Justice,LEGAL AID AGENCY,01/07/2015,Lower Crime,LEGAL AID FUND,CARTER OSBORNE LTD,140634287,"33,713.00",Legal Aid Payment Lower Crime
Ministry of Justice,LEGAL AID AGENCY,29/07/2015,Lower Crime,LEGAL AID FUND,MANN & CO SOLICITORS,140990150,"27,600.00",Legal Aid Payment Lower Crime
Ministry of Justice,LEGAL AID AGENCY,29/07/2015,Lower Crime,LEGAL AID FUND,K LEGAL SOLICITORS,140991065,"36,731.00",Legal Aid Payment Lower Crime
Ministry of Justice,LEGAL AID AGENCY,01/07/2015,Legal Help,LEGAL AID FUND,DUNCAN LEWIS,140590344,"400,000.00",Legal Aid Payment Legal Help
Ministry of Justice,LEGAL AID AGENCY,15/07/2015,Higher Crime,LEGAL AID FUND,HAYGARTH JONES,140768212,"43,666.40",Legal Aid Payment Higher Crime
Ministry of Justice,LEGAL AID AGENCY,29/07/2015,Lower Crime,LEGAL AID FUND,MACNAB CLARKE SOLICITORS,140990794,"37,186.00",Legal Aid Payment Lower Crime
Ministry of Justice,LEGAL AID AGENCY,01/07/2015,Lower Crime,LEGAL AID FUND,JOHN DELANEY & CO SOLICITORS,140633861,"38,000.00",Legal Aid Payment Lower Crime
Ministry of Justice,LEGAL AID AGENCY,29/07/2015,Legal Help,LEGAL AID FUND,QS JACKSON CANTER LTD,140983686,"49,609.00",Legal Aid Payment Legal Help
Ministry of Justice,LEGAL AID AGENCY,22/07/2015,Civil Representation,LEGAL AID FUND,CHILD LAW PARTNERSHIP LTD,140920571,"36,527.74",Legal Aid Payment Civil Representation
Ministry of Justice,LEGAL AID AGENCY,01/07/2015,Lower Crime,LEGAL AID FUND,REEVES  & CO SOLICITORS,140634689,"40,555.00",Legal Aid Payment Lower Crime
Ministry of Justice,LEGAL AID AGENCY,08/07/2015,Higher Crime,LEGAL AID FUND,SJ LAW SOLICITORS,140682807,"95,242.91",Legal Aid Payment Higher Crime
Ministry of Justice,LEGAL AID AGENCY,29/07/2015,Lower Crime,LEGAL AID FUND,FORBES SOLICITORS,140989975,"34,000.00",Legal Aid Payment Lower Crime
Ministry of Justice,LEGAL AID AGENCY,15/07/2015,Higher Crime,LEGAL AID FUND,WAINWRIGHT & CUMMINS LLP,140755646,"62,044.02",Legal Aid Payment Higher Crime
Ministry of Justice,LEGAL AID AGENCY,01/07/2015,Lower Crime,LEGAL AID FUND,FORBES SOLICITORS,140633914,"34,000.00",Legal Aid Payment Lower Crime
Ministry of Justice,LEGAL AID AGENCY,22/07/2015,Higher Crime,LEGAL AID FUND,LEFI TSIATTALOU,140911260,"26,601.68",Legal Aid Payment Higher Crime
Ministry of Justice,LEGAL AID AGENCY,29/07/2015,Lower Crime,LEGAL AID FUND,HORSMAN SOLICITORS LTD,140990744,"35,068.00",Legal Aid Payment Lower Crime
Ministry of Justice,LEGAL AID AGENCY,29/07/2015,Lower Crime,LEGAL AID FUND,SMITH PARTNERSHIP,140989621,"33,300.00",Legal Aid Payment Lower Crime
Ministry of Justice,LEGAL AID AGENCY,22/07/2015,Higher Crime,LEGAL AID FUND,GRAYSON WILLIS BENNETT,140836469,"107,970.13",Legal Aid Payment Higher Crime
Ministry of Justice,LEGAL AID AGENCY,08/07/2015,Higher Crime,LEGAL AID FUND,PERCY SHORT & CUTHBERT,140724251,"28,229.59",Legal Aid Payment Higher Crime
Ministry of Justice,LEGAL AID AGENCY,22/07/2015,Civil Representation,LEGAL AID FUND,GABY HARDWICKE,140226586,"27,415.67",Legal Aid Payment Civil Representation
Ministry of Justice,LEGAL AID AGENCY,29/07/2015,Higher Crime,LEGAL AID FUND,ASHMANS SOLICITORS,140941720,"54,497.60",Legal Aid Payment Higher Crime
Ministry of Justice,LEGAL AID AGENCY,01/07/2015,Civil Representation,LEGAL AID FUND,CHRISTINA A OMIDEYI,140604495,"35,316.00",Legal Aid Payment Civil Representation
Ministry of Justice,LEGAL AID AGENCY,15/07/2015,Higher Crime,LEGAL AID FUND,JULIA E SMART,140754918,"35,856.00",Legal Aid Payment Higher Crime
Ministry of Justice,LEGAL AID AGENCY,29/07/2015,Legal Help,LEGAL AID FUND,SIMPSON MILLAR LLP,140924946,"76,049.59",Legal Aid Payment Legal Help
Ministry of Justice,LEGAL AID AGENCY,29/07/2015,Lower Crime,LEGAL AID FUND,FARLEYS SOLICITORS LLP,140989957,"28,900.00",Legal Aid Payment Lower Crime
Ministry of Justice,LEGAL AID AGENCY,15/07/2015,Higher Crime,LEGAL AID FUND,DANNY G MOORE,140782033,"34,996.32",Legal Aid Payment Higher Crime
Ministry of Justice,LEGAL AID AGENCY,29/07/2015,Higher Crime,LEGAL AID FUND,DOMINIC M S BELL,140927269,"29,500.92",Legal Aid Payment Higher Crime
Ministry of Justice,LEGAL AID AGENCY,01/07/2015,Higher Crime,LEGAL AID FUND,ABBEY SOLICITORS,140598475,"39,738.14",Legal Aid Payment Higher Crime
Ministry of Justice,LEGAL AID AGENCY,08/07/2015,Higher Crime,LEGAL AID FUND,TUCKERS SOLICITORS LLP,140652819,"41,021.35",Legal Aid Payment Higher Crime
Ministry of Justice,LEGAL AID AGENCY,01/07/2015,Higher Crime,LEGAL AID FUND,DENNINGS LLP-ADVOCATE,140635855,"30,622.08",Legal Aid Payment Higher Crime
Ministry of Justice,LEGAL AID AGENCY,01/07/2015,Lower Crime,LEGAL AID FUND,HINE SOLICITORS,140634938,"26,306.00",Legal Aid Payment Lower Crime
Ministry of Justice,LEGAL AID AGENCY,22/07/2015,Higher Crime,LEGAL AID FUND,L P EVANS SOLICITORS,140822595,"45,674.04",Legal Aid Payment Higher Crime
Ministry of Justice,LEGAL AID AGENCY,29/07/2015,Legal Help,LEGAL AID FUND,PUBLIC LAW SOLICITORS,140989027,"57,193.00",Legal Aid Payment Legal Help
Ministry of Justice,LEGAL AID AGENCY,01/07/2015,Higher Crime,LEGAL AID FUND,EDWARD FAIL BRADSHAW & WATERSON,140612768,"64,774.92",Legal Aid Payment Higher Crime
Ministry of Justice,LEGAL AID AGENCY,22/07/2015,Civil Representation,LEGAL AID FUND,WILSON'S SOLICITORS,140902496,"30,871.36",Legal Aid Payment Civil Representation
Ministry of Justice,LEGAL AID AGENCY,29/07/2015,Legal Help,LEGAL AID FUND,SUTOVIC & HARTIGAN,140988910,"32,600.00",Legal Aid Payment Legal Help
Ministry of Justice,LEGAL AID AGENCY,29/07/2015,Legal Help,LEGAL AID FUND,M H LEGAL,140988851,"25,700.00",Legal Aid Payment Legal Help
Ministry of Justice,LEGAL AID AGENCY,29/07/2015,Lower Crime,LEGAL AID FUND,VICKERS & CO INC BERRI'S SOLICITORS,140990513,"31,092.00",Legal Aid Payment Lower Crime
Ministry of Justice,LEGAL AID AGENCY,01/07/2015,Civil Representation,LEGAL AID FUND,TOM BUREAU,140642460,"30,844.80",Legal Aid Payment Civil Representation
Ministry of Justice,LEGAL AID AGENCY,29/07/2015,Lower Crime,LEGAL AID FUND,TAYLOR STREET SOLICITORS LLP,140990029,"110,000.00",Legal Aid Payment Lower Crime
Ministry of Justice,LEGAL AID AGENCY,01/07/2015,Lower Crime,LEGAL AID FUND,HARRIS SOLICITORS,140634962,"29,523.00",Legal Aid Payment Lower Crime
Ministry of Justice,LEGAL AID AGENCY,01/07/2015,Lower Crime,LEGAL AID FUND,STEPHENSONS SOLICITORS LLP,140634611,"46,256.00",Legal Aid Payment Lower Crime
Ministry of Justice,LEGAL AID AGENCY,01/07/2015,Lower Crime,LEGAL AID FUND,FMW LAW LTD,140633619,"65,400.00",Legal Aid Payment Lower Crime
Ministry of Justice,LEGAL AID AGENCY,01/07/2015,Lower Crime,LEGAL AID FUND,G T STEWART SOLICITORS,140634932,"37,405.00",Legal Aid Payment Lower Crime
Ministry of Justice,LEGAL AID AGENCY,01/07/2015,Lower Crime,LEGAL AID FUND,HORSMAN SOLICITORS LTD,140634690,"26,356.00",Legal Aid Payment Lower Crime
Ministry of Justice,LEGAL AID AGENCY,22/07/2015,Higher Crime,LEGAL AID FUND,LINKS LEGAL,140886945,"41,415.62",Legal Aid Payment Higher Crime
Ministry of Justice,LEGAL AID AGENCY,22/07/2015,Legal Help,LEGAL AID FUND,DIRECT HELP & ADVICE LTD,140920884,"34,049.16",Legal Aid Payment Legal Help
Ministry of Justice,LEGAL AID AGENCY,01/07/2015,Legal Help,LEGAL AID FUND,SWAIN & CO SOLICITORS LLP,140632952,"41,300.00",Legal Aid Payment Legal Help
Ministry of Justice,LEGAL AID AGENCY,29/07/2015,Lower Crime,LEGAL AID FUND,STEVENS SOLICITORS,140990155,"53,700.00",Legal Aid Payment Lower Crime
Ministry of Justice,LEGAL AID AGENCY,29/07/2015,Higher Crime,LEGAL AID FUND,VHS FLETCHERS,140991620,"35,685.64",Legal Aid Payment Higher Crime
Ministry of Justice,LEGAL AID AGENCY,29/07/2015,Lower Crime,LEGAL AID FUND,HILL TWINE,140991143,"30,150.00",Legal Aid Payment Lower Crime
Ministry of Justice,LEGAL AID AGENCY,01/07/2015,Lower Crime,LEGAL AID FUND,CORBETTS JAMES LLP,140634310,"32,099.00",Legal Aid Payment Lower Crime
Ministry of Justice,LEGAL AID AGENCY,01/07/2015,Lower Crime,LEGAL AID FUND,JAMES MURRAY SOLICITORS,140634478,"34,957.00",Legal Aid Payment Lower Crime
Ministry of Justice,LEGAL AID AGENCY,29/07/2015,Lower Crime,LEGAL AID FUND,PARKER BIRD WHITELEY,140990622,"33,410.00",Legal Aid Payment Lower Crime
Ministry of Justice,LEGAL AID AGENCY,01/07/2015,Higher Crime,LEGAL AID FUND,BARK & CO,140646481,"106,884.95",Legal Aid Payment Higher Crime
Ministry of Justice,LEGAL AID AGENCY,15/07/2015,Higher Crime,LEGAL AID FUND,CHAMBERS SOLICITORS,140806240,"30,048.41",Legal Aid Payment Higher Crime
Ministry of Justice,LEGAL AID AGENCY,29/07/2015,Higher Crime,LEGAL AID FUND,HUGH G BARTON,140992147,"28,078.08",Legal Aid Payment Higher Crime
Ministry of Justice,LEGAL AID AGENCY,01/07/2015,Lower Crime,LEGAL AID FUND,"GAMMON,PIERCY & GAIGER",140634718,"46,761.00",Legal Aid Payment Lower Crime
Ministry of Justice,LEGAL AID AGENCY,01/07/2015,Lower Crime,LEGAL AID FUND,DAVID RUBIE MITCHELL & CO,140633641,"26,500.00",Legal Aid Payment Lower Crime
Ministry of Justice,LEGAL AID AGENCY,01/07/2015,Lower Crime,LEGAL AID FUND,FISHER COWE,140634331,"40,394.00",Legal Aid Payment Lower Crime
Ministry of Justice,LEGAL AID AGENCY,08/07/2015,Civil Representation,LEGAL AID FUND,RIDLEY & HALL LEGAL LTD,138127354,"43,196.82",Legal Aid Payment Civil Representation
Ministry of Justice,LEGAL AID AGENCY,29/07/2015,Lower Crime,LEGAL AID FUND,LEVY & CO SOLICITORS LLP,140989654,"42,100.00",Legal Aid Payment Lower Crime
Ministry of Justice,LEGAL AID AGENCY,29/07/2015,Lower Crime,LEGAL AID FUND,WALKER LAHIVE,140990809,"35,229.00",Legal Aid Payment Lower Crime
Ministry of Justice,LEGAL AID AGENCY,29/07/2015,Lower Crime,LEGAL AID FUND,M K LAW SOLICITORS LTD,140991005,"74,277.00",Legal Aid Payment Lower Crime
Ministry of Justice,LEGAL AID AGENCY,01/07/2015,Lower Crime,LEGAL AID FUND,GRECH GOODEN SOLICITORS LTD,140634249,"37,512.00",Legal Aid Payment Lower Crime
Ministry of Justice,LEGAL AID AGENCY,29/07/2015,Lower Crime,LEGAL AID FUND,MCMILLAN WILLIAMS SOLICITORS LTD,140989725,"36,600.00",Legal Aid Payment Lower Crime
Ministry of Justice,LEGAL AID AGENCY,01/07/2015,Lower Crime,LEGAL AID FUND,TAYLOR STREET SOLICITORS LLP,140633971,"110,000.00",Legal Aid Payment Lower Crime
Ministry of Justice,LEGAL AID AGENCY,29/07/2015,Higher Crime,LEGAL AID FUND,DEAN P ARMSTRONG,140982806,"27,974.28",Legal Aid Payment Higher Crime
Ministry of Justice,LEGAL AID AGENCY,22/07/2015,Higher Crime,LEGAL AID FUND,FELLOWES LLP,140822639,"77,196.29",Legal Aid Payment Higher Crime
Ministry of Justice,LEGAL AID AGENCY,29/07/2015,Lower Crime,LEGAL AID FUND,EDWARDS DUTHIE,140991155,"39,195.00",Legal Aid Payment Lower Crime
Ministry of Justice,LEGAL AID AGENCY,01/07/2015,Lower Crime,LEGAL AID FUND,VICKERS & CO INC BERRI'S SOLICITORS,140602963,"28,586.00",Legal Aid Payment Lower Crime
Ministry of Justice,LEGAL AID AGENCY,29/07/2015,Lower Crime,LEGAL AID FUND,G T STEWART SOLICITORS,140990988,"46,408.00",Legal Aid Payment Lower Crime
Ministry of Justice,LEGAL AID AGENCY,01/07/2015,Lower Crime,LEGAL AID FUND,SONN MACMILLAN WALKER LTD,140633624,"45,000.00",Legal Aid Payment Lower Crime
Ministry of Justice,LEGAL AID AGENCY,01/07/2015,Lower Crime,LEGAL AID FUND,TATES,140633858,"31,000.00",Legal Aid Payment Lower Crime
Ministry of Justice,LEGAL AID AGENCY,01/07/2015,Higher Crime,LEGAL AID FUND,WALDRONS SOLICITORS,140598498,"98,602.86",Legal Aid Payment Higher Crime
Ministry of Justice,LEGAL AID AGENCY,01/07/2015,Lower Crime,LEGAL AID FUND,"O'NEILL, WRIGHT & NASH",140634863,"42,499.00",Legal Aid Payment Lower Crime
Ministry of Justice,LEGAL AID AGENCY,08/07/2015,Higher Crime,LEGAL AID FUND,EDWARD HAYES LLP,140683018,"33,742.51",Legal Aid Payment Higher Crime
Ministry of Justice,LEGAL AID AGENCY,01/07/2015,Lower Crime,LEGAL AID FUND,HINE SOLICITORS,140634945,"40,497.00",Legal Aid Payment Lower Crime
Ministry of Justice,LEGAL AID AGENCY,29/07/2015,Higher Crime,LEGAL AID FUND,TUCKERS SOLICITORS LLP,140969002,"39,582.31",Legal Aid Payment Higher Crime
Ministry of Justice,LEGAL AID AGENCY,29/07/2015,Lower Crime,LEGAL AID FUND,VHS FLETCHERS,140989616,"28,500.00",Legal Aid Payment Lower Crime
Ministry of Justice,LEGAL AID AGENCY,29/07/2015,Lower Crime,LEGAL AID FUND,CARTWRIGHT KING SOLICITORS,140990942,"26,654.00",Legal Aid Payment Lower Crime
Ministry of Justice,LEGAL AID AGENCY,01/07/2015,Higher Crime,LEGAL AID FUND,BLACKFORDS LLP,140568296,"43,294.11",Legal Aid Payment Higher Crime
Ministry of Justice,LEGAL AID AGENCY,01/07/2015,Lower Crime,LEGAL AID FUND,MANN & CO SOLICITORS,140634095,"27,600.00",Legal Aid Payment Lower Crime
Ministry of Justice,LEGAL AID AGENCY,29/07/2015,Legal Help,LEGAL AID FUND,BLAVO & CO SOLICITORS LTD,141006324,"273,739.00",Legal Aid Payment Legal Help
Ministry of Justice,LEGAL AID AGENCY,29/07/2015,Lower Crime,LEGAL AID FUND,VYMAN SOLICITORS LIMITED,140990733,"30,334.00",Legal Aid Payment Lower Crime
Ministry of Justice,LEGAL AID AGENCY,01/07/2015,Lower Crime,LEGAL AID FUND,POOLE ALCOCK LLP,140633899,"35,000.00",Legal Aid Payment Lower Crime
Ministry of Justice,LEGAL AID AGENCY,29/07/2015,Lower Crime,LEGAL AID FUND,SWAIN & CO SOLICITORS LLP,140990049,"34,500.00",Legal Aid Payment Lower Crime
Ministry of Justice,LEGAL AID AGENCY,01/07/2015,Lower Crime,LEGAL AID FUND,GEOFFREY FORRESTER & CO,140633786,"35,100.00",Legal Aid Payment Lower Crime
Ministry of Justice,LEGAL AID AGENCY,29/07/2015,Lower Crime,LEGAL AID FUND,THOMAS BOYD WHYTE,140990453,"53,923.00",Legal Aid Payment Lower Crime
Ministry of Justice,LEGAL AID AGENCY,01/07/2015,Higher Crime,LEGAL AID FUND,JOHN FULLER & PARTNERS,140635542,"105,226.52",Legal Aid Payment Higher Crime
Ministry of Justice,LEGAL AID AGENCY,29/07/2015,Legal Help,LEGAL AID FUND,BUTLER & CO,140988865,"36,500.00",Legal Aid Payment Legal Help
Ministry of Justice,LEGAL AID AGENCY,22/07/2015,Legal Help,LEGAL AID FUND,CORAM CHILDREN'S LEGAL CENTRE,140920853,"34,681.64",Legal Aid Payment Legal Help
Ministry of Justice,LEGAL AID AGENCY,29/07/2015,Lower Crime,LEGAL AID FUND,BISHOP & LIGHT SOLICITORS ,140990037,"31,500.00",Legal Aid Payment Lower Crime
Ministry of Justice,LEGAL AID AGENCY,01/07/2015,Higher Crime,LEGAL AID FUND,PETER A CORRIGAN,140567440,"39,610.00",Legal Aid Payment Higher Crime
Ministry of Justice,LEGAL AID AGENCY,15/07/2015,Higher Crime,LEGAL AID FUND,TIMOTHY J KENDALL,140775601,"26,833.33",Legal Aid Payment Higher Crime
Ministry of Justice,LEGAL AID AGENCY,29/07/2015,Legal Help,LEGAL AID FUND,BLAVO & CO SOLICITORS LTD,141006321,"172,556.00",Legal Aid Payment Legal Help
Ministry of Justice,LEGAL AID AGENCY,29/07/2015,Lower Crime,LEGAL AID FUND,CARTWRIGHT KING SOLICITORS,140990250,"29,000.00",Legal Aid Payment Lower Crime
Ministry of Justice,LEGAL AID AGENCY,08/07/2015,Higher Crime,LEGAL AID FUND,BINDMANS LLP,140688325,"47,047.53",Legal Aid Payment Higher Crime
Ministry of Justice,LEGAL AID AGENCY,01/07/2015,Higher Crime,LEGAL AID FUND,MTC & CO SOLICITORS,140597602,"51,817.00",Legal Aid Payment Higher Crime
Ministry of Justice,LEGAL AID AGENCY,29/07/2015,Legal Help,LEGAL AID FUND,DUNCAN LEWIS,140984793,"100,000.00",Legal Aid Payment Legal Help
Ministry of Justice,LEGAL AID AGENCY,01/07/2015,Higher Crime,LEGAL AID FUND,TUCKERS SOLICITORS LLP,140635599,"69,748.05",Legal Aid Payment Higher Crime
Ministry of Justice,LEGAL AID AGENCY,01/07/2015,Higher Crime,LEGAL AID FUND,MATHEW J SHERRATT,140612735,"36,360.36",Legal Aid Payment Higher Crime
Ministry of Justice,LEGAL AID AGENCY,01/07/2015,Higher Crime,LEGAL AID FUND,ABV SOLICITORS,140636726,"29,664.55",Legal Aid Payment Higher Crime
Ministry of Justice,LEGAL AID AGENCY,01/07/2015,Lower Crime,LEGAL AID FUND,T S LAW LTD,140633698,"27,000.00",Legal Aid Payment Lower Crime
Ministry of Justice,LEGAL AID AGENCY,29/07/2015,Lower Crime,LEGAL AID FUND,BRIEFS LAW,140991027,"25,162.00",Legal Aid Payment Lower Crime
Ministry of Justice,LEGAL AID AGENCY,29/07/2015,Legal Help,LEGAL AID FUND,HOWELLS LLP,140988849,"25,600.00",Legal Aid Payment Legal Help
Ministry of Justice,LEGAL AID AGENCY,22/07/2015,Higher Crime,LEGAL AID FUND,BLACKFORDS LLP,140920911,"53,719.41",Legal Aid Payment Higher Crime
Ministry of Justice,LEGAL AID AGENCY,22/07/2015,Higher Crime,LEGAL AID FUND,DAVID GRAY LLP,140887128,"105,857.75",Legal Aid Payment Higher Crime
Ministry of Justice,LEGAL AID AGENCY,01/07/2015,Lower Crime,LEGAL AID FUND,THE JOHNSON PARTNERSHIP,140634166,"40,000.00",Legal Aid Payment Lower Crime
Ministry of Justice,LEGAL AID AGENCY,01/07/2015,Higher Crime,LEGAL AID FUND,IAN F HENDERSON,140583426,"28,805.52",Legal Aid Payment Higher Crime
Ministry of Justice,LEGAL AID AGENCY,01/07/2015,Lower Crime,LEGAL AID FUND,MORGAN CULLEN BALL LTD,140635070,"28,364.00",Legal Aid Payment Lower Crime
Ministry of Justice,LEGAL AID AGENCY,01/07/2015,Lower Crime,LEGAL AID FUND,BURTON COPELAND LLP,140634673,"56,602.00",Legal Aid Payment Lower Crime
Ministry of Justice,LEGAL AID AGENCY,22/07/2015,Higher Crime,LEGAL AID FUND,KELCEY & HALL SOLICITORS,140872792,"27,940.09",Legal Aid Payment Higher Crime
Ministry of Justice,LEGAL AID AGENCY,22/07/2015,Higher Crime,LEGAL AID FUND,DARRYL INGRAM & CO,140836053,"29,580.85",Legal Aid Payment Higher Crime
Ministry of Justice,LEGAL AID AGENCY,29/07/2015,Lower Crime,LEGAL AID FUND,CLIVE REES & ASSOCIATES,140989570,"25,000.00",Legal Aid Payment Lower Crime
Ministry of Justice,LEGAL AID AGENCY,01/07/2015,Higher Crime,LEGAL AID FUND,EDWARDS DUTHIE,140637175,"29,664.55",Legal Aid Payment Higher Crime
Ministry of Justice,LEGAL AID AGENCY,22/07/2015,Higher Crime,LEGAL AID FUND,CHAUDHURY SOLICITORS LTD,140873932,"94,377.84",Legal Aid Payment Higher Crime
Ministry of Justice,LEGAL AID AGENCY,29/07/2015,Lower Crime,LEGAL AID FUND,WAINWRIGHT & CUMMINS LLP,140989801,"32,000.00",Legal Aid Payment Lower Crime
Ministry of Justice,LEGAL AID AGENCY,29/07/2015,Civil Representation,LEGAL AID FUND,KATHRYN HUGHES,140624150,"35,942.40",Legal Aid Payment Civil Representation
Ministry of Justice,LEGAL AID AGENCY,22/07/2015,Civil Representation,LEGAL AID FUND,BURKE NIAZI  LTD,140900271,"28,150.31",Legal Aid Payment Civil Representation
Ministry of Justice,LEGAL AID AGENCY,22/07/2015,Higher Crime,LEGAL AID FUND,KELLOCKS,140822853,"107,970.13",Legal Aid Payment Higher Crime
Ministry of Justice,LEGAL AID AGENCY,01/07/2015,Legal Help,LEGAL AID FUND,GRAHAME STOWE BATESON,140633206,"27,798.00",Legal Aid Payment Legal Help
Ministry of Justice,LEGAL AID AGENCY,22/07/2015,Higher Crime,LEGAL AID FUND,BLACKFORDS LLP,140887137,"116,008.49",Legal Aid Payment Higher Crime
Ministry of Justice,LEGAL AID AGENCY,01/07/2015,Lower Crime,LEGAL AID FUND,WALTERS & PLASKITT-INC LESLIE DODD & CO,140634104,"25,000.00",Legal Aid Payment Lower Crime
Ministry of Justice,LEGAL AID AGENCY,01/07/2015,Higher Crime,LEGAL AID FUND,MCCAULEY-SLOWE SOLICITORS,140584664,"39,633.36",Legal Aid Payment Higher Crime
Ministry of Justice,LEGAL AID AGENCY,29/07/2015,Lower Crime,LEGAL AID FUND,HOWARD & BYRNE SOLICITORS,140989900,"53,600.00",Legal Aid Payment Lower Crime
Ministry of Justice,LEGAL AID AGENCY,08/07/2015,Higher Crime,LEGAL AID FUND,GERARD P DORAN,140695713,"28,078.08",Legal Aid Payment Higher Crime
Ministry of Justice,LEGAL AID AGENCY,22/07/2015,Higher Crime,LEGAL AID FUND,HENRY C GRUNWALD QC,140822109,"51,963.76",Legal Aid Payment Higher Crime
Ministry of Justice,LEGAL AID AGENCY,08/07/2015,Civil Representation,LEGAL AID FUND,STEPHANIE J HARRISON,140732829,"45,022.48",Legal Aid Payment Civil Representation
Ministry of Justice,LEGAL AID AGENCY,29/07/2015,Lower Crime,LEGAL AID FUND,STEPHEN BURDON SOLICITORS,140989615,"29,500.00",Legal Aid Payment Lower Crime
Ministry of Justice,LEGAL AID AGENCY,29/07/2015,Higher Crime,LEGAL AID FUND,PATTICHI HILL & CROQUES LTD,140992262,"30,075.11",Legal Aid Payment Higher Crime
Ministry of Justice,LEGAL AID AGENCY,01/07/2015,Legal Help,LEGAL AID FUND,WILSON SOLICITORS LLP,140632741,"75,000.00",Legal Aid Payment Legal Help
Ministry of Justice,LEGAL AID AGENCY,08/07/2015,Civil Representation,LEGAL AID FUND,STEPHANIE J HARRISON,140735891,"38,059.44",Legal Aid Payment Civil Representation
Ministry of Justice,LEGAL AID AGENCY,22/07/2015,Higher Crime,LEGAL AID FUND,IAN M BOURNE QC,140911422,"59,718.94",Legal Aid Payment Higher Crime
Ministry of Justice,LEGAL AID AGENCY,01/07/2015,Lower Crime,LEGAL AID FUND,LAWTONS,140634174,"76,200.00",Legal Aid Payment Lower Crime
Ministry of Justice,LEGAL AID AGENCY,21/07/2015,Civil Representation,LEGAL AID FUND,DEIGHTON GUEDALLA,200000000001,"28,201.34",Legal Aid Payment Civil Representation
Ministry of Justice,LEGAL AID AGENCY,01/07/2015,Higher Crime,LEGAL AID FUND,FRANCO S TIZZANO,140598196,"30,521.78",Legal Aid Payment Higher Crime
Ministry of Justice,LEGAL AID AGENCY,22/07/2015,Higher Crime,LEGAL AID FUND,WALKER SMITH WAY LTD,140822835,"139,210.19",Legal Aid Payment Higher Crime
Ministry of Justice,LEGAL AID AGENCY,29/07/2015,Legal Help,LEGAL AID FUND,QS JACKSON CANTER LTD,140989269,"28,214.00",Legal Aid Payment Legal Help
Ministry of Justice,LEGAL AID AGENCY,22/07/2015,Higher Crime,LEGAL AID FUND,BURRELL JENKINS SOLICITORS,140911205,"60,779.58",Legal Aid Payment Higher Crime
Ministry of Justice,LEGAL AID AGENCY,01/07/2015,Lower Crime,LEGAL AID FUND,FORBES SOLICITORS,140633915,"28,400.00",Legal Aid Payment Lower Crime
Ministry of Justice,LEGAL AID AGENCY,15/07/2015,Higher Crime,LEGAL AID FUND,JONATHAN E REES,140768440,"35,284.44",Legal Aid Payment Higher Crime
Ministry of Justice,LEGAL AID AGENCY,01/07/2015,Legal Help,LEGAL AID FUND,COLIN JONES CLARKE & HARTLAND SOLICITORS,140605719,"35,770.00",Legal Aid Payment Legal Help
Ministry of Justice,LEGAL AID AGENCY,29/07/2015,Legal Help,LEGAL AID FUND,SWITALSKI'S LTD,140989239,"64,735.00",Legal Aid Payment Legal Help
Ministry of Justice,LEGAL AID AGENCY,22/07/2015,Higher Crime,LEGAL AID FUND,CARTWRIGHT KING SOLICITORS,140836679,"56,939.87",Legal Aid Payment Higher Crime
Ministry of Justice,LEGAL AID AGENCY,01/07/2015,Higher Crime,LEGAL AID FUND,FARLEYS SOLICITORS LLP,140612777,"112,056.08",Legal Aid Payment Higher Crime
Ministry of Justice,LEGAL AID AGENCY,08/07/2015,Civil Representation,LEGAL AID FUND,EDWARD J GRIEVES,140732825,"34,727.15",Legal Aid Payment Civil Representation
Ministry of Justice,LEGAL AID AGENCY,29/07/2015,Lower Crime,LEGAL AID FUND,NOBLE SOLICITORS,140989643,"92,000.00",Legal Aid Payment Lower Crime
Ministry of Justice,LEGAL AID AGENCY,29/07/2015,Lower Crime,LEGAL AID FUND,LIONEL BLACKMAN SOLICITORS,140990028,"26,400.00",Legal Aid Payment Lower Crime
Ministry of Justice,LEGAL AID AGENCY,22/07/2015,Higher Crime,LEGAL AID FUND,LEWIS NEDAS & CO,140837362,"38,195.51",Legal Aid Payment Higher Crime
Ministry of Justice,LEGAL AID AGENCY,29/07/2015,Lower Crime,LEGAL AID FUND,REEVES  & CO SOLICITORS,140990743,"44,124.00",Legal Aid Payment Lower Crime
Ministry of Justice,LEGAL AID AGENCY,08/07/2015,Higher Crime,LEGAL AID FUND,DAPINDERPAUL SINGH,140716688,"57,553.20",Legal Aid Payment Higher Crime
Ministry of Justice,LEGAL AID AGENCY,29/07/2015,Higher Crime,LEGAL AID FUND,LLOYDS PR SOLICITORS,140955832,"31,115.58",Legal Aid Payment Higher Crime
Ministry of Justice,LEGAL AID AGENCY,01/07/2015,Civil Representation,LEGAL AID FUND,MORECROFTS LLP,140601256,"37,945.20",Legal Aid Payment Civil Representation
Ministry of Justice,LEGAL AID AGENCY,15/07/2015,Civil Representation,LEGAL AID FUND,STEPHENSONS SOLICITORS LLP,140746192,"26,107.19",Legal Aid Payment Civil Representation
Ministry of Justice,LEGAL AID AGENCY,08/07/2015,Higher Crime,LEGAL AID FUND,LHS SOLICITORS LLP,140652813,"69,515.47",Legal Aid Payment Higher Crime
Ministry of Justice,LEGAL AID AGENCY,22/07/2015,Higher Crime,LEGAL AID FUND,ABBAS LAKHA,140836692,"35,752.38",Legal Aid Payment Higher Crime
Ministry of Justice,LEGAL AID AGENCY,29/07/2015,Legal Help,LEGAL AID FUND,HUNT & COOMBS LLP,140988948,"43,900.00",Legal Aid Payment Legal Help
Ministry of Justice,LEGAL AID AGENCY,01/07/2015,Legal Help,LEGAL AID FUND,BARNES HARRILD & DYER,140633243,"52,097.00",Legal Aid Payment Legal Help
Ministry of Justice,LEGAL AID AGENCY,01/07/2015,Lower Crime,LEGAL AID FUND,CARRINGTONS SOLICITORS,140603048,"49,307.00",Legal Aid Payment Lower Crime
Ministry of Justice,LEGAL AID AGENCY,01/07/2015,Lower Crime,LEGAL AID FUND,SCOTT-MONCRIEFF & ASSOCIATES LLP,140633707,"38,300.00",Legal Aid Payment Lower Crime
Ministry of Justice,LEGAL AID AGENCY,22/07/2015,Higher Crime,LEGAL AID FUND,MARY MONSON SOLICITORS,140887043,"75,135.29",Legal Aid Payment Higher Crime
Ministry of Justice,LEGAL AID AGENCY,29/07/2015,Lower Crime,LEGAL AID FUND,M B LAW LTD,140990448,"43,713.00",Legal Aid Payment Lower Crime
Ministry of Justice,LEGAL AID AGENCY,29/07/2015,Lower Crime,LEGAL AID FUND,CARTER OSBORNE LTD,140990343,"26,634.00",Legal Aid Payment Lower Crime
Ministry of Justice,LEGAL AID AGENCY,15/07/2015,Civil Representation,LEGAL AID FUND,BASTIAN LLOYD MORRIS SOLICITOR ADVOCATES,140759668,"44,848.46",Legal Aid Payment Civil Representation
Ministry of Justice,LEGAL AID AGENCY,22/07/2015,Higher Crime,LEGAL AID FUND,ASHMANS SOLICITORS,140911512,"30,048.41",Legal Aid Payment Higher Crime
Ministry of Justice,LEGAL AID AGENCY,01/07/2015,Higher Crime,LEGAL AID FUND,MACLAVERTY COOPER ATKINS,140636714,"38,101.30",Legal Aid Payment Higher Crime
Ministry of Justice,LEGAL AID AGENCY,29/07/2015,Lower Crime,LEGAL AID FUND,LANSBURY WORTHINGTON,140989683,"70,300.00",Legal Aid Payment Lower Crime
Ministry of Justice,LEGAL AID AGENCY,29/07/2015,Lower Crime,LEGAL AID FUND,HODGE JONES & ALLEN LLP,140990488,"82,489.00",Legal Aid Payment Lower Crime
Ministry of Justice,LEGAL AID AGENCY,08/07/2015,Higher Crime,LEGAL AID FUND,KAIM TODNER SOLICITORS LIMITED,140652791,"93,425.47",Legal Aid Payment Higher Crime
Ministry of Justice,LEGAL AID AGENCY,29/07/2015,Legal Help,LEGAL AID FUND,BEN HOARE BELL LLP,140988997,"33,700.00",Legal Aid Payment Legal Help
Ministry of Justice,LEGAL AID AGENCY,01/07/2015,Higher Crime,LEGAL AID FUND,ISOBEL R ASCHERSON,140612455,"31,046.05",Legal Aid Payment Higher Crime
Ministry of Justice,LEGAL AID AGENCY,15/07/2015,Higher Crime,LEGAL AID FUND,RICHARD BENTWOOD,140782151,"32,456.66",Legal Aid Payment Higher Crime
Ministry of Justice,LEGAL AID AGENCY,08/07/2015,Higher Crime,LEGAL AID FUND,COBLEYS LLP,140695561,"101,198.14",Legal Aid Payment Higher Crime
Ministry of Justice,LEGAL AID AGENCY,15/07/2015,Civil Representation,LEGAL AID FUND,DEBORAH SEITLER,140773525,"42,616.80",Legal Aid Payment Civil Representation
Ministry of Justice,LEGAL AID AGENCY,15/07/2015,Civil Representation,LEGAL AID FUND,EVANS MAIN SOLICITORS,140775304,"29,955.13",Legal Aid Payment Civil Representation
Ministry of Justice,LEGAL AID AGENCY,01/07/2015,Higher Crime,LEGAL AID FUND,LESLIE FRANKS SOLICITORS,140612307,"107,970.13",Legal Aid Payment Higher Crime
Ministry of Justice,LEGAL AID AGENCY,01/07/2015,Lower Crime,LEGAL AID FUND,RUSSELL & RUSSELL SOLICITORS,140634592,"38,154.00",Legal Aid Payment Lower Crime
Ministry of Justice,LEGAL AID AGENCY,01/07/2015,Lower Crime,LEGAL AID FUND,BOBBETTS MACKAN,140634049,"44,000.00",Legal Aid Payment Lower Crime
Ministry of Justice,LEGAL AID AGENCY,29/07/2015,Lower Crime,LEGAL AID FUND,SWITALSKI'S LTD,140990580,"26,452.00",Legal Aid Payment Lower Crime
Ministry of Justice,LEGAL AID AGENCY,08/07/2015,Higher Crime,LEGAL AID FUND,KATHERINE ROBINSON,140724077,"36,967.20",Legal Aid Payment Higher Crime
Ministry of Justice,LEGAL AID AGENCY,29/07/2015,Lower Crime,LEGAL AID FUND,ALLEN HOOLE SOLICITORS [0Q319P],140990108,"43,600.00",Legal Aid Payment Lower Crime
Ministry of Justice,LEGAL AID AGENCY,08/07/2015,Higher Crime,LEGAL AID FUND,SATYANAND S BEHARRYLALA,140683613,"34,675.07",Legal Aid Payment Higher Crime
Ministry of Justice,LEGAL AID AGENCY,01/07/2015,Higher Crime,LEGAL AID FUND,S A LAW CHAMBERS SOLICITORS,140611571,"129,088.88",Legal Aid Payment Higher Crime
Ministry of Justice,LEGAL AID AGENCY,01/07/2015,Lower Crime,LEGAL AID FUND,M K LAW SOLICITORS LTD,140634950,"86,281.00",Legal Aid Payment Lower Crime
Ministry of Justice,LEGAL AID AGENCY,01/07/2015,Higher Crime,LEGAL AID FUND,AHMED & CO,140612608,"74,919.74",Legal Aid Payment Higher Crime
Ministry of Justice,LEGAL AID AGENCY,08/07/2015,Higher Crime,LEGAL AID FUND,ALEXANDER JOHNSON [0G097C],140722455,"36,556.47",Legal Aid Payment Higher Crime
Ministry of Justice,LEGAL AID AGENCY,15/07/2015,Higher Crime,LEGAL AID FUND,ANTHONY E ORCHARD,140806198,"58,790.14",Legal Aid Payment Higher Crime
Ministry of Justice,LEGAL AID AGENCY,29/07/2015,Lower Crime,LEGAL AID FUND,STEVEN YOUNG & CO,140990833,"27,459.00",Legal Aid Payment Lower Crime
Ministry of Justice,LEGAL AID AGENCY,01/07/2015,Legal Help,LEGAL AID FUND,SOUTHWARK LAW CENTRE,140633450,"53,380.00",Legal Aid Payment Legal Help
Ministry of Justice,LEGAL AID AGENCY,01/07/2015,Lower Crime,LEGAL AID FUND,LEVY & CO SOLICITORS LLP,140633591,"42,100.00",Legal Aid Payment Lower Crime
Ministry of Justice,LEGAL AID AGENCY,08/07/2015,Higher Crime,LEGAL AID FUND,MOHAMMED NAWAZ,140695477,"38,223.46",Legal Aid Payment Higher Crime
Ministry of Justice,LEGAL AID AGENCY,29/07/2015,Higher Crime,LEGAL AID FUND,ANDREW J O'BYRNE QC,140993082,"31,196.14",Legal Aid Payment Higher Crime
Ministry of Justice,LEGAL AID AGENCY,29/07/2015,Lower Crime,LEGAL AID FUND,GEOFFREY FORRESTER & CO,140989847,"35,100.00",Legal Aid Payment Lower Crime
Ministry of Justice,LEGAL AID AGENCY,29/07/2015,Lower Crime,LEGAL AID FUND,RANDELL LLOYD & MARTIN SOLICITORS,140990286,"28,463.00",Legal Aid Payment Lower Crime
Ministry of Justice,LEGAL AID AGENCY,29/07/2015,Higher Crime,LEGAL AID FUND,HUTTON'S SOLICITORS LLP,140992639,"29,664.55",Legal Aid Payment Higher Crime
Ministry of Justice,LEGAL AID AGENCY,15/07/2015,Civil Representation,LEGAL AID FUND,PEPPERELLS SOLICITORS,3000000429010002,"26,379.60",Legal Aid Payment Civil Representation
Ministry of Justice,LEGAL AID AGENCY,01/07/2015,Lower Crime,LEGAL AID FUND,OLLIERS,140634634,"38,351.00",Legal Aid Payment Lower Crime
Ministry of Justice,LEGAL AID AGENCY,15/07/2015,Civil Representation,LEGAL AID FUND,ANNIE DIXON,140731235,"34,716.60",Legal Aid Payment Civil Representation
Ministry of Justice,LEGAL AID AGENCY,29/07/2015,Legal Help,LEGAL AID FUND,BLAVO & CO SOLICITORS LTD,141006330,"50,128.00",Legal Aid Payment Legal Help
Ministry of Justice,LEGAL AID AGENCY,01/07/2015,Higher Crime,LEGAL AID FUND,ANDREW J STUBBS,140637046,"30,580.75",Legal Aid Payment Higher Crime
Ministry of Justice,LEGAL AID AGENCY,29/07/2015,Legal Help,LEGAL AID FUND,HALLIDAY REEVES LAW FIRM,140989422,"26,660.00",Legal Aid Payment Legal Help
Ministry of Justice,LEGAL AID AGENCY,08/07/2015,Civil Representation,LEGAL AID FUND,SWITALSKI'S LTD,140732037,"40,012.91",Legal Aid Payment Civil Representation
Ministry of Justice,LEGAL AID AGENCY,29/07/2015,Higher Crime,LEGAL AID FUND,NICHOLAS D F WALKER,140963526,"32,593.19",Legal Aid Payment Higher Crime
Ministry of Justice,LEGAL AID AGENCY,22/07/2015,Higher Crime,LEGAL AID FUND,BROOKE LAVINGTON LAW,140837018,"50,612.98",Legal Aid Payment Higher Crime
Ministry of Justice,LEGAL AID AGENCY,01/07/2015,Lower Crime,LEGAL AID FUND,DJMS SOLICITORS LTD,140634499,"35,096.00",Legal Aid Payment Lower Crime
Ministry of Justice,LEGAL AID AGENCY,15/07/2015,Civil Representation,LEGAL AID FUND,CHRISTOPHER MELTON QC,140773305,"30,510.00",Legal Aid Payment Civil Representation
Ministry of Justice,LEGAL AID AGENCY,01/07/2015,Civil Representation,LEGAL AID FUND,EDWARD R HETHERINGTON,140575763,"25,344.00",Legal Aid Payment Civil Representation
Ministry of Justice,LEGAL AID AGENCY,01/07/2015,Lower Crime,LEGAL AID FUND,TAYLOR GOODCHILD LTD,140633810,"30,700.00",Legal Aid Payment Lower Crime
Ministry of Justice,LEGAL AID AGENCY,29/07/2015,Lower Crime,LEGAL AID FUND,FORBES SOLICITORS,140989973,"31,200.00",Legal Aid Payment Lower Crime
Ministry of Justice,LEGAL AID AGENCY,01/07/2015,Lower Crime,LEGAL AID FUND,SAKHI LEGAL SERVICES LTD,140634282,"30,848.00",Legal Aid Payment Lower Crime
Ministry of Justice,LEGAL AID AGENCY,22/07/2015,Higher Crime,LEGAL AID FUND,HODGE JONES & ALLEN LLP,140822708,"116,008.49",Legal Aid Payment Higher Crime
Ministry of Justice,LEGAL AID AGENCY,15/07/2015,Higher Crime,LEGAL AID FUND,COTISENS SOLICITORS,140806130,"33,938.99",Legal Aid Payment Higher Crime
Ministry of Justice,LEGAL AID AGENCY,01/07/2015,Lower Crime,LEGAL AID FUND,NORRIE WAITE & SLATER,140633823,"39,100.00",Legal Aid Payment Lower Crime
Ministry of Justice,LEGAL AID AGENCY,15/07/2015,Civil Representation,LEGAL AID FUND,BURNETTS SOLICITORS,140712897,"27,092.58",Legal Aid Payment Civil Representation
Ministry of Justice,LEGAL AID AGENCY,08/07/2015,Civil Representation,LEGAL AID FUND,M JAYNE PYE,140713121,"29,899.80",Legal Aid Payment Civil Representation
Ministry of Justice,LEGAL AID AGENCY,01/07/2015,Legal Help,LEGAL AID FUND,QS JACKSON CANTER LTD,140633216,"72,669.00",Legal Aid Payment Legal Help
Ministry of Justice,LEGAL AID AGENCY,29/07/2015,Lower Crime,LEGAL AID FUND,EBR ATTRIDGE LLP,140989708,"47,500.00",Legal Aid Payment Lower Crime
Ministry of Justice,LEGAL AID AGENCY,29/07/2015,Legal Help,LEGAL AID FUND,FADIGA & CO LTD,140989295,"38,832.00",Legal Aid Payment Legal Help
Ministry of Justice,LEGAL AID AGENCY,01/07/2015,Lower Crime,LEGAL AID FUND,S A LAW CHAMBERS SOLICITORS,140633630,"70,400.00",Legal Aid Payment Lower Crime
Ministry of Justice,LEGAL AID AGENCY,01/07/2015,Higher Crime,LEGAL AID FUND,BLACKFORDS LLP,140612576,"79,547.76",Legal Aid Payment Higher Crime
Ministry of Justice,LEGAL AID AGENCY,01/07/2015,Lower Crime,LEGAL AID FUND,HINE SOLICITORS,140634940,"36,928.00",Legal Aid Payment Lower Crime
Ministry of Justice,LEGAL AID AGENCY,01/07/2015,Lower Crime,LEGAL AID FUND,STEVENS SOLICITORS,140634101,"57,000.00",Legal Aid Payment Lower Crime
Ministry of Justice,LEGAL AID AGENCY,29/07/2015,Legal Help,LEGAL AID FUND,CARTWRIGHT KING SOLICITORS,140989445,"86,504.00",Legal Aid Payment Legal Help
Ministry of Justice,LEGAL AID AGENCY,01/07/2015,Lower Crime,LEGAL AID FUND,MCLARTYS SOLICITORS,140633688,"27,500.00",Legal Aid Payment Lower Crime
Ministry of Justice,LEGAL AID AGENCY,08/07/2015,Higher Crime,LEGAL AID FUND,ERIC ROBINSON SOLICITORS,140695789,"39,591.46",Legal Aid Payment Higher Crime
Ministry of Justice,LEGAL AID AGENCY,29/07/2015,Lower Crime,LEGAL AID FUND,DJMS SOLICITORS LTD,140990556,"42,588.00",Legal Aid Payment Lower Crime
Ministry of Justice,LEGAL AID AGENCY,29/07/2015,Lower Crime,LEGAL AID FUND,TEESSIDE LAW LTD,140991153,"37,110.00",Legal Aid Payment Lower Crime
Ministry of Justice,LEGAL AID AGENCY,01/07/2015,Lower Crime,LEGAL AID FUND,CARTWRIGHT KING SOLICITORS,140634196,"47,000.00",Legal Aid Payment Lower Crime
Ministry of Justice,LEGAL AID AGENCY,29/07/2015,Civil Representation,LEGAL AID FUND,FLG LTD,140973600,"28,783.60",Legal Aid Payment Civil Representation
Ministry of Justice,LEGAL AID AGENCY,08/07/2015,Higher Crime,LEGAL AID FUND,EVERETT TOMLIN LLOYD & PRATT,140667265,"50,154.90",Legal Aid Payment Higher Crime
Ministry of Justice,LEGAL AID AGENCY,29/07/2015,Civil Representation,LEGAL AID FUND,JULIA CHEETHAM,140732502,"38,436.00",Legal Aid Payment Civil Representation
Ministry of Justice,LEGAL AID AGENCY,15/07/2015,Higher Crime,LEGAL AID FUND,FORBES SOLICITORS,140814584,"139,547.40",Legal Aid Payment Higher Crime
Ministry of Justice,LEGAL AID AGENCY,15/07/2015,Higher Crime,LEGAL AID FUND,CHIVERS SOLICITORS,140768370,"51,469.80",Legal Aid Payment Higher Crime
Ministry of Justice,LEGAL AID AGENCY,29/07/2015,Lower Crime,LEGAL AID FUND,DAVID AKE & CO,140990630,"29,657.00",Legal Aid Payment Lower Crime
Ministry of Justice,LEGAL AID AGENCY,29/07/2015,Higher Crime,LEGAL AID FUND,COUSINS TYRER SOLICITORS,140926819,"56,270.38",Legal Aid Payment Higher Crime
Ministry of Justice,LEGAL AID AGENCY,29/07/2015,Lower Crime,LEGAL AID FUND,CROWE HUMBLE WESENCRAFT,140989857,"61,700.00",Legal Aid Payment Lower Crime
Ministry of Justice,LEGAL AID AGENCY,08/07/2015,Higher Crime,LEGAL AID FUND,ROBERT F SPRAGG,140729487,"42,095.88",Legal Aid Payment Higher Crime
Ministry of Justice,LEGAL AID AGENCY,29/07/2015,Lower Crime,LEGAL AID FUND,ROY FOREMAN & CO SOLICITORS,140989917,"34,000.00",Legal Aid Payment Lower Crime
Ministry of Justice,LEGAL AID AGENCY,29/07/2015,Lower Crime,LEGAL AID FUND,BELMORES SOLICITORS LTD,140989659,"45,000.00",Legal Aid Payment Lower Crime
Ministry of Justice,LEGAL AID AGENCY,01/07/2015,Legal Help,LEGAL AID FUND,FADIGA & CO LTD,140633240,"48,418.00",Legal Aid Payment Legal Help
Ministry of Justice,LEGAL AID AGENCY,29/07/2015,Lower Crime,LEGAL AID FUND,SANSBURY DOUGLAS,140990215,"54,000.00",Legal Aid Payment Lower Crime
Ministry of Justice,LEGAL AID AGENCY,08/07/2015,Higher Crime,LEGAL AID FUND,PETER C E MOULSON,140723036,"77,714.27",Legal Aid Payment Higher Crime
Ministry of Justice,LEGAL AID AGENCY,29/07/2015,Legal Help,LEGAL AID FUND,THALIWAL & CO LTD,140989433,"31,382.00",Legal Aid Payment Legal Help
Ministry of Justice,LEGAL AID AGENCY,01/07/2015,Higher Crime,LEGAL AID FUND,HINE SOLICITORS,140636580,"28,067.29",Legal Aid Payment Higher Crime
Ministry of Justice,LEGAL AID AGENCY,01/07/2015,Legal Help,LEGAL AID FUND,RMNJ SOLICITORS ,140633214,"31,729.00",Legal Aid Payment Legal Help
Ministry of Justice,LEGAL AID AGENCY,01/07/2015,Civil Representation,LEGAL AID FUND,PEARSONS,140615293,"34,627.68",Legal Aid Payment Civil Representation
Ministry of Justice,LEGAL AID AGENCY,29/07/2015,Lower Crime,LEGAL AID FUND,LESLIE FRANKS SOLICITORS,140990493,"91,296.00",Legal Aid Payment Lower Crime
Ministry of Justice,LEGAL AID AGENCY,29/07/2015,Lower Crime,LEGAL AID FUND,COLIN JONES CLARKE & HARTLAND SOLICITORS,140991123,"26,505.00",Legal Aid Payment Lower Crime
Ministry of Justice,LEGAL AID AGENCY,22/07/2015,Higher Crime,LEGAL AID FUND,DASS SOLICITORS,140903802,"28,335.36",Legal Aid Payment Higher Crime
Ministry of Justice,LEGAL AID AGENCY,29/07/2015,Higher Crime,LEGAL AID FUND,BLACKFORDS LLP,140993214,"42,887.86",Legal Aid Payment Higher Crime
Ministry of Justice,LEGAL AID AGENCY,01/07/2015,Legal Help,LEGAL AID FUND,BUTLER & CO,140632615,"36,500.00",Legal Aid Payment Legal Help
Ministry of Justice,LEGAL AID AGENCY,29/07/2015,Lower Crime,LEGAL AID FUND,REEDS SOLICITORS LTD,140990955,"39,982.00",Legal Aid Payment Lower Crime
Ministry of Justice,LEGAL AID AGENCY,15/07/2015,Civil Representation,LEGAL AID FUND,DANIEL NOTHER,140774664,"51,984.00",Legal Aid Payment Civil Representation
Ministry of Justice,LEGAL AID AGENCY,29/07/2015,Lower Crime,LEGAL AID FUND,ROWE SPARKES SOLICITORS LTD,140990053,"37,500.00",Legal Aid Payment Lower Crime
Ministry of Justice,LEGAL AID AGENCY,01/07/2015,Lower Crime,LEGAL AID FUND,LLM SOLICITORS (LONDON) LTD,140635002,"44,544.00",Legal Aid Payment Lower Crime
Ministry of Justice,LEGAL AID AGENCY,01/07/2015,Lower Crime,LEGAL AID FUND,TUCKERS SOLICITORS LLP,140633940,"80,900.00",Legal Aid Payment Lower Crime
Ministry of Justice,LEGAL AID AGENCY,01/07/2015,Lower Crime,LEGAL AID FUND,CARTWRIGHT KING SOLICITORS,140634199,"26,000.00",Legal Aid Payment Lower Crime
Ministry of Justice,LEGAL AID AGENCY,01/07/2015,Lower Crime,LEGAL AID FUND,SINGLETON WINN SAUNDERS,140633807,"28,700.00",Legal Aid Payment Lower Crime
Ministry of Justice,LEGAL AID AGENCY,01/07/2015,Lower Crime,LEGAL AID FUND,STOCK MORAN & SWALWELL,140633881,"35,900.00",Legal Aid Payment Lower Crime
Ministry of Justice,LEGAL AID AGENCY,01/07/2015,Legal Help,LEGAL AID FUND,QS JACKSON CANTER LTD,140605313,"74,062.00",Legal Aid Payment Legal Help
Ministry of Justice,LEGAL AID AGENCY,29/07/2015,Lower Crime,LEGAL AID FUND,STOCK MORAN & SWALWELL,140989943,"35,900.00",Legal Aid Payment Lower Crime
Ministry of Justice,LEGAL AID AGENCY,22/07/2015,Higher Crime,LEGAL AID FUND,MICHAEL J IVERS,140910897,"35,749.09",Legal Aid Payment Higher Crime
Ministry of Justice,LEGAL AID AGENCY,29/07/2015,Lower Crime,LEGAL AID FUND,BURNLEY JONES BATE & CO,140989700,"28,100.00",Legal Aid Payment Lower Crime
Ministry of Justice,LEGAL AID AGENCY,29/07/2015,Legal Help,LEGAL AID FUND,ABBOTSTONE LAW LLP,140984160,"29,496.00",Legal Aid Payment Legal Help
Ministry of Justice,LEGAL AID AGENCY,01/07/2015,Higher Crime,LEGAL AID FUND,SARAH J ELLIOT,140636943,"41,858.56",Legal Aid Payment Higher Crime
Ministry of Justice,LEGAL AID AGENCY,22/07/2015,Higher Crime,LEGAL AID FUND,FORTIS ROSE SOLICITORS LTD,140886969,"71,487.52",Legal Aid Payment Higher Crime
Ministry of Justice,LEGAL AID AGENCY,29/07/2015,Lower Crime,LEGAL AID FUND,RILEY HAYES & CO,140990202,"39,500.00",Legal Aid Payment Lower Crime
Ministry of Justice,LEGAL AID AGENCY,29/07/2015,Civil Representation,LEGAL AID FUND,KARL J ROWLEY,140949591,"45,036.00",Legal Aid Payment Civil Representation
Ministry of Justice,LEGAL AID AGENCY,01/07/2015,Lower Crime,LEGAL AID FUND,MPR SOLICITORS LLP,140633732,"26,000.00",Legal Aid Payment Lower Crime
Ministry of Justice,LEGAL AID AGENCY,01/07/2015,Lower Crime,LEGAL AID FUND,CRIMINAL DEFENCE SOLICITORS,140633723,"43,200.00",Legal Aid Payment Lower Crime
Ministry of Justice,LEGAL AID AGENCY,29/07/2015,Lower Crime,LEGAL AID FUND,THE CASTLE PARTNERSHIP,140990032,"33,200.00",Legal Aid Payment Lower Crime
Ministry of Justice,LEGAL AID AGENCY,29/07/2015,Lower Crime,LEGAL AID FUND,MORGAN CULLEN BALL LTD,140991117,"33,897.00",Legal Aid Payment Lower Crime
Ministry of Justice,LEGAL AID AGENCY,01/07/2015,Lower Crime,LEGAL AID FUND,EBR ATTRIDGE LLP,140633655,"34,200.00",Legal Aid Payment Lower Crime
Ministry of Justice,LEGAL AID AGENCY,07/07/2015,Civil Representation,LEGAL AID FUND,HUGH JAMES,Ledger Transfer Adjustment 815,"124,692.84",Legal Aid Payment Civil Representation
Ministry of Justice,LEGAL AID AGENCY,15/07/2015,Higher Crime,LEGAL AID FUND,K LEGAL SOLICITORS,140768411,"34,681.70",Legal Aid Payment Higher Crime
Ministry of Justice,LEGAL AID AGENCY,01/07/2015,Lower Crime,LEGAL AID FUND,THOMAS BOYD WHYTE,140634399,"54,956.00",Legal Aid Payment Lower Crime
Ministry of Justice,LEGAL AID AGENCY,29/07/2015,Lower Crime,LEGAL AID FUND,J D SPICER ZEB,140990454,"121,671.00",Legal Aid Payment Lower Crime
Ministry of Justice,LEGAL AID AGENCY,29/07/2015,Higher Crime,LEGAL AID FUND,OLLIERS,140991633,"66,093.76",Legal Aid Payment Higher Crime
Ministry of Justice,LEGAL AID AGENCY,01/07/2015,Lower Crime,LEGAL AID FUND,HARTHILLS,140633820,"28,000.00",Legal Aid Payment Lower Crime
Ministry of Justice,LEGAL AID AGENCY,22/07/2015,Civil Representation,LEGAL AID FUND,PEARSONS,140827570,"47,337.13",Legal Aid Payment Civil Representation
Ministry of Justice,LEGAL AID AGENCY,01/07/2015,Higher Crime,LEGAL AID FUND,MORGAN ROSE LTD,140568344,"51,641.40",Legal Aid Payment Higher Crime
Ministry of Justice,LEGAL AID AGENCY,01/07/2015,Higher Crime,LEGAL AID FUND,BENJAMIN NARAIN,140636811,"26,168.05",Legal Aid Payment Higher Crime
Ministry of Justice,LEGAL AID AGENCY,29/07/2015,Lower Crime,LEGAL AID FUND,HINE SOLICITORS,140990998,"36,694.00",Legal Aid Payment Lower Crime
Ministry of Justice,LEGAL AID AGENCY,29/07/2015,Lower Crime,LEGAL AID FUND,HANSELL DREW & CO LTD,140990811,"26,115.00",Legal Aid Payment Lower Crime
Ministry of Justice,LEGAL AID AGENCY,01/07/2015,Lower Crime,LEGAL AID FUND,REEDS SOLICITORS LTD,140635111,"27,397.00",Legal Aid Payment Lower Crime
Ministry of Justice,LEGAL AID AGENCY,29/07/2015,Legal Help,LEGAL AID FUND,BIRNBERG PEIRCE LTD,140988672,"29,300.00",Legal Aid Payment Legal Help
Ministry of Justice,LEGAL AID AGENCY,01/07/2015,Lower Crime,LEGAL AID FUND,WANNOPS LLP,140635078,"25,710.00",Legal Aid Payment Lower Crime
Ministry of Justice,LEGAL AID AGENCY,29/07/2015,Lower Crime,LEGAL AID FUND,JSP LAW LTD,140991038,"79,607.00",Legal Aid Payment Lower Crime
Ministry of Justice,LEGAL AID AGENCY,01/07/2015,Lower Crime,LEGAL AID FUND,STEVENS SOLICITORS,140634100,"54,100.00",Legal Aid Payment Lower Crime
Ministry of Justice,LEGAL AID AGENCY,01/07/2015,Higher Crime,LEGAL AID FUND,RICHARD H CHRISTIE QC,140611497,"51,194.90",Legal Aid Payment Higher Crime
Ministry of Justice,LEGAL AID AGENCY,15/07/2015,Higher Crime,LEGAL AID FUND,STEPHEN LICKRISH & ASSOCIATES LTD,140738024,"37,602.02",Legal Aid Payment Higher Crime
Ministry of Justice,LEGAL AID AGENCY,01/07/2015,Civil Representation,LEGAL AID FUND,JOHN MYERS,140150600,"53,622.00",Legal Aid Payment Civil Representation
Ministry of Justice,LEGAL AID AGENCY,29/07/2015,Lower Crime,LEGAL AID FUND,YARWOOD & STUBLEY,140989834,"47,000.00",Legal Aid Payment Lower Crime
Ministry of Justice,LEGAL AID AGENCY,29/07/2015,Lower Crime,LEGAL AID FUND,NORRIE WAITE & SLATER,140989884,"39,100.00",Legal Aid Payment Lower Crime
Ministry of Justice,LEGAL AID AGENCY,01/07/2015,Higher Crime,LEGAL AID FUND,FOOTNER & EWING,140584704,"50,262.91",Legal Aid Payment Higher Crime
Ministry of Justice,LEGAL AID AGENCY,29/07/2015,Lower Crime,LEGAL AID FUND,CARTWRIGHT KING SOLICITORS,140990251,"26,000.00",Legal Aid Payment Lower Crime
Ministry of Justice,LEGAL AID AGENCY,29/07/2015,Lower Crime,LEGAL AID FUND,LHD SOLICITORS LTD,140989946,"60,000.00",Legal Aid Payment Lower Crime
Ministry of Justice,LEGAL AID AGENCY,29/07/2015,Lower Crime,LEGAL AID FUND,TAYLOR HALDANE BARLEX LLP,140990407,"25,623.00",Legal Aid Payment Lower Crime
Ministry of Justice,LEGAL AID AGENCY,29/07/2015,Lower Crime,LEGAL AID FUND,SCOTT-MONCRIEFF & ASSOCIATES LLP,140989772,"38,300.00",Legal Aid Payment Lower Crime
Ministry of Justice,LEGAL AID AGENCY,08/07/2015,Civil Representation,LEGAL AID FUND,ALISON D MOORE,140601407,"29,145.89",Legal Aid Payment Civil Representation
Ministry of Justice,LEGAL AID AGENCY,29/07/2015,Legal Help,LEGAL AID FUND,BLAVO & CO SOLICITORS LTD,141006334,"58,290.00",Legal Aid Payment Legal Help
Ministry of Justice,LEGAL AID AGENCY,08/07/2015,Civil Representation,LEGAL AID FUND,IRWIN MITCHELL LLP,Ledger Transfer Adjustment 811,"917,697.35",Legal Aid Payment Civil Representation
Ministry of Justice,LEGAL AID AGENCY,29/07/2015,Lower Crime,LEGAL AID FUND,WILLIAMSONS SOLICITORS LTD,140989929,"36,600.00",Legal Aid Payment Lower Crime
Ministry of Justice,LEGAL AID AGENCY,29/07/2015,Lower Crime,LEGAL AID FUND,GOLDSTONES SOLICITORS LTD,140989566,"32,400.00",Legal Aid Payment Lower Crime
Ministry of Justice,LEGAL AID AGENCY,29/07/2015,Lower Crime,LEGAL AID FUND,CARTWRIGHT KING SOLICITORS,140990356,"30,655.00",Legal Aid Payment Lower Crime
Ministry of Justice,LEGAL AID AGENCY,01/07/2015,Higher Crime,LEGAL AID FUND,LLOYDS PR SOLICITORS,140612688,"77,650.48",Legal Aid Payment Higher Crime
Ministry of Justice,LEGAL AID AGENCY,08/07/2015,Higher Crime,LEGAL AID FUND,TIMOTHY W H RAGGATT QC,140654338,"55,338.08",Legal Aid Payment Higher Crime
Ministry of Justice,LEGAL AID AGENCY,01/07/2015,Lower Crime,LEGAL AID FUND,MCCORMACKS LAW,140634923,"27,997.00",Legal Aid Payment Lower Crime
Ministry of Justice,LEGAL AID AGENCY,29/07/2015,Lower Crime,LEGAL AID FUND,GALBRAITH BRANLEY SOLICITORS,140990459,"45,762.00",Legal Aid Payment Lower Crime
Ministry of Justice,LEGAL AID AGENCY,01/07/2015,Lower Crime,LEGAL AID FUND,DJMS SOLICITORS LTD,140635081,"28,164.00",Legal Aid Payment Lower Crime
Ministry of Justice,LEGAL AID AGENCY,08/07/2015,Higher Crime,LEGAL AID FUND,ABV SOLICITORS,140667142,"36,163.98",Legal Aid Payment Higher Crime
Ministry of Justice,LEGAL AID AGENCY,08/07/2015,Higher Crime,LEGAL AID FUND,SHAW GRAHAM KERSH,140723629,"37,494.38",Legal Aid Payment Higher Crime
Ministry of Justice,LEGAL AID AGENCY,29/07/2015,Lower Crime,LEGAL AID FUND,TAYLOR GOODCHILD LTD,140989871,"30,700.00",Legal Aid Payment Lower Crime
Ministry of Justice,LEGAL AID AGENCY,01/07/2015,Higher Crime,LEGAL AID FUND,O'KEEFFE SOLICITORS,140612767,"49,538.05",Legal Aid Payment Higher Crime
Ministry of Justice,LEGAL AID AGENCY,01/07/2015,Higher Crime,LEGAL AID FUND,COLIN C AYLOTT,140612330,"29,500.92",Legal Aid Payment Higher Crime
Ministry of Justice,LEGAL AID AGENCY,01/07/2015,Lower Crime,LEGAL AID FUND,STEPHEN BURDON SOLICITORS,140633552,"29,500.00",Legal Aid Payment Lower Crime
Ministry of Justice,LEGAL AID AGENCY,01/07/2015,Lower Crime,LEGAL AID FUND,ALEXANDER BENNETT,140634192,"27,000.00",Legal Aid Payment Lower Crime
Ministry of Justice,LEGAL AID AGENCY,01/07/2015,Higher Crime,LEGAL AID FUND,A.A MIRSONS SOLICITORS LTD,140612692,"55,591.19",Legal Aid Payment Higher Crime
Ministry of Justice,LEGAL AID AGENCY,01/07/2015,Lower Crime,LEGAL AID FUND,THE JOHNSON PARTNERSHIP,140634188,"41,600.00",Legal Aid Payment Lower Crime
Ministry of Justice,LEGAL AID AGENCY,01/07/2015,Lower Crime,LEGAL AID FUND,JOHN FULLER & PARTNERS,140634313,"27,410.00",Legal Aid Payment Lower Crime
Ministry of Justice,LEGAL AID AGENCY,01/07/2015,Lower Crime,LEGAL AID FUND,RICHARDSON SOLICITORS,140633983,"27,700.00",Legal Aid Payment Lower Crime
Ministry of Justice,LEGAL AID AGENCY,29/07/2015,Lower Crime,LEGAL AID FUND,ROBERT LIZAR,140990006,"40,100.00",Legal Aid Payment Lower Crime
Ministry of Justice,LEGAL AID AGENCY,01/07/2015,Lower Crime,LEGAL AID FUND,WESSEX SOLICITORS CHAMBERS,140634158,"60,000.00",Legal Aid Payment Lower Crime
Ministry of Justice,LEGAL AID AGENCY,29/07/2015,Lower Crime,LEGAL AID FUND,MOWBRAY WOODWARDS LTD,140990113,"31,300.00",Legal Aid Payment Lower Crime
Ministry of Justice,LEGAL AID AGENCY,29/07/2015,Lower Crime,LEGAL AID FUND,MCSORLEY LEWIS LAW LTD,140989571,"25,000.00",Legal Aid Payment Lower Crime
Ministry of Justice,LEGAL AID AGENCY,01/07/2015,Lower Crime,LEGAL AID FUND,RMNJ SOLICITORS ***,140634473,"29,425.00",Legal Aid Payment Lower Crime
Ministry of Justice,LEGAL AID AGENCY,29/07/2015,Lower Crime,LEGAL AID FUND,NELSON GUEST & PARTNERS,140989738,"54,600.00",Legal Aid Payment Lower Crime
Ministry of Justice,LEGAL AID AGENCY,15/07/2015,Civil Representation,LEGAL AID FUND,BURNETTS SOLICITORS,140425195,"26,890.98",Legal Aid Payment Civil Representation
Ministry of Justice,LEGAL AID AGENCY,29/07/2015,Legal Help,LEGAL AID FUND,LISA MARIE MCNULTY SOLICITOR,140989379,"29,379.00",Legal Aid Payment Legal Help
Ministry of Justice,LEGAL AID AGENCY,01/07/2015,Lower Crime,LEGAL AID FUND,BSB SOLICITORS,140633644,"25,300.00",Legal Aid Payment Lower Crime
Ministry of Justice,LEGAL AID AGENCY,29/07/2015,Lower Crime,LEGAL AID FUND,G T STEWART SOLICITORS,140990987,"30,397.00",Legal Aid Payment Lower Crime
Ministry of Justice,LEGAL AID AGENCY,01/07/2015,Lower Crime,LEGAL AID FUND,HINE SOLICITORS,140634942,"40,002.00",Legal Aid Payment Lower Crime
Ministry of Justice,LEGAL AID AGENCY,01/07/2015,Lower Crime,LEGAL AID FUND,BIRDS SOLICITORS LTD,140633653,"52,700.00",Legal Aid Payment Lower Crime
Ministry of Justice,LEGAL AID AGENCY,29/07/2015,Lower Crime,LEGAL AID FUND,H P GOWER SOLICITORS,140991041,"53,033.00",Legal Aid Payment Lower Crime
Ministry of Justice,LEGAL AID AGENCY,01/07/2015,Legal Help,LEGAL AID FUND,WOLTON & CO,140633031,"28,677.00",Legal Aid Payment Legal Help
Ministry of Justice,LEGAL AID AGENCY,01/07/2015,Legal Help,LEGAL AID FUND,DUNCAN LEWIS,140590347,"268,400.00",Legal Aid Payment Legal Help
Ministry of Justice,LEGAL AID AGENCY,01/07/2015,Lower Crime,LEGAL AID FUND,OSLERS SOLICITORS,140633602,"50,200.00",Legal Aid Payment Lower Crime
Ministry of Justice,LEGAL AID AGENCY,15/07/2015,Civil Representation,LEGAL AID FUND,JENNIFER BARKER,140748693,"45,630.00",Legal Aid Payment Civil Representation
Ministry of Justice,LEGAL AID AGENCY,08/07/2015,Civil Representation,LEGAL AID FUND,PEPPERELLS SOLICITORS,140687289,"37,124.61",Legal Aid Payment Civil Representation
Ministry of Justice,LEGAL AID AGENCY,15/07/2015,Higher Crime,LEGAL AID FUND,ALI N BAJWA QC,140806744,"36,705.50",Legal Aid Payment Higher Crime
Ministry of Justice,LEGAL AID AGENCY,01/07/2015,Civil Representation,LEGAL AID FUND,BELL LAMB & JOYNSON,140619911,"33,579.30",Legal Aid Payment Civil Representation
Ministry of Justice,LEGAL AID AGENCY,08/07/2015,Higher Crime,LEGAL AID FUND,RICHARD G SIMONS,140694912,"38,677.68",Legal Aid Payment Higher Crime
Ministry of Justice,LEGAL AID AGENCY,29/07/2015,Legal Help,LEGAL AID FUND,O'DONNELLS SOLICITORS,140989378,"33,900.00",Legal Aid Payment Legal Help
Ministry of Justice,LEGAL AID AGENCY,01/07/2015,Civil Representation,LEGAL AID FUND,WOODFINES LLP,140573070,"46,082.58",Legal Aid Payment Civil Representation
Ministry of Justice,LEGAL AID AGENCY,29/07/2015,Lower Crime,LEGAL AID FUND,CARTWRIGHT CLARK LTD,140990781,"55,620.00",Legal Aid Payment Lower Crime
Ministry of Justice,LEGAL AID AGENCY,08/07/2015,Civil Representation,LEGAL AID FUND,IRWIN MITCHELL LLP,Ledger Transfer Adjustment 814,"277,670.66",Legal Aid Payment Civil Representation
Ministry of Justice,LEGAL AID AGENCY,22/07/2015,Civil Representation,LEGAL AID FUND,T LLEWELLYN JONES,140811112,"29,852.41",Legal Aid Payment Civil Representation
Ministry of Justice,LEGAL AID AGENCY,01/07/2015,Legal Help,LEGAL AID FUND,BURKE NIAZI  LTD,140632766,"90,000.00",Legal Aid Payment Legal Help
Ministry of Justice,LEGAL AID AGENCY,01/07/2015,Lower Crime,LEGAL AID FUND,CONNOR ROSS-BROWN SOLICITORS,140634183,"53,000.00",Legal Aid Payment Lower Crime
Ministry of Justice,LEGAL AID AGENCY,01/07/2015,Lower Crime,LEGAL AID FUND,GALBRAITH BRANLEY SOLICITORS,140634405,"34,035.00",Legal Aid Payment Lower Crime
Ministry of Justice,LEGAL AID AGENCY,15/07/2015,Higher Crime,LEGAL AID FUND,DOMINIC D F WEBBER,140781581,"30,335.64",Legal Aid Payment Higher Crime
Ministry of Justice,LEGAL AID AGENCY,29/07/2015,Lower Crime,LEGAL AID FUND,MCCORMACKS LAW,140990978,"27,618.00",Legal Aid Payment Lower Crime
Ministry of Justice,LEGAL AID AGENCY,29/07/2015,Lower Crime,LEGAL AID FUND,VICKERS CHISMAN & WISHLADE,140989832,"43,800.00",Legal Aid Payment Lower Crime
Ministry of Justice,LEGAL AID AGENCY,01/07/2015,Lower Crime,LEGAL AID FUND,GEPP & SONS SOLICITORS,140633603,"30,000.00",Legal Aid Payment Lower Crime
Ministry of Justice,LEGAL AID AGENCY,29/07/2015,Lower Crime,LEGAL AID FUND,LAWTONS,140989640,"45,700.00",Legal Aid Payment Lower Crime
Ministry of Justice,LEGAL AID AGENCY,22/07/2015,Higher Crime,LEGAL AID FUND,LEE N KARUNAIRETNAM,140873691,"49,902.56",Legal Aid Payment Higher Crime
Ministry of Justice,LEGAL AID AGENCY,29/07/2015,Lower Crime,LEGAL AID FUND,CLARKE KIERNAN,140990736,"34,173.00",Legal Aid Payment Lower Crime
Ministry of Justice,LEGAL AID AGENCY,01/07/2015,Lower Crime,LEGAL AID FUND,J D SOLICITORS,140634835,"41,368.00",Legal Aid Payment Lower Crime
Ministry of Justice,LEGAL AID AGENCY,01/07/2015,Higher Crime,LEGAL AID FUND,ANTHONY M STEPHENSON,140583495,"37,124.26",Legal Aid Payment Higher Crime
Ministry of Justice,LEGAL AID AGENCY,29/07/2015,Lower Crime,LEGAL AID FUND,KAIM TODNER SOLICITORS LIMITED,140990439,"40,982.00",Legal Aid Payment Lower Crime
Ministry of Justice,LEGAL AID AGENCY,29/07/2015,Higher Crime,LEGAL AID FUND,PETER BIRKETT QC,140926440,"44,023.78",Legal Aid Payment Higher Crime
Ministry of Justice,LEGAL AID AGENCY,29/07/2015,Lower Crime,LEGAL AID FUND,SMITH PARTNERSHIP,140989622,"27,000.00",Legal Aid Payment Lower Crime
Ministry of Justice,LEGAL AID AGENCY,01/07/2015,Lower Crime,LEGAL AID FUND,PHILIP HANBY LTD T/A ANDREW JAY & CO,140634304,"33,253.00",Legal Aid Payment Lower Crime
Ministry of Justice,LEGAL AID AGENCY,15/07/2015,Civil Representation,LEGAL AID FUND,CAROL J TRIMMER,140727774,"64,590.13",Legal Aid Payment Civil Representation
Ministry of Justice,LEGAL AID AGENCY,15/07/2015,Civil Representation,LEGAL AID FUND,KULDIP SINGH QC,140749014,"52,138.28",Legal Aid Payment Civil Representation
Ministry of Justice,LEGAL AID AGENCY,22/07/2015,Higher Crime,LEGAL AID FUND,FARADAYS SOLICITORS LTD,140911718,"32,750.52",Legal Aid Payment Higher Crime
Ministry of Justice,LEGAL AID AGENCY,29/07/2015,Lower Crime,LEGAL AID FUND,JERMAN SAMUELS & PEARSON LLP,140989653,"25,500.00",Legal Aid Payment Lower Crime
Ministry of Justice,LEGAL AID AGENCY,01/07/2015,Higher Crime,LEGAL AID FUND,WELLS BURCOMBE LLP,140612617,"116,008.49",Legal Aid Payment Higher Crime
Ministry of Justice,LEGAL AID AGENCY,29/07/2015,Lower Crime,LEGAL AID FUND,WOODS SOLICITORS,140990591,"25,755.00",Legal Aid Payment Lower Crime
Ministry of Justice,LEGAL AID AGENCY,29/07/2015,Lower Crime,LEGAL AID FUND,WALTERS & PLASKITT-INC LESLIE DODD & CO,140990159,"26,400.00",Legal Aid Payment Lower Crime
Ministry of Justice,LEGAL AID AGENCY,01/07/2015,Legal Help,LEGAL AID FUND,PETER EDWARDS LAW LTD,140632735,"59,200.00",Legal Aid Payment Legal Help
Ministry of Justice,LEGAL AID AGENCY,01/07/2015,Higher Crime,LEGAL AID FUND,RED KITE LAW LLP,140635583,"81,856.32",Legal Aid Payment Higher Crime
Ministry of Justice,LEGAL AID AGENCY,22/07/2015,Higher Crime,LEGAL AID FUND,CARTER MOORE SOLICITORS LTD,140873275,"70,481.69",Legal Aid Payment Higher Crime
Ministry of Justice,LEGAL AID AGENCY,01/07/2015,Legal Help,LEGAL AID FUND,AASKELLS SOLICITORS & ADVOCATES,140633254,"28,295.00",Legal Aid Payment Legal Help
Ministry of Justice,LEGAL AID AGENCY,01/07/2015,Lower Crime,LEGAL AID FUND,ABBEY SOLICITORS,140633946,"42,700.00",Legal Aid Payment Lower Crime
Ministry of Justice,LEGAL AID AGENCY,29/07/2015,Higher Crime,LEGAL AID FUND,LOUISE S MUIR-WILSON,140956142,"26,372.76",Legal Aid Payment Higher Crime
Ministry of Justice,LEGAL AID AGENCY,15/07/2015,Civil Representation,LEGAL AID FUND,FLG LTD,140810645,"26,867.06",Legal Aid Payment Civil Representation
Ministry of Justice,LEGAL AID AGENCY,01/07/2015,Lower Crime,LEGAL AID FUND,BLACKWELLS,140633844,"31,000.00",Legal Aid Payment Lower Crime
Ministry of Justice,LEGAL AID AGENCY,01/07/2015,Higher Crime,LEGAL AID FUND,I B B SOLICITORS,140637153,"38,008.33",Legal Aid Payment Higher Crime
Ministry of Justice,LEGAL AID AGENCY,29/07/2015,Lower Crime,LEGAL AID FUND,SWAIN & CO SOLICITORS LLP,140989694,"25,700.00",Legal Aid Payment Lower Crime
Ministry of Justice,LEGAL AID AGENCY,01/07/2015,Lower Crime,LEGAL AID FUND,MCGANNS LAW LTD,140633548,"60,300.00",Legal Aid Payment Lower Crime
Ministry of Justice,LEGAL AID AGENCY,29/07/2015,Lower Crime,LEGAL AID FUND,TRANTERS CRIMINAL LAW PRACTICE,140989999,"27,100.00",Legal Aid Payment Lower Crime
Ministry of Justice,LEGAL AID AGENCY,22/07/2015,Higher Crime,LEGAL AID FUND,RH LAW LLP,140911219,"35,943.90",Legal Aid Payment Higher Crime
Ministry of Justice,LEGAL AID AGENCY,01/07/2015,Higher Crime,LEGAL AID FUND,DARRYL CHERRETT,140583846,"36,537.00",Legal Aid Payment Higher Crime
Ministry of Justice,LEGAL AID AGENCY,29/07/2015,Lower Crime,LEGAL AID FUND,BLACKWELLS,140989906,"31,000.00",Legal Aid Payment Lower Crime
Ministry of Justice,LEGAL AID AGENCY,22/07/2015,Civil Representation,LEGAL AID FUND,BINDMANS LLP,140796056,"49,153.57",Legal Aid Payment Civil Representation
Ministry of Justice,LEGAL AID AGENCY,01/07/2015,Higher Crime,LEGAL AID FUND,ALEX MENARY,140636627,"30,521.78",Legal Aid Payment Higher Crime
Ministry of Justice,LEGAL AID AGENCY,08/07/2015,Higher Crime,LEGAL AID FUND,IRWIN MITCHELL LLP,140716376,"130,556.09",Legal Aid Payment Higher Crime
Ministry of Justice,LEGAL AID AGENCY,01/07/2015,Lower Crime,LEGAL AID FUND,CJH GREENHILL COOPER SOLICITORS,140633560,"33,500.00",Legal Aid Payment Lower Crime
Ministry of Justice,LEGAL AID AGENCY,01/07/2015,Lower Crime,LEGAL AID FUND,T V EDWARDS LLP,140633696,"100,000.00",Legal Aid Payment Lower Crime
Ministry of Justice,LEGAL AID AGENCY,01/07/2015,Lower Crime,LEGAL AID FUND,METCALFE COPEMAN & PETTEFAR,140633611,"38,800.00",Legal Aid Payment Lower Crime
Ministry of Justice,LEGAL AID AGENCY,01/07/2015,Lower Crime,LEGAL AID FUND,STEVENS SOLICITORS,140634107,"48,600.00",Legal Aid Payment Lower Crime
Ministry of Justice,LEGAL AID AGENCY,08/07/2015,Civil Representation,LEGAL AID FUND,KATE TOMPKINS,140715062,"32,698.16",Legal Aid Payment Civil Representation
Ministry of Justice,LEGAL AID AGENCY,29/07/2015,Legal Help,LEGAL AID FUND,CROWN HOUSE SOLICITORS,140984148,"40,491.00",Legal Aid Payment Legal Help
Ministry of Justice,LEGAL AID AGENCY,01/07/2015,Lower Crime,LEGAL AID FUND,BURNLEY JONES BATE & CO,140633639,"28,100.00",Legal Aid Payment Lower Crime
Ministry of Justice,LEGAL AID AGENCY,22/07/2015,Higher Crime,LEGAL AID FUND,PETER N LODDER,140918878,"49,599.66",Legal Aid Payment Higher Crime
Ministry of Justice,LEGAL AID AGENCY,22/07/2015,Higher Crime,LEGAL AID FUND,HARRIS CUFFARO & NICHOLS,140872559,"33,938.99",Legal Aid Payment Higher Crime
Ministry of Justice,LEGAL AID AGENCY,29/07/2015,Lower Crime,LEGAL AID FUND,ALBIN & CO LTD,140990075,"46,800.00",Legal Aid Payment Lower Crime
Ministry of Justice,LEGAL AID AGENCY,01/07/2015,Higher Crime,LEGAL AID FUND,KELLOCKS,140567005,"48,558.47",Legal Aid Payment Higher Crime
Ministry of Justice,LEGAL AID AGENCY,29/07/2015,Lower Crime,LEGAL AID FUND,BOBBETTS MACKAN,140990105,"44,000.00",Legal Aid Payment Lower Crime
Ministry of Justice,LEGAL AID AGENCY,22/07/2015,Higher Crime,LEGAL AID FUND,GOLDKORNS,140822680,"26,765.04",Legal Aid Payment Higher Crime
Ministry of Justice,LEGAL AID AGENCY,01/07/2015,Lower Crime,LEGAL AID FUND,CLIVE REES & ASSOCIATES,140633505,"25,000.00",Legal Aid Payment Lower Crime
Ministry of Justice,LEGAL AID AGENCY,08/07/2015,Higher Crime,LEGAL AID FUND,JOSEPH HILL & CO,140723249,"77,729.90",Legal Aid Payment Higher Crime
Ministry of Justice,LEGAL AID AGENCY,29/07/2015,Lower Crime,LEGAL AID FUND,PETER BONNER & CO,140990483,"25,518.00",Legal Aid Payment Lower Crime
Ministry of Justice,LEGAL AID AGENCY,29/07/2015,Lower Crime,LEGAL AID FUND,IRVINE THANVI NATAS SOLICITORS,140989699,"58,000.00",Legal Aid Payment Lower Crime
Ministry of Justice,LEGAL AID AGENCY,01/07/2015,Lower Crime,LEGAL AID FUND,SUSSEX DEFENCE SOLICITORS,140633987,"40,000.00",Legal Aid Payment Lower Crime
Ministry of Justice,LEGAL AID AGENCY,01/07/2015,Legal Help,LEGAL AID FUND,THALIWAL & CO LTD,140633370,"34,453.00",Legal Aid Payment Legal Help
Ministry of Justice,LEGAL AID AGENCY,29/07/2015,Lower Crime,LEGAL AID FUND,STERNBERG REED SOLICITORS,140989761,"55,000.00",Legal Aid Payment Lower Crime
Ministry of Justice,LEGAL AID AGENCY,15/07/2015,Higher Crime,LEGAL AID FUND,STEPHEN MOORE,140807058,"33,997.51",Legal Aid Payment Higher Crime
Ministry of Justice,LEGAL AID AGENCY,15/07/2015,Higher Crime,LEGAL AID FUND,JSP LAW LTD,140782925,"94,087.77",Legal Aid Payment Higher Crime
Ministry of Justice,LEGAL AID AGENCY,01/07/2015,Lower Crime,LEGAL AID FUND,BOOTS STARKE GOACHER SOLICITORS,140634709,"40,078.00",Legal Aid Payment Lower Crime
Ministry of Justice,LEGAL AID AGENCY,01/07/2015,Civil Representation,LEGAL AID FUND,NKUMBE EKANEY QC,140357556,"42,019.20",Legal Aid Payment Civil Representation
Ministry of Justice,LEGAL AID AGENCY,29/07/2015,Higher Crime,LEGAL AID FUND,ALAN WALMSLEY,140993059,"29,943.89",Legal Aid Payment Higher Crime
Ministry of Justice,LEGAL AID AGENCY,29/07/2015,Lower Crime,LEGAL AID FUND,HINE SOLICITORS,140990999,"69,792.00",Legal Aid Payment Lower Crime
Ministry of Justice,LEGAL AID AGENCY,29/07/2015,Legal Help,LEGAL AID FUND,DH LAW LTD,140988313,"35,353.00",Legal Aid Payment Legal Help
Ministry of Justice,LEGAL AID AGENCY,01/07/2015,Lower Crime,LEGAL AID FUND,HINE SOLICITORS,140634941,"46,537.00",Legal Aid Payment Lower Crime
Ministry of Justice,LEGAL AID AGENCY,29/07/2015,Civil Representation,LEGAL AID FUND,DUNCAN LEWIS,3000000108000003,"27,848.16",Legal Aid Payment Civil Representation
Ministry of Justice,LEGAL AID AGENCY,01/07/2015,Legal Help,LEGAL AID FUND,BLAVO & CO SOLICITORS LTD,140605368,"39,529.00",Legal Aid Payment Legal Help
Ministry of Justice,LEGAL AID AGENCY,08/07/2015,Higher Crime,LEGAL AID FUND,ANDREW J GREEN,140695740,"39,729.36",Legal Aid Payment Higher Crime
Ministry of Justice,LEGAL AID AGENCY,01/07/2015,Higher Crime,LEGAL AID FUND,ABBEY SOLICITORS,140637005,"39,010.92",Legal Aid Payment Higher Crime
Ministry of Justice,LEGAL AID AGENCY,22/07/2015,Higher Crime,LEGAL AID FUND,JAMES BOYLE,140873094,"45,351.58",Legal Aid Payment Higher Crime
Ministry of Justice,LEGAL AID AGENCY,29/07/2015,Lower Crime,LEGAL AID FUND,DOBSONS,140989723,"30,400.00",Legal Aid Payment Lower Crime
Ministry of Justice,LEGAL AID AGENCY,22/07/2015,Higher Crime,LEGAL AID FUND,STOKOE PARTNERSHIP,140815027,"145,732.77",Legal Aid Payment Higher Crime
Ministry of Justice,LEGAL AID AGENCY,08/07/2015,Higher Crime,LEGAL AID FUND,MARK JONES & PARTNERS,140722426,"114,342.45",Legal Aid Payment Higher Crime
Ministry of Justice,LEGAL AID AGENCY,01/07/2015,Lower Crime,LEGAL AID FUND,EBR ATTRIDGE LLP,140633646,"47,500.00",Legal Aid Payment Lower Crime
Ministry of Justice,LEGAL AID AGENCY,29/07/2015,Lower Crime,LEGAL AID FUND,CARRINGTONS SOLICITORS,140990348,"201,916.00",Legal Aid Payment Lower Crime
Ministry of Justice,LEGAL AID AGENCY,29/07/2015,Lower Crime,LEGAL AID FUND,GEOFF WHITE & CO,140990751,"53,102.00",Legal Aid Payment Lower Crime
Ministry of Justice,LEGAL AID AGENCY,29/07/2015,Higher Crime,LEGAL AID FUND,JANES SOLICITORS,140963485,"110,377.19",Legal Aid Payment Higher Crime
Ministry of Justice,LEGAL AID AGENCY,01/07/2015,Lower Crime,LEGAL AID FUND,WALKER LAHIVE,140634755,"38,281.00",Legal Aid Payment Lower Crime
Ministry of Justice,LEGAL AID AGENCY,29/07/2015,Lower Crime,LEGAL AID FUND,DUNCAN LEWIS,140989759,"120,900.00",Legal Aid Payment Lower Crime
Ministry of Justice,LEGAL AID AGENCY,29/07/2015,Lower Crime,LEGAL AID FUND,HOWELLS LLP,140989882,"60,000.00",Legal Aid Payment Lower Crime
Ministry of Justice,LEGAL AID AGENCY,22/07/2015,Higher Crime,LEGAL AID FUND,SMITH PARTNERSHIP,140822688,"74,031.80",Legal Aid Payment Higher Crime
Ministry of Justice,LEGAL AID AGENCY,01/07/2015,Legal Help,LEGAL AID FUND,BLAVO & CO SOLICITORS LTD,140605386,"81,783.00",Legal Aid Payment Legal Help
Ministry of Justice,LEGAL AID AGENCY,29/07/2015,Lower Crime,LEGAL AID FUND,G T STEWART SOLICITORS,140990509,"68,413.00",Legal Aid Payment Lower Crime
Ministry of Justice,LEGAL AID AGENCY,29/07/2015,Lower Crime,LEGAL AID FUND,POWELL SPENCER AND PARTNERS,140989701,"42,400.00",Legal Aid Payment Lower Crime
Ministry of Justice,LEGAL AID AGENCY,29/07/2015,Civil Representation,LEGAL AID FUND,PHILIP J BAGGLEY,140919349,"25,660.80",Legal Aid Payment Civil Representation
Ministry of Justice,LEGAL AID AGENCY,22/07/2015,Civil Representation,LEGAL AID FUND,LANGLEYS LLP,140773375,"32,956.17",Legal Aid Payment Civil Representation
Ministry of Justice,LEGAL AID AGENCY,29/07/2015,Legal Help,LEGAL AID FUND,GREATER MANCHESTER IMMIGRATION AID UNIT,140989483,"26,734.00",Legal Aid Payment Legal Help
Ministry of Justice,LEGAL AID AGENCY,29/07/2015,Lower Crime,LEGAL AID FUND,O'GARRA'S SOLICITORS,140989927,"28,000.00",Legal Aid Payment Lower Crime
Ministry of Justice,LEGAL AID AGENCY,08/07/2015,Higher Crime,LEGAL AID FUND,JOHN W FITZGERALD,140683707,"32,386.32",Legal Aid Payment Higher Crime
Ministry of Justice,LEGAL AID AGENCY,29/07/2015,Lower Crime,LEGAL AID FUND,RICHARD HASWELL SOLICITORS LLP,140990570,"30,239.00",Legal Aid Payment Lower Crime
Ministry of Justice,LEGAL AID AGENCY,08/07/2015,Higher Crime,LEGAL AID FUND,HSR SOLICITORS,140724047,"41,415.62",Legal Aid Payment Higher Crime
Ministry of Justice,LEGAL AID AGENCY,01/07/2015,Lower Crime,LEGAL AID FUND,HARRINGTONS SOLICITORS LTD,140633985,"26,800.00",Legal Aid Payment Lower Crime
Ministry of Justice,LEGAL AID AGENCY,29/07/2015,Legal Help,LEGAL AID FUND,APPLEMAN LEGAL,140984227,"41,589.00",Legal Aid Payment Legal Help
Ministry of Justice,LEGAL AID AGENCY,01/07/2015,Lower Crime,LEGAL AID FUND,REEDS SOLICITORS LTD,140634902,"35,549.00",Legal Aid Payment Lower Crime
Ministry of Justice,LEGAL AID AGENCY,29/07/2015,Legal Help,LEGAL AID FUND,COVENTRY LAW CENTRE LTD,140989049,"27,713.00",Legal Aid Payment Legal Help
Ministry of Justice,LEGAL AID AGENCY,29/07/2015,Higher Crime,LEGAL AID FUND,JASON CROSS,140942007,"34,478.57",Legal Aid Payment Higher Crime
Ministry of Justice,LEGAL AID AGENCY,29/07/2015,Legal Help,LEGAL AID FUND,BLAVO & CO SOLICITORS LTD,141006333,"105,593.00",Legal Aid Payment Legal Help
Ministry of Justice,LEGAL AID AGENCY,22/07/2015,Higher Crime,LEGAL AID FUND,JSP LAW LTD,140822552,"31,115.58",Legal Aid Payment Higher Crime
Ministry of Justice,LEGAL AID AGENCY,29/07/2015,Lower Crime,LEGAL AID FUND,TAYLOR HALDANE BARLEX LLP,140990406,"25,361.00",Legal Aid Payment Lower Crime
Ministry of Justice,LEGAL AID AGENCY,01/07/2015,Lower Crime,LEGAL AID FUND,BRADY EASTWOOD PIERCE & STEWART,140634427,"38,995.00",Legal Aid Payment Lower Crime
Ministry of Justice,LEGAL AID AGENCY,01/07/2015,Lower Crime,LEGAL AID FUND,SWAIN & CO SOLICITORS LLP,140633632,"25,700.00",Legal Aid Payment Lower Crime
Ministry of Justice,LEGAL AID AGENCY,29/07/2015,Lower Crime,LEGAL AID FUND,ALAN HARRIS SOLICITORS LTD,140990097,"30,500.00",Legal Aid Payment Lower Crime
Ministry of Justice,LEGAL AID AGENCY,01/07/2015,Lower Crime,LEGAL AID FUND,SWAIN & CO SOLICITORS LLP,140633742,"28,000.00",Legal Aid Payment Lower Crime
Ministry of Justice,LEGAL AID AGENCY,01/07/2015,Lower Crime,LEGAL AID FUND,CARRINGTONS SOLICITORS,140603043,"49,000.00",Legal Aid Payment Lower Crime
Ministry of Justice,LEGAL AID AGENCY,01/07/2015,Lower Crime,LEGAL AID FUND,MACNAB CLARKE SOLICITORS,140634740,"31,245.00",Legal Aid Payment Lower Crime
Ministry of Justice,LEGAL AID AGENCY,01/07/2015,Lower Crime,LEGAL AID FUND,SMITH PARTNERSHIP,140633558,"33,300.00",Legal Aid Payment Lower Crime
Ministry of Justice,LEGAL AID AGENCY,29/07/2015,Lower Crime,LEGAL AID FUND,RUSTEM GUARDIAN SOLICITORS,141004567,"30,479.00",Legal Aid Payment Lower Crime
Ministry of Justice,LEGAL AID AGENCY,01/07/2015,Lower Crime,LEGAL AID FUND,HENNESSY & HAMMUDI,140634020,"50,000.00",Legal Aid Payment Lower Crime
Ministry of Justice,LEGAL AID AGENCY,08/07/2015,Higher Crime,LEGAL AID FUND,ROBERT LAYTON & CO,140723686,"28,741.07",Legal Aid Payment Higher Crime
Ministry of Justice,LEGAL AID AGENCY,29/07/2015,Legal Help,LEGAL AID FUND,TURPIN & MILLER LLP,140989471,"53,725.00",Legal Aid Payment Legal Help
Ministry of Justice,LEGAL AID AGENCY,01/07/2015,Lower Crime,LEGAL AID FUND,PETHERBRIDGE BASSRA SOLICITORS LTD,140634560,"43,025.00",Legal Aid Payment Lower Crime
Ministry of Justice,LEGAL AID AGENCY,01/07/2015,Civil Representation,LEGAL AID FUND,WILSON'S SOLICITORS,140574427,"30,531.16",Legal Aid Payment Civil Representation
Ministry of Justice,LEGAL AID AGENCY,22/07/2015,Higher Crime,LEGAL AID FUND,DDE LAW LTD,140822869,"78,444.18",Legal Aid Payment Higher Crime
Ministry of Justice,LEGAL AID AGENCY,01/07/2015,Legal Help,LEGAL AID FUND,BIRNBERG PEIRCE LTD,140632776,"29,300.00",Legal Aid Payment Legal Help
Ministry of Justice,LEGAL AID AGENCY,29/07/2015,Lower Crime,LEGAL AID FUND,LAWTONS,140990226,"76,200.00",Legal Aid Payment Lower Crime
Ministry of Justice,LEGAL AID AGENCY,01/07/2015,Legal Help,LEGAL AID FUND,FOUNTAIN SOLICITORS LTD,140632568,"42,000.00",Legal Aid Payment Legal Help
Ministry of Justice,LEGAL AID AGENCY,22/07/2015,Higher Crime,LEGAL AID FUND,MICHAEL R AUTY,140911608,"32,845.72",Legal Aid Payment Higher Crime
Ministry of Justice,LEGAL AID AGENCY,01/07/2015,Civil Representation,LEGAL AID FUND,LEIGH DAY & CO,140129598,"36,673.81",Legal Aid Payment Civil Representation
Ministry of Justice,LEGAL AID AGENCY,29/07/2015,Lower Crime,LEGAL AID FUND,THE PURKISS PRACTICE,140990033,"28,000.00",Legal Aid Payment Lower Crime
Ministry of Justice,LEGAL AID AGENCY,29/07/2015,Lower Crime,LEGAL AID FUND,DJMS SOLICITORS LTD,140991129,"35,803.00",Legal Aid Payment Lower Crime
Ministry of Justice,LEGAL AID AGENCY,01/07/2015,Legal Help,LEGAL AID FUND,TRP SOLICITORS LTD,140632576,"26,600.00",Legal Aid Payment Legal Help
Ministry of Justice,LEGAL AID AGENCY,15/07/2015,Higher Crime,LEGAL AID FUND,HOWARD BERNSTEIN SOLICITORS,140768371,"31,728.96",Legal Aid Payment Higher Crime
Ministry of Justice,LEGAL AID AGENCY,01/07/2015,Civil Representation,LEGAL AID FUND,KAREN J MCLAUGHLIN,140626768,"35,092.44",Legal Aid Payment Civil Representation
Ministry of Justice,LEGAL AID AGENCY,29/07/2015,Lower Crime,LEGAL AID FUND,HENRY'S SOLICITORS LTD,140990010,"55,300.00",Legal Aid Payment Lower Crime
Ministry of Justice,LEGAL AID AGENCY,08/07/2015,Higher Crime,LEGAL AID FUND,DAVID P SPENS QC,140668077,"31,407.39",Legal Aid Payment Higher Crime
Ministry of Justice,LEGAL AID AGENCY,29/07/2015,Civil Representation,LEGAL AID FUND,CONSTANCE M HUGHES,140879676,"32,689.91",Legal Aid Payment Civil Representation
Ministry of Justice,LEGAL AID AGENCY,01/07/2015,Lower Crime,LEGAL AID FUND,NELSON GUEST & PARTNERS,140633674,"54,600.00",Legal Aid Payment Lower Crime
Ministry of Justice,LEGAL AID AGENCY,01/07/2015,Lower Crime,LEGAL AID FUND,HOWELLS LLP,140633821,"60,000.00",Legal Aid Payment Lower Crime
Ministry of Justice,LEGAL AID AGENCY,22/07/2015,Higher Crime,LEGAL AID FUND,GEORGE T HAZEL-OWRAM,140887056,"32,873.78",Legal Aid Payment Higher Crime
Ministry of Justice,LEGAL AID AGENCY,08/07/2015,Civil Representation,LEGAL AID FUND,IRWIN MITCHELL LLP,Ledger Transfer Adjustment 810,"525,135.11",Legal Aid Payment Civil Representation
Ministry of Justice,LEGAL AID AGENCY,29/07/2015,Lower Crime,LEGAL AID FUND,PALMERS CRIMINAL DEFENCE SOLICITORS,140990027,"30,000.00",Legal Aid Payment Lower Crime
Ministry of Justice,LEGAL AID AGENCY,15/07/2015,Civil Representation,LEGAL AID FUND,BHATIA BEST LTD,140786013,"51,001.49",Legal Aid Payment Civil Representation
Ministry of Justice,LEGAL AID AGENCY,29/07/2015,Lower Crime,LEGAL AID FUND,RODNEY WARREN & CO LTD,140990020,"31,000.00",Legal Aid Payment Lower Crime
Ministry of Justice,LEGAL AID AGENCY,01/07/2015,Legal Help,LEGAL AID FUND,LEI DAT BAIG SOLICITORS LIMITED,140600452,"26,841.00",Legal Aid Payment Legal Help
Ministry of Justice,LEGAL AID AGENCY,08/07/2015,Higher Crime,LEGAL AID FUND,WATSON WOODHOUSE SOLICITORS LLP,140724437,"116,008.49",Legal Aid Payment Higher Crime
Ministry of Justice,LEGAL AID AGENCY,01/07/2015,Lower Crime,LEGAL AID FUND,ACT SOLICITORS LTD,140634329,"32,393.00",Legal Aid Payment Lower Crime
Ministry of Justice,LEGAL AID AGENCY,29/07/2015,Lower Crime,LEGAL AID FUND,REEDS SOLICITORS LTD,140990792,"54,685.00",Legal Aid Payment Lower Crime
Ministry of Justice,LEGAL AID AGENCY,29/07/2015,Lower Crime,LEGAL AID FUND,SWAIN & CO SOLICITORS LLP,140989805,"28,000.00",Legal Aid Payment Lower Crime
Ministry of Justice,LEGAL AID AGENCY,01/07/2015,Lower Crime,LEGAL AID FUND,WELLS BURCOMBE LLP,140634314,"40,424.00",Legal Aid Payment Lower Crime
Ministry of Justice,LEGAL AID AGENCY,01/07/2015,Lower Crime,LEGAL AID FUND,EDWARDS DUTHIE,140635107,"25,910.00",Legal Aid Payment Lower Crime
Ministry of Justice,LEGAL AID AGENCY,29/07/2015,Legal Help,LEGAL AID FUND,STEPHENSONS SOLICITORS LLP,140925901,"39,853.20",Legal Aid Payment Legal Help
Ministry of Justice,LEGAL AID AGENCY,08/07/2015,Higher Crime,LEGAL AID FUND,LEWIS NEDAS & CO [ADVOCATE],140683321,"28,259.86",Legal Aid Payment Higher Crime
Ministry of Justice,LEGAL AID AGENCY,29/07/2015,Legal Help,LEGAL AID FUND,LEGAL JUSTICE SOLICITORS,140982721,"39,600.00",Legal Aid Payment Legal Help
Ministry of Justice,LEGAL AID AGENCY,22/07/2015,Civil Representation,LEGAL AID FUND,SARAH M MORGAN QC,140879826,"46,045.53",Legal Aid Payment Civil Representation
Ministry of Justice,LEGAL AID AGENCY,29/07/2015,Lower Crime,LEGAL AID FUND,FORBES SOLICITORS,140989976,"28,400.00",Legal Aid Payment Lower Crime
Ministry of Justice,LEGAL AID AGENCY,29/07/2015,Higher Crime,LEGAL AID FUND,RICHARD M BARRACLOUGH QC,140926363,"58,325.74",Legal Aid Payment Higher Crime
Ministry of Justice,LEGAL AID AGENCY,01/07/2015,Lower Crime,LEGAL AID FUND,CLARKE KIERNAN,140634682,"28,517.00",Legal Aid Payment Lower Crime
Ministry of Justice,LEGAL AID AGENCY,29/07/2015,Lower Crime,LEGAL AID FUND,TUCKERS SOLICITORS LLP,140989783,"120,000.00",Legal Aid Payment Lower Crime
Ministry of Justice,LEGAL AID AGENCY,29/07/2015,Lower Crime,LEGAL AID FUND,SUNDIP MURRIA SOLICITORS,140990193,"29,100.00",Legal Aid Payment Lower Crime
Ministry of Justice,LEGAL AID AGENCY,22/07/2015,Civil Representation,LEGAL AID FUND,CARTWRIGHT KING SOLICITORS,140811584,"26,361.62",Legal Aid Payment Civil Representation
Ministry of Justice,LEGAL AID AGENCY,01/07/2015,Higher Crime,LEGAL AID FUND,MSB LAW LLP,140605155,"25,807.56",Legal Aid Payment Higher Crime
Ministry of Justice,LEGAL AID AGENCY,29/07/2015,Lower Crime,LEGAL AID FUND,KEANEY WHITEHEAD PARTNERSHIP,140990543,"37,513.00",Legal Aid Payment Lower Crime
Ministry of Justice,LEGAL AID AGENCY,01/07/2015,Legal Help,LEGAL AID FUND,HOWELLS LLP,140632700,"25,600.00",Legal Aid Payment Legal Help
Ministry of Justice,LEGAL AID AGENCY,29/07/2015,Lower Crime,LEGAL AID FUND,DAVID PHILLIPS & PARTNERS,140989735,"35,500.00",Legal Aid Payment Lower Crime
Ministry of Justice,LEGAL AID AGENCY,29/07/2015,Legal Help,LEGAL AID FUND,DUNCAN LEWIS,140984640,"100,000.00",Legal Aid Payment Legal Help
Ministry of Justice,LEGAL AID AGENCY,29/07/2015,Higher Crime,LEGAL AID FUND,ABDUL S IQBAL QC,140969430,"68,174.35",Legal Aid Payment Higher Crime
Ministry of Justice,LEGAL AID AGENCY,01/07/2015,Lower Crime,LEGAL AID FUND,EDWARD HAYES LLP,140633727,"26,000.00",Legal Aid Payment Lower Crime
Ministry of Justice,LEGAL AID AGENCY,10/07/2015,Civil Representation,LEGAL AID FUND,BARRATT GOFF & TOMLINSON,Ledger Transfer Adjustment 826,"110,752.36",Legal Aid Payment Civil Representation
Ministry of Justice,LEGAL AID AGENCY,22/07/2015,Higher Crime,LEGAL AID FUND,ADVICE WISE SOLICITORS,140821414,"41,524.06",Legal Aid Payment Higher Crime
Ministry of Justice,LEGAL AID AGENCY,15/07/2015,Civil Representation,LEGAL AID FUND,STEPHENSONS SOLICITORS LLP,140743185,"26,231.66",Legal Aid Payment Civil Representation
Ministry of Justice,LEGAL AID AGENCY,01/07/2015,Lower Crime,LEGAL AID FUND,LANSBURY WORTHINGTON,140633620,"70,300.00",Legal Aid Payment Lower Crime
Ministry of Justice,LEGAL AID AGENCY,29/07/2015,Legal Help,LEGAL AID FUND,BRIGHTON HOUSING TRUST,140985792,"47,027.00",Legal Aid Payment Legal Help
Ministry of Justice,LEGAL AID AGENCY,29/07/2015,Lower Crime,LEGAL AID FUND,TRANTERS CRIMINAL LAW PRACTICE,140990002,"29,000.00",Legal Aid Payment Lower Crime
Ministry of Justice,LEGAL AID AGENCY,15/07/2015,Higher Crime,LEGAL AID FUND,ELYAS M PATEL,140769002,"38,630.04",Legal Aid Payment Higher Crime
Ministry of Justice,LEGAL AID AGENCY,29/07/2015,Legal Help,LEGAL AID FUND,CONROYS,140988937,"26,600.00",Legal Aid Payment Legal Help
Ministry of Justice,LEGAL AID AGENCY,29/07/2015,Lower Crime,LEGAL AID FUND,EBR ATTRIDGE LLP,140989718,"34,200.00",Legal Aid Payment Lower Crime
Ministry of Justice,LEGAL AID AGENCY,29/07/2015,Lower Crime,LEGAL AID FUND,KEMPS,140990658,"37,382.00",Legal Aid Payment Lower Crime
Ministry of Justice,LEGAL AID AGENCY,29/07/2015,Lower Crime,LEGAL AID FUND,GRECH GOODEN SOLICITORS LTD,140990303,"44,320.00",Legal Aid Payment Lower Crime
Ministry of Justice,LEGAL AID AGENCY,29/07/2015,Legal Help,LEGAL AID FUND,AASKELLS SOLICITORS & ADVOCATES,140989310,"27,311.00",Legal Aid Payment Legal Help
Ministry of Justice,LEGAL AID AGENCY,22/07/2015,Higher Crime,LEGAL AID FUND,ABRAHAM SOLICITORS LTD,140887157,"78,406.47",Legal Aid Payment Higher Crime
Ministry of Justice,LEGAL AID AGENCY,01/07/2015,Lower Crime,LEGAL AID FUND,CARRINGTONS SOLICITORS,140603045,"48,000.00",Legal Aid Payment Lower Crime
Ministry of Justice,LEGAL AID AGENCY,01/07/2015,Lower Crime,LEGAL AID FUND,HARRIS CUFFARO & NICHOLS,140633583,"37,400.00",Legal Aid Payment Lower Crime
Ministry of Justice,LEGAL AID AGENCY,29/07/2015,Civil Representation,LEGAL AID FUND,REBECCA FRANKLIN,140947402,"27,907.20",Legal Aid Payment Civil Representation
Ministry of Justice,LEGAL AID AGENCY,22/07/2015,Legal Help,LEGAL AID FUND,HOWELLS LLP,140921964,"31,651.07",Legal Aid Payment Legal Help
Ministry of Justice,LEGAL AID AGENCY,01/07/2015,Lower Crime,LEGAL AID FUND,BHATIA BEST LTD,140633525,"100,000.00",Legal Aid Payment Lower Crime
Ministry of Justice,LEGAL AID AGENCY,29/07/2015,Lower Crime,LEGAL AID FUND,OBW PERERA LTD,140989670,"29,000.00",Legal Aid Payment Lower Crime
Ministry of Justice,LEGAL AID AGENCY,29/07/2015,Lower Crime,LEGAL AID FUND,REEDS SOLICITORS LTD,140991160,"25,818.00",Legal Aid Payment Lower Crime
Ministry of Justice,LEGAL AID AGENCY,29/07/2015,Civil Representation,LEGAL AID FUND,JI SOLICITORS LTD,140971281,"26,657.73",Legal Aid Payment Civil Representation
Ministry of Justice,LEGAL AID AGENCY,29/07/2015,Lower Crime,LEGAL AID FUND,HINE SOLICITORS,140990995,"34,918.00",Legal Aid Payment Lower Crime
Ministry of Justice,LEGAL AID AGENCY,01/07/2015,Lower Crime,LEGAL AID FUND,SHEPHERD REYNOLDS SOLICITORS LTD,140634674,"31,551.00",Legal Aid Payment Lower Crime
Ministry of Justice,LEGAL AID AGENCY,01/07/2015,Lower Crime,LEGAL AID FUND,VICKERS CHISMAN & WISHLADE,140633771,"43,800.00",Legal Aid Payment Lower Crime
Ministry of Justice,LEGAL AID AGENCY,29/07/2015,Lower Crime,LEGAL AID FUND,I B B SOLICITORS,140989731,"88,100.00",Legal Aid Payment Lower Crime
Ministry of Justice,LEGAL AID AGENCY,01/07/2015,Civil Representation,LEGAL AID FUND,CYGNET FAMILY LAW,100000044945RECLB256,"44,097.58",Legal Aid Payment Civil Representation
Ministry of Justice,LEGAL AID AGENCY,01/07/2015,Lower Crime,LEGAL AID FUND,USMANI KING LTD,140634320,"52,783.00",Legal Aid Payment Lower Crime
Ministry of Justice,LEGAL AID AGENCY,01/07/2015,Lower Crime,LEGAL AID FUND,CARTWRIGHT KING SOLICITORS,140634298,"30,174.00",Legal Aid Payment Lower Crime
Ministry of Justice,LEGAL AID AGENCY,01/07/2015,Lower Crime,LEGAL AID FUND,TAYLOR HALDANE BARLEX LLP,140634350,"32,840.00",Legal Aid Payment Lower Crime
Ministry of Justice,LEGAL AID AGENCY,01/07/2015,Lower Crime,LEGAL AID FUND,BISHOP & LIGHT SOLICITORS [0C715B],140633979,"31,500.00",Legal Aid Payment Lower Crime
Ministry of Justice,LEGAL AID AGENCY,29/07/2015,Civil Representation,LEGAL AID FUND,IAN R GRIFFIN,140930937,"36,730.80",Legal Aid Payment Civil Representation
Ministry of Justice,LEGAL AID AGENCY,01/07/2015,Legal Help,LEGAL AID FUND,THOMPSON & CO,140632753,"30,400.00",Legal Aid Payment Legal Help
Ministry of Justice,LEGAL AID AGENCY,29/07/2015,Lower Crime,LEGAL AID FUND,POOLE ALCOCK LLP,140989960,"35,000.00",Legal Aid Payment Lower Crime
Ministry of Justice,LEGAL AID AGENCY,15/07/2015,Higher Crime,LEGAL AID FUND,JEMIMA IVENS,140805445,"55,127.14",Legal Aid Payment Higher Crime
Ministry of Justice,LEGAL AID AGENCY,22/07/2015,Higher Crime,LEGAL AID FUND,DEAN E KERSHAW,140887229,"29,668.19",Legal Aid Payment Higher Crime
Ministry of Justice,LEGAL AID AGENCY,01/07/2015,Higher Crime,LEGAL AID FUND,CHRISTOPHER WARE,140627125,"35,640.00",Legal Aid Payment Higher Crime
Ministry of Justice,LEGAL AID AGENCY,29/07/2015,Legal Help,LEGAL AID FUND,DUNCAN LEWIS,140984792,"100,000.00",Legal Aid Payment Legal Help
Ministry of Justice,LEGAL AID AGENCY,01/07/2015,Higher Crime,LEGAL AID FUND,HATTEN WYATT,140584765,"43,382.32",Legal Aid Payment Higher Crime
Ministry of Justice,LEGAL AID AGENCY,29/07/2015,Legal Help,LEGAL AID FUND,WILSON SOLICITORS LLP,140988778,"75,000.00",Legal Aid Payment Legal Help
Ministry of Justice,LEGAL AID AGENCY,29/07/2015,Lower Crime,LEGAL AID FUND,HODGSON COULTHARD & CO,140990561,"28,637.00",Legal Aid Payment Lower Crime
Ministry of Justice,LEGAL AID AGENCY,15/07/2015,Higher Crime,LEGAL AID FUND,SIMON CSOKA,140805836,"67,192.92",Legal Aid Payment Higher Crime
Ministry of Justice,LEGAL AID AGENCY,01/07/2015,Higher Crime,LEGAL AID FUND,PATRICK CASSIDY,140635921,"41,636.26",Legal Aid Payment Higher Crime
